Over 500 Report Ref,PAYMENT_DATE,Supplier Name *******,Vendor Type,Amount,Cost Centre Code,Cost Centre Description,Directorate,Division,Service Group,Service,Subjective Description,Accounting Date,Proclass Category
OFH2021Q2.A000001,07/01/2020,*******,CARERS,608.32,D13082,LAC PLACEMENT-IN-HOUSE FOSTERING,CHILDREN'S SERVICES,CHILDREN'S SOCIAL CARE,CORPORATE PARENTING,FOSTERING & PERMANENCY,IN HOUSE FOSTER CARE PLACEMENTS - PRIVATE CONTRACTORS PAYMENT,07/01/2020,
OFH2021Q2.A000002,07/01/2020,*******,CARERS,608.32,D13082,LAC PLACEMENT-IN-HOUSE FOSTERING,CHILDREN'S SERVICES,CHILDREN'S SOCIAL CARE,CORPORATE PARENTING,FOSTERING & PERMANENCY,IN HOUSE FOSTER CARE PLACEMENTS - PRIVATE CONTRACTORS PAYMENT,07/01/2020,
OFH2021Q2.A000003,07/01/2020,*******,CARERS,225,D13082,LAC PLACEMENT-IN-HOUSE FOSTERING,CHILDREN'S SERVICES,CHILDREN'S SOCIAL CARE,CORPORATE PARENTING,FOSTERING & PERMANENCY,CLIENT ALLOWANCES - SOCIAL SERVICES,07/01/2020,
OFH2021Q2.A000004,07/01/2020,*******,CARERS,608.32,D13082,LAC PLACEMENT-IN-HOUSE FOSTERING,CHILDREN'S SERVICES,CHILDREN'S SOCIAL CARE,CORPORATE PARENTING,FOSTERING & PERMANENCY,IN HOUSE FOSTER CARE PLACEMENTS - PRIVATE CONTRACTORS PAYMENT,07/01/2020,
OFH2021Q2.A000005,07/01/2020,*******,CARERS,612.12,D13082,LAC PLACEMENT-IN-HOUSE FOSTERING,CHILDREN'S SERVICES,CHILDREN'S SOCIAL CARE,CORPORATE PARENTING,FOSTERING & PERMANENCY,IN HOUSE FOSTER CARE PLACEMENTS - PRIVATE CONTRACTORS PAYMENT,07/01/2020,
OFH2021Q2.A000006,07/01/2020,*******,CARERS,607.54,D13082,LAC PLACEMENT-IN-HOUSE FOSTERING,CHILDREN'S SERVICES,CHILDREN'S SOCIAL CARE,CORPORATE PARENTING,FOSTERING & PERMANENCY,IN HOUSE FOSTER CARE PLACEMENTS - PRIVATE CONTRACTORS PAYMENT,07/01/2020,
OFH2021Q2.A000007,07/01/2020,*******,CARERS,608.32,D13082,LAC PLACEMENT-IN-HOUSE FOSTERING,CHILDREN'S SERVICES,CHILDREN'S SOCIAL CARE,CORPORATE PARENTING,FOSTERING & PERMANENCY,IN HOUSE FOSTER CARE PLACEMENTS - PRIVATE CONTRACTORS PAYMENT,07/01/2020,
OFH2021Q2.A000008,07/01/2020,*******,CARERS,608.32,D13082,LAC PLACEMENT-IN-HOUSE FOSTERING,CHILDREN'S SERVICES,CHILDREN'S SOCIAL CARE,CORPORATE PARENTING,FOSTERING & PERMANENCY,IN HOUSE FOSTER CARE PLACEMENTS - PRIVATE CONTRACTORS PAYMENT,07/01/2020,
OFH2021Q2.A000009,07/01/2020,Cyclehoop Ltd,CIS,2370,D14751,CULTURAL DEVELOPMENT,RESIDENT SERVICES (GF),ENVIRONMENT & STREETSCENE,PARKING & ENFORCEMENT,PARKING & ENFORCEMENT SERVICE DEVELOPMENT,ARTS AND LEISURE COSTS,06/17/2020,Arts & Leisure Services.Outsourced Service.NA
OFH2021Q2.A000010,07/01/2020,ERND Building Services (UK) Ltd,CIS,3900,D18035,REPAIRS PROJECTS,RESIDENT SERVICES (HRA),HOUSING SERVICES (HRA),REPAIRS & MAINTENANCE,HOUSING MANAGEMENT - REPAIRS AND MAINTENANCE,R & M MAJOR WORKS,03/12/2020,"Works - Construction, R & M.Buildings.Repair & Maintenance"
OFH2021Q2.A000011,07/01/2020,ERND Building Services (UK) Ltd,CIS,1828.83,D19998,CAPITAL COST CENTRE,SUSTAINABLE GROWTH & OPPORTUNITY,REGENERATION & HOUSING GROWTH,HOUSING DELIVERY,"HOUSING DEVELOPMENTS, PARTNERSHIPS & COMMISSIONING",R & M MAJOR WORKS,07/01/2020,"Works - Construction, R & M.Buildings.Repair & Maintenance"
OFH2021Q2.A000012,07/01/2020,ERND Building Services (UK) Ltd,CIS,2494.43,D19998,CAPITAL COST CENTRE,SUSTAINABLE GROWTH & OPPORTUNITY,REGENERATION & HOUSING GROWTH,HOUSING DELIVERY,"HOUSING DEVELOPMENTS, PARTNERSHIPS & COMMISSIONING",R & M MAJOR WORKS,07/01/2020,"Works - Construction, R & M.Buildings.Repair & Maintenance"
OFH2021Q2.A000013,07/01/2020,KNK Building Services Ltd,CIS,4984,D18034,REPAIRS PLANNED PROJECTS,RESIDENT SERVICES (HRA),HOUSING SERVICES (HRA),REPAIRS & MAINTENANCE,HOUSING MANAGEMENT - REPAIRS AND MAINTENANCE,R & M MAJOR WORKS,03/17/2020,"Works - Construction, R & M.Buildings.NA"
OFH2021Q2.A000014,07/01/2020,AO Advocates,COMMERCIAL SUPPLIER,4000,D10356,REDRESS SCHEME,FINANCE & INVESTMENT,FINANCE & PROPERTY,IMPROVEMENT RISK AND INSURANCE,IMPROVEMENT RISK AND INSURANCE,COMPENSATION,06/29/2020,
OFH2021Q2.A000015,07/01/2020,ASSA ABLOY Entrance Systems Ltd,COMMERCIAL SUPPLIER,3445,D10602,SPRINGFIELD COMMUNITY & HEALTH CENTRE GF,RESIDENT SERVICES (GF),HOUSING MANAGEMENT,"FACILITIES MANAGEMENT, PROPERTY & PROJECTS",FACILITIES MANAGEMENT,FACILITIES MANAGEMENT,06/05/2020,Facilities & Management .Property Management.NA
OFH2021Q2.A000016,07/01/2020,Bpi.recycled products,COMMERCIAL SUPPLIER,1112,D14752,PARKS,RESIDENT SERVICES (GF),ENVIRONMENT & STREETSCENE,"NEIGHBOURHOODS (PARKS, LEISURE & CEMETERIES)",PARKS & LEISURE SERVICES,"PURCHASE - EQUIPMENT, FURNITURE AND MATERIALS",06/19/2020,Horticultural.Tools & Equipment.NA
OFH2021Q2.A000017,07/01/2020,Capita Plc & Business Services Ltd,COMMERCIAL SUPPLIER,2334.53,D10521,MANAGEMENT,RESIDENT SERVICES (GF),RESIDENTS EXPERIENCE & DIGITAL,REVENUE & BENEFITS,HOUSING BENEFIT,PRIVATE CONTRACTORS PAYMENT - OTHER,06/24/2020,Financial Services.Outsourced Service.NA
OFH2021Q2.A000018,07/01/2020,Carepoint Services Ltd,COMMERCIAL SUPPLIER,509.76,D12532,OP - HOME CARE,ADULTS & HEALTH,ADULT SOCIAL CARE,OLDER PEOPLE,OP SERVICES,DOMICILIARY CARE - THIRD PARTY,06/30/2020,
OFH2021Q2.A000019,07/01/2020,CarParkAt Ltd,COMMERCIAL SUPPLIER,9446.43,D14281,HIGHWAYS,RESIDENT SERVICES (GF),INFRASTRUCTURE & CAPITAL DELIVERY,"PUBLIC REALM, HIGHWAYS & CLIMATE CHANGE DELIVERY",HIGHWAYS,HIGHWAY SERVICES,06/04/2020,"Works - Construction, R & M.Roads.Repair & Maintenance"
OFH2021Q2.A000020,07/01/2020,CarParkAt Ltd,COMMERCIAL SUPPLIER,-9446.43,D14281,HIGHWAYS,RESIDENT SERVICES (GF),INFRASTRUCTURE & CAPITAL DELIVERY,"PUBLIC REALM, HIGHWAYS & CLIMATE CHANGE DELIVERY",HIGHWAYS,HIGHWAY SERVICES,06/04/2020,"Works - Construction, R & M.Roads.Repair & Maintenance"
OFH2021Q2.A000021,07/01/2020,CarParkAt Ltd,COMMERCIAL SUPPLIER,9446.43,D14281,HIGHWAYS,RESIDENT SERVICES (GF),INFRASTRUCTURE & CAPITAL DELIVERY,"PUBLIC REALM, HIGHWAYS & CLIMATE CHANGE DELIVERY",HIGHWAYS,HIGHWAY SERVICES,06/04/2020,"Works - Construction, R & M.Roads.Repair & Maintenance"
OFH2021Q2.A000022,07/01/2020,Cetra Housing Co-Operative Ltd,COMMERCIAL SUPPLIER,142645.23,D18003,CEDARS TMC,RESIDENT SERVICES (HRA),HOUSING SERVICES (HRA),TENANT MANAGEMENT ORGANISATIONS,TENANT MANAGEMENT ORGANISATIONS,PROFESSIONAL SERVICES - GENERAL,06/29/2020,Housing Management.Arms Length Management Organisations.NA
OFH2021Q2.A000023,07/01/2020,Civica UK Ltd,COMMERCIAL SUPPLIER,2703.75,D10381,CORPORATE COMPLAINTS,RESIDENT SERVICES (GF),RESIDENTS EXPERIENCE & DIGITAL,RESIDENT EXPERIENCE,RESIDENT EXPERIENCE,ICT MAINTENANCE AND SUPPORT,06/22/2020,Information Communication Tech.Services.Maintenance & Support
OFH2021Q2.A000024,07/01/2020,Corona Energy,COMMERCIAL SUPPLIER,1934.31,D10105,EMU CORPORATE ENERGY CONTRACTS,FINANCE & INVESTMENT,FINANCE & PROPERTY,PROCUREMENT,CONTRACT SERVICES,GAS,06/19/2020,Utilities.Gas.NA
OFH2021Q2.A000025,07/01/2020,Corona Energy,COMMERCIAL SUPPLIER,565.95,D10105,EMU CORPORATE ENERGY CONTRACTS,FINANCE & INVESTMENT,FINANCE & PROPERTY,PROCUREMENT,CONTRACT SERVICES,GAS,06/19/2020,Utilities.Gas.NA
OFH2021Q2.A000026,07/01/2020,Corona Energy,COMMERCIAL SUPPLIER,505.09,D10105,EMU CORPORATE ENERGY CONTRACTS,FINANCE & INVESTMENT,FINANCE & PROPERTY,PROCUREMENT,CONTRACT SERVICES,GAS,06/19/2020,Utilities.Gas.NA
OFH2021Q2.A000027,07/01/2020,Corona Energy,COMMERCIAL SUPPLIER,827.01,D10105,EMU CORPORATE ENERGY CONTRACTS,FINANCE & INVESTMENT,FINANCE & PROPERTY,PROCUREMENT,CONTRACT SERVICES,GAS,06/19/2020,Utilities.Gas.NA
OFH2021Q2.A000028,07/01/2020,Corona Energy,COMMERCIAL SUPPLIER,926.3,D10105,EMU CORPORATE ENERGY CONTRACTS,FINANCE & INVESTMENT,FINANCE & PROPERTY,PROCUREMENT,CONTRACT SERVICES,GAS,06/19/2020,Utilities.Gas.NA
OFH2021Q2.A000029,07/01/2020,Corona Energy,COMMERCIAL SUPPLIER,590.97,D10105,EMU CORPORATE ENERGY CONTRACTS,FINANCE & INVESTMENT,FINANCE & PROPERTY,PROCUREMENT,CONTRACT SERVICES,GAS,06/19/2020,Utilities.Gas.NA
OFH2021Q2.A000030,07/01/2020,Corona Energy,COMMERCIAL SUPPLIER,717.37,D10105,EMU CORPORATE ENERGY CONTRACTS,FINANCE & INVESTMENT,FINANCE & PROPERTY,PROCUREMENT,CONTRACT SERVICES,GAS,06/19/2020,Utilities.Gas.NA
OFH2021Q2.A000031,07/01/2020,Corona Energy,COMMERCIAL SUPPLIER,1245.65,D10105,EMU CORPORATE ENERGY CONTRACTS,FINANCE & INVESTMENT,FINANCE & PROPERTY,PROCUREMENT,CONTRACT SERVICES,GAS,06/19/2020,Utilities.Gas.NA
OFH2021Q2.A000032,07/01/2020,Corona Energy,COMMERCIAL SUPPLIER,1598.13,D10105,EMU CORPORATE ENERGY CONTRACTS,FINANCE & INVESTMENT,FINANCE & PROPERTY,PROCUREMENT,CONTRACT SERVICES,GAS,06/19/2020,Utilities.Gas.NA
OFH2021Q2.A000033,07/01/2020,Corona Energy,COMMERCIAL SUPPLIER,3639.9,D10105,EMU CORPORATE ENERGY CONTRACTS,FINANCE & INVESTMENT,FINANCE & PROPERTY,PROCUREMENT,CONTRACT SERVICES,GAS,06/19/2020,Utilities.Gas.NA
OFH2021Q2.A000034,07/01/2020,Corona Energy,COMMERCIAL SUPPLIER,1289.73,D10105,EMU CORPORATE ENERGY CONTRACTS,FINANCE & INVESTMENT,FINANCE & PROPERTY,PROCUREMENT,CONTRACT SERVICES,GAS,06/19/2020,Utilities.Gas.NA
OFH2021Q2.A000035,07/01/2020,Corona Energy,COMMERCIAL SUPPLIER,719.91,D10105,EMU CORPORATE ENERGY CONTRACTS,FINANCE & INVESTMENT,FINANCE & PROPERTY,PROCUREMENT,CONTRACT SERVICES,GAS,06/19/2020,Utilities.Gas.NA
OFH2021Q2.A000036,07/01/2020,Corona Energy,COMMERCIAL SUPPLIER,726.68,D10105,EMU CORPORATE ENERGY CONTRACTS,FINANCE & INVESTMENT,FINANCE & PROPERTY,PROCUREMENT,CONTRACT SERVICES,GAS,06/19/2020,Utilities.Gas.NA
OFH2021Q2.A000037,07/01/2020,Corona Energy,COMMERCIAL SUPPLIER,612.07,D10105,EMU CORPORATE ENERGY CONTRACTS,FINANCE & INVESTMENT,FINANCE & PROPERTY,PROCUREMENT,CONTRACT SERVICES,GAS,06/19/2020,Utilities.Gas.NA
OFH2021Q2.A000038,07/01/2020,Corona Energy,COMMERCIAL SUPPLIER,1889.24,D10105,EMU CORPORATE ENERGY CONTRACTS,FINANCE & INVESTMENT,FINANCE & PROPERTY,PROCUREMENT,CONTRACT SERVICES,GAS,06/19/2020,Utilities.Gas.NA
OFH2021Q2.A000039,07/01/2020,Corona Energy,COMMERCIAL SUPPLIER,1750.05,D10105,EMU CORPORATE ENERGY CONTRACTS,FINANCE & INVESTMENT,FINANCE & PROPERTY,PROCUREMENT,CONTRACT SERVICES,GAS,06/19/2020,Utilities.Gas.NA
OFH2021Q2.A000040,07/01/2020,Corona Energy,COMMERCIAL SUPPLIER,884.36,D10105,EMU CORPORATE ENERGY CONTRACTS,FINANCE & INVESTMENT,FINANCE & PROPERTY,PROCUREMENT,CONTRACT SERVICES,GAS,06/19/2020,Utilities.Gas.NA
OFH2021Q2.A000041,07/01/2020,Corona Energy,COMMERCIAL SUPPLIER,875.29,D10105,EMU CORPORATE ENERGY CONTRACTS,FINANCE & INVESTMENT,FINANCE & PROPERTY,PROCUREMENT,CONTRACT SERVICES,GAS,06/19/2020,Utilities.Gas.NA
OFH2021Q2.A000042,07/01/2020,Corona Energy,COMMERCIAL SUPPLIER,2662.23,D10105,EMU CORPORATE ENERGY CONTRACTS,FINANCE & INVESTMENT,FINANCE & PROPERTY,PROCUREMENT,CONTRACT SERVICES,GAS,06/19/2020,Utilities.Gas.NA
OFH2021Q2.A000043,07/01/2020,Corona Energy,COMMERCIAL SUPPLIER,1192.41,D10105,EMU CORPORATE ENERGY CONTRACTS,FINANCE & INVESTMENT,FINANCE & PROPERTY,PROCUREMENT,CONTRACT SERVICES,GAS,06/19/2020,Utilities.Gas.NA
OFH2021Q2.A000044,07/01/2020,Corona Energy,COMMERCIAL SUPPLIER,5073.81,D10105,EMU CORPORATE ENERGY CONTRACTS,FINANCE & INVESTMENT,FINANCE & PROPERTY,PROCUREMENT,CONTRACT SERVICES,GAS,06/19/2020,Utilities.Gas.NA
OFH2021Q2.A000045,07/01/2020,Corona Energy,COMMERCIAL SUPPLIER,2184.49,D10105,EMU CORPORATE ENERGY CONTRACTS,FINANCE & INVESTMENT,FINANCE & PROPERTY,PROCUREMENT,CONTRACT SERVICES,GAS,06/19/2020,Utilities.Gas.NA
OFH2021Q2.A000046,07/01/2020,Corona Energy,COMMERCIAL SUPPLIER,1295.56,D10105,EMU CORPORATE ENERGY CONTRACTS,FINANCE & INVESTMENT,FINANCE & PROPERTY,PROCUREMENT,CONTRACT SERVICES,GAS,06/19/2020,Utilities.Gas.NA
OFH2021Q2.A000047,07/01/2020,Corona Energy,COMMERCIAL SUPPLIER,986.44,D10105,EMU CORPORATE ENERGY CONTRACTS,FINANCE & INVESTMENT,FINANCE & PROPERTY,PROCUREMENT,CONTRACT SERVICES,GAS,06/19/2020,Utilities.Gas.NA
OFH2021Q2.A000048,07/01/2020,Corona Energy,COMMERCIAL SUPPLIER,947.81,D10105,EMU CORPORATE ENERGY CONTRACTS,FINANCE & INVESTMENT,FINANCE & PROPERTY,PROCUREMENT,CONTRACT SERVICES,GAS,06/19/2020,Utilities.Gas.NA
OFH2021Q2.A000049,07/01/2020,Corona Energy,COMMERCIAL SUPPLIER,1403.28,D10105,EMU CORPORATE ENERGY CONTRACTS,FINANCE & INVESTMENT,FINANCE & PROPERTY,PROCUREMENT,CONTRACT SERVICES,GAS,06/19/2020,Utilities.Gas.NA
OFH2021Q2.A000050,07/01/2020,Corona Energy,COMMERCIAL SUPPLIER,1108.06,D10105,EMU CORPORATE ENERGY CONTRACTS,FINANCE & INVESTMENT,FINANCE & PROPERTY,PROCUREMENT,CONTRACT SERVICES,GAS,06/19/2020,Utilities.Gas.NA
OFH2021Q2.A000051,07/01/2020,Corona Energy,COMMERCIAL SUPPLIER,586.45,D10105,EMU CORPORATE ENERGY CONTRACTS,FINANCE & INVESTMENT,FINANCE & PROPERTY,PROCUREMENT,CONTRACT SERVICES,GAS,06/19/2020,Utilities.Gas.NA
OFH2021Q2.A000052,07/01/2020,Corona Energy,COMMERCIAL SUPPLIER,860.17,D10105,EMU CORPORATE ENERGY CONTRACTS,FINANCE & INVESTMENT,FINANCE & PROPERTY,PROCUREMENT,CONTRACT SERVICES,GAS,06/19/2020,Utilities.Gas.NA
OFH2021Q2.A000053,07/01/2020,Corona Energy,COMMERCIAL SUPPLIER,1216.57,D10105,EMU CORPORATE ENERGY CONTRACTS,FINANCE & INVESTMENT,FINANCE & PROPERTY,PROCUREMENT,CONTRACT SERVICES,GAS,06/19/2020,Utilities.Gas.NA
OFH2021Q2.A000054,07/01/2020,Corona Energy,COMMERCIAL SUPPLIER,534.85,D10105,EMU CORPORATE ENERGY CONTRACTS,FINANCE & INVESTMENT,FINANCE & PROPERTY,PROCUREMENT,CONTRACT SERVICES,GAS,06/19/2020,Utilities.Gas.NA
OFH2021Q2.A000055,07/01/2020,Corona Energy,COMMERCIAL SUPPLIER,1141.58,D10105,EMU CORPORATE ENERGY CONTRACTS,FINANCE & INVESTMENT,FINANCE & PROPERTY,PROCUREMENT,CONTRACT SERVICES,GAS,06/19/2020,Utilities.Gas.NA
OFH2021Q2.A000056,07/01/2020,Corona Energy,COMMERCIAL SUPPLIER,1713.11,D10105,EMU CORPORATE ENERGY CONTRACTS,FINANCE & INVESTMENT,FINANCE & PROPERTY,PROCUREMENT,CONTRACT SERVICES,GAS,06/19/2020,Utilities.Gas.NA
OFH2021Q2.A000057,07/01/2020,Corona Energy,COMMERCIAL SUPPLIER,2322.87,D10105,EMU CORPORATE ENERGY CONTRACTS,FINANCE & INVESTMENT,FINANCE & PROPERTY,PROCUREMENT,CONTRACT SERVICES,GAS,06/19/2020,Utilities.Gas.NA
OFH2021Q2.A000058,07/01/2020,Corona Energy,COMMERCIAL SUPPLIER,1118.38,D10105,EMU CORPORATE ENERGY CONTRACTS,FINANCE & INVESTMENT,FINANCE & PROPERTY,PROCUREMENT,CONTRACT SERVICES,GAS,06/19/2020,Utilities.Gas.NA
OFH2021Q2.A000059,07/01/2020,Corona Energy,COMMERCIAL SUPPLIER,6514.1,D10105,EMU CORPORATE ENERGY CONTRACTS,FINANCE & INVESTMENT,FINANCE & PROPERTY,PROCUREMENT,CONTRACT SERVICES,GAS,06/19/2020,Utilities.Gas.NA
OFH2021Q2.A000060,07/01/2020,Corona Energy,COMMERCIAL SUPPLIER,774.16,D10105,EMU CORPORATE ENERGY CONTRACTS,FINANCE & INVESTMENT,FINANCE & PROPERTY,PROCUREMENT,CONTRACT SERVICES,GAS,06/19/2020,Utilities.Gas.NA
OFH2021Q2.A000061,07/01/2020,Corona Energy,COMMERCIAL SUPPLIER,1987.38,D10105,EMU CORPORATE ENERGY CONTRACTS,FINANCE & INVESTMENT,FINANCE & PROPERTY,PROCUREMENT,CONTRACT SERVICES,GAS,06/19/2020,Utilities.Gas.NA
OFH2021Q2.A000062,07/01/2020,Corona Energy,COMMERCIAL SUPPLIER,591.9,D10105,EMU CORPORATE ENERGY CONTRACTS,FINANCE & INVESTMENT,FINANCE & PROPERTY,PROCUREMENT,CONTRACT SERVICES,GAS,06/19/2020,Utilities.Gas.NA
OFH2021Q2.A000063,07/01/2020,Corona Energy,COMMERCIAL SUPPLIER,1499.72,D10105,EMU CORPORATE ENERGY CONTRACTS,FINANCE & INVESTMENT,FINANCE & PROPERTY,PROCUREMENT,CONTRACT SERVICES,GAS,06/19/2020,Utilities.Gas.NA
OFH2021Q2.A000064,07/01/2020,Corona Energy,COMMERCIAL SUPPLIER,1226.45,D10105,EMU CORPORATE ENERGY CONTRACTS,FINANCE & INVESTMENT,FINANCE & PROPERTY,PROCUREMENT,CONTRACT SERVICES,GAS,06/19/2020,Utilities.Gas.NA
OFH2021Q2.A000065,07/01/2020,Corona Energy,COMMERCIAL SUPPLIER,1553.3,D10105,EMU CORPORATE ENERGY CONTRACTS,FINANCE & INVESTMENT,FINANCE & PROPERTY,PROCUREMENT,CONTRACT SERVICES,GAS,06/19/2020,Utilities.Gas.NA
OFH2021Q2.A000066,07/01/2020,Corona Energy,COMMERCIAL SUPPLIER,701.07,D10105,EMU CORPORATE ENERGY CONTRACTS,FINANCE & INVESTMENT,FINANCE & PROPERTY,PROCUREMENT,CONTRACT SERVICES,GAS,06/19/2020,Utilities.Gas.NA
OFH2021Q2.A000067,07/01/2020,Corona Energy,COMMERCIAL SUPPLIER,3910.73,D10105,EMU CORPORATE ENERGY CONTRACTS,FINANCE & INVESTMENT,FINANCE & PROPERTY,PROCUREMENT,CONTRACT SERVICES,GAS,06/19/2020,Utilities.Gas.NA
OFH2021Q2.A000068,07/01/2020,Corona Energy,COMMERCIAL SUPPLIER,525.74,D10105,EMU CORPORATE ENERGY CONTRACTS,FINANCE & INVESTMENT,FINANCE & PROPERTY,PROCUREMENT,CONTRACT SERVICES,GAS,06/19/2020,Utilities.Gas.NA
OFH2021Q2.A000069,07/01/2020,Corona Energy,COMMERCIAL SUPPLIER,1405.64,D10105,EMU CORPORATE ENERGY CONTRACTS,FINANCE & INVESTMENT,FINANCE & PROPERTY,PROCUREMENT,CONTRACT SERVICES,GAS,06/19/2020,Utilities.Gas.NA
OFH2021Q2.A000070,07/01/2020,Corona Energy,COMMERCIAL SUPPLIER,1351.25,D10105,EMU CORPORATE ENERGY CONTRACTS,FINANCE & INVESTMENT,FINANCE & PROPERTY,PROCUREMENT,CONTRACT SERVICES,GAS,06/19/2020,Utilities.Gas.NA
OFH2021Q2.A000071,07/01/2020,Corona Energy,COMMERCIAL SUPPLIER,828.31,D10105,EMU CORPORATE ENERGY CONTRACTS,FINANCE & INVESTMENT,FINANCE & PROPERTY,PROCUREMENT,CONTRACT SERVICES,GAS,06/19/2020,Utilities.Gas.NA
OFH2021Q2.A000072,07/01/2020,Corona Energy,COMMERCIAL SUPPLIER,5092.06,D10105,EMU CORPORATE ENERGY CONTRACTS,FINANCE & INVESTMENT,FINANCE & PROPERTY,PROCUREMENT,CONTRACT SERVICES,GAS,06/19/2020,Utilities.Gas.NA
OFH2021Q2.A000073,07/01/2020,Corona Energy,COMMERCIAL SUPPLIER,674.1,D10105,EMU CORPORATE ENERGY CONTRACTS,FINANCE & INVESTMENT,FINANCE & PROPERTY,PROCUREMENT,CONTRACT SERVICES,GAS,06/19/2020,Utilities.Gas.NA
OFH2021Q2.A000074,07/01/2020,Corona Energy,COMMERCIAL SUPPLIER,739.51,D10105,EMU CORPORATE ENERGY CONTRACTS,FINANCE & INVESTMENT,FINANCE & PROPERTY,PROCUREMENT,CONTRACT SERVICES,GAS,06/19/2020,Utilities.Gas.NA
OFH2021Q2.A000075,07/01/2020,Corona Energy,COMMERCIAL SUPPLIER,1144.98,D10105,EMU CORPORATE ENERGY CONTRACTS,FINANCE & INVESTMENT,FINANCE & PROPERTY,PROCUREMENT,CONTRACT SERVICES,GAS,06/19/2020,Utilities.Gas.NA
OFH2021Q2.A000076,07/01/2020,Corona Energy,COMMERCIAL SUPPLIER,816.16,D10105,EMU CORPORATE ENERGY CONTRACTS,FINANCE & INVESTMENT,FINANCE & PROPERTY,PROCUREMENT,CONTRACT SERVICES,GAS,06/19/2020,Utilities.Gas.NA
OFH2021Q2.A000077,07/01/2020,Corona Energy,COMMERCIAL SUPPLIER,1235.09,D10105,EMU CORPORATE ENERGY CONTRACTS,FINANCE & INVESTMENT,FINANCE & PROPERTY,PROCUREMENT,CONTRACT SERVICES,GAS,06/19/2020,Utilities.Gas.NA
OFH2021Q2.A000078,07/01/2020,Corona Energy,COMMERCIAL SUPPLIER,1220.5,D10105,EMU CORPORATE ENERGY CONTRACTS,FINANCE & INVESTMENT,FINANCE & PROPERTY,PROCUREMENT,CONTRACT SERVICES,GAS,06/19/2020,Utilities.Gas.NA
OFH2021Q2.A000079,07/01/2020,Corona Energy,COMMERCIAL SUPPLIER,703.41,D10105,EMU CORPORATE ENERGY CONTRACTS,FINANCE & INVESTMENT,FINANCE & PROPERTY,PROCUREMENT,CONTRACT SERVICES,GAS,06/19/2020,Utilities.Gas.NA
OFH2021Q2.A000080,07/01/2020,Corona Energy,COMMERCIAL SUPPLIER,2174.25,D10105,EMU CORPORATE ENERGY CONTRACTS,FINANCE & INVESTMENT,FINANCE & PROPERTY,PROCUREMENT,CONTRACT SERVICES,GAS,06/19/2020,Utilities.Gas.NA
OFH2021Q2.A000081,07/01/2020,Corona Energy,COMMERCIAL SUPPLIER,1709.65,D10105,EMU CORPORATE ENERGY CONTRACTS,FINANCE & INVESTMENT,FINANCE & PROPERTY,PROCUREMENT,CONTRACT SERVICES,GAS,06/19/2020,Utilities.Gas.NA
OFH2021Q2.A000082,07/01/2020,Corona Energy,COMMERCIAL SUPPLIER,6762.62,D10105,EMU CORPORATE ENERGY CONTRACTS,FINANCE & INVESTMENT,FINANCE & PROPERTY,PROCUREMENT,CONTRACT SERVICES,GAS,06/19/2020,Utilities.Gas.NA
OFH2021Q2.A000083,07/01/2020,Corona Energy,COMMERCIAL SUPPLIER,959.61,D10105,EMU CORPORATE ENERGY CONTRACTS,FINANCE & INVESTMENT,FINANCE & PROPERTY,PROCUREMENT,CONTRACT SERVICES,GAS,06/19/2020,Utilities.Gas.NA
OFH2021Q2.A000084,07/01/2020,Corona Energy,COMMERCIAL SUPPLIER,891.58,D10105,EMU CORPORATE ENERGY CONTRACTS,FINANCE & INVESTMENT,FINANCE & PROPERTY,PROCUREMENT,CONTRACT SERVICES,GAS,06/19/2020,Utilities.Gas.NA
OFH2021Q2.A000085,07/01/2020,Corona Energy,COMMERCIAL SUPPLIER,523.67,D10105,EMU CORPORATE ENERGY CONTRACTS,FINANCE & INVESTMENT,FINANCE & PROPERTY,PROCUREMENT,CONTRACT SERVICES,GAS,06/30/2020,Utilities.Gas.NA
OFH2021Q2.A000086,07/01/2020,Corona Energy,COMMERCIAL SUPPLIER,5903.14,D10105,EMU CORPORATE ENERGY CONTRACTS,FINANCE & INVESTMENT,FINANCE & PROPERTY,PROCUREMENT,CONTRACT SERVICES,GAS,06/30/2020,Utilities.Gas.NA
OFH2021Q2.A000087,07/01/2020,Corona Energy,COMMERCIAL SUPPLIER,1051.91,D10105,EMU CORPORATE ENERGY CONTRACTS,FINANCE & INVESTMENT,FINANCE & PROPERTY,PROCUREMENT,CONTRACT SERVICES,GAS,06/30/2020,Utilities.Gas.NA
OFH2021Q2.A000088,07/01/2020,Corona Energy,COMMERCIAL SUPPLIER,1458.38,D10105,EMU CORPORATE ENERGY CONTRACTS,FINANCE & INVESTMENT,FINANCE & PROPERTY,PROCUREMENT,CONTRACT SERVICES,GAS,06/30/2020,Utilities.Gas.NA
OFH2021Q2.A000089,07/01/2020,Corona Energy,COMMERCIAL SUPPLIER,7580.11,D10105,EMU CORPORATE ENERGY CONTRACTS,FINANCE & INVESTMENT,FINANCE & PROPERTY,PROCUREMENT,CONTRACT SERVICES,GAS,06/30/2020,Utilities.Gas.NA
OFH2021Q2.A000090,07/01/2020,Corona Energy,COMMERCIAL SUPPLIER,1952.44,D10105,EMU CORPORATE ENERGY CONTRACTS,FINANCE & INVESTMENT,FINANCE & PROPERTY,PROCUREMENT,CONTRACT SERVICES,GAS,06/30/2020,Utilities.Gas.NA
OFH2021Q2.A000091,07/01/2020,Corona Energy,COMMERCIAL SUPPLIER,805.19,D10105,EMU CORPORATE ENERGY CONTRACTS,FINANCE & INVESTMENT,FINANCE & PROPERTY,PROCUREMENT,CONTRACT SERVICES,GAS,06/30/2020,Utilities.Gas.NA
OFH2021Q2.A000092,07/01/2020,Corona Energy,COMMERCIAL SUPPLIER,6984.27,D10105,EMU CORPORATE ENERGY CONTRACTS,FINANCE & INVESTMENT,FINANCE & PROPERTY,PROCUREMENT,CONTRACT SERVICES,GAS,06/30/2020,Utilities.Gas.NA
OFH2021Q2.A000093,07/01/2020,Corona Energy,COMMERCIAL SUPPLIER,1404.1,D10105,EMU CORPORATE ENERGY CONTRACTS,FINANCE & INVESTMENT,FINANCE & PROPERTY,PROCUREMENT,CONTRACT SERVICES,GAS,06/30/2020,Utilities.Gas.NA
OFH2021Q2.A000094,07/01/2020,Corona Energy,COMMERCIAL SUPPLIER,1415.29,D10105,EMU CORPORATE ENERGY CONTRACTS,FINANCE & INVESTMENT,FINANCE & PROPERTY,PROCUREMENT,CONTRACT SERVICES,GAS,06/30/2020,Utilities.Gas.NA
OFH2021Q2.A000095,07/01/2020,Corona Energy,COMMERCIAL SUPPLIER,974.78,D10105,EMU CORPORATE ENERGY CONTRACTS,FINANCE & INVESTMENT,FINANCE & PROPERTY,PROCUREMENT,CONTRACT SERVICES,GAS,06/30/2020,Utilities.Gas.NA
OFH2021Q2.A000096,07/01/2020,Corona Energy,COMMERCIAL SUPPLIER,1061.41,D10105,EMU CORPORATE ENERGY CONTRACTS,FINANCE & INVESTMENT,FINANCE & PROPERTY,PROCUREMENT,CONTRACT SERVICES,GAS,06/30/2020,Utilities.Gas.NA
OFH2021Q2.A000097,07/01/2020,Corona Energy,COMMERCIAL SUPPLIER,772.21,D10105,EMU CORPORATE ENERGY CONTRACTS,FINANCE & INVESTMENT,FINANCE & PROPERTY,PROCUREMENT,CONTRACT SERVICES,GAS,06/30/2020,Utilities.Gas.NA
OFH2021Q2.A000098,07/01/2020,Corona Energy,COMMERCIAL SUPPLIER,1537.44,D10105,EMU CORPORATE ENERGY CONTRACTS,FINANCE & INVESTMENT,FINANCE & PROPERTY,PROCUREMENT,CONTRACT SERVICES,GAS,06/30/2020,Utilities.Gas.NA
OFH2021Q2.A000099,07/01/2020,Corona Energy,COMMERCIAL SUPPLIER,648.5,D10105,EMU CORPORATE ENERGY CONTRACTS,FINANCE & INVESTMENT,FINANCE & PROPERTY,PROCUREMENT,CONTRACT SERVICES,GAS,06/30/2020,Utilities.Gas.NA
OFH2021Q2.A000100,07/01/2020,Corona Energy,COMMERCIAL SUPPLIER,500.57,D10105,EMU CORPORATE ENERGY CONTRACTS,FINANCE & INVESTMENT,FINANCE & PROPERTY,PROCUREMENT,CONTRACT SERVICES,GAS,06/30/2020,Utilities.Gas.NA
OFH2021Q2.A000101,07/01/2020,Corona Energy,COMMERCIAL SUPPLIER,1124.09,D10105,EMU CORPORATE ENERGY CONTRACTS,FINANCE & INVESTMENT,FINANCE & PROPERTY,PROCUREMENT,CONTRACT SERVICES,GAS,06/30/2020,Utilities.Gas.NA
OFH2021Q2.A000102,07/01/2020,Corona Energy,COMMERCIAL SUPPLIER,1617.92,D10105,EMU CORPORATE ENERGY CONTRACTS,FINANCE & INVESTMENT,FINANCE & PROPERTY,PROCUREMENT,CONTRACT SERVICES,GAS,06/30/2020,Utilities.Gas.NA
OFH2021Q2.A000103,07/01/2020,Corona Energy,COMMERCIAL SUPPLIER,771.86,D10105,EMU CORPORATE ENERGY CONTRACTS,FINANCE & INVESTMENT,FINANCE & PROPERTY,PROCUREMENT,CONTRACT SERVICES,GAS,06/30/2020,Utilities.Gas.NA
OFH2021Q2.A000104,07/01/2020,Corona Energy,COMMERCIAL SUPPLIER,683.24,D10105,EMU CORPORATE ENERGY CONTRACTS,FINANCE & INVESTMENT,FINANCE & PROPERTY,PROCUREMENT,CONTRACT SERVICES,GAS,06/30/2020,Utilities.Gas.NA
OFH2021Q2.A000105,07/01/2020,Corona Energy,COMMERCIAL SUPPLIER,675.55,D10105,EMU CORPORATE ENERGY CONTRACTS,FINANCE & INVESTMENT,FINANCE & PROPERTY,PROCUREMENT,CONTRACT SERVICES,GAS,06/30/2020,Utilities.Gas.NA
OFH2021Q2.A000106,07/01/2020,Corona Energy,COMMERCIAL SUPPLIER,1889.66,D10105,EMU CORPORATE ENERGY CONTRACTS,FINANCE & INVESTMENT,FINANCE & PROPERTY,PROCUREMENT,CONTRACT SERVICES,GAS,06/30/2020,Utilities.Gas.NA
OFH2021Q2.A000107,07/01/2020,Corona Energy,COMMERCIAL SUPPLIER,632.16,D10105,EMU CORPORATE ENERGY CONTRACTS,FINANCE & INVESTMENT,FINANCE & PROPERTY,PROCUREMENT,CONTRACT SERVICES,GAS,06/30/2020,Utilities.Gas.NA
OFH2021Q2.A000108,07/01/2020,Corona Energy,COMMERCIAL SUPPLIER,1961.38,D10105,EMU CORPORATE ENERGY CONTRACTS,FINANCE & INVESTMENT,FINANCE & PROPERTY,PROCUREMENT,CONTRACT SERVICES,GAS,06/30/2020,Utilities.Gas.NA
OFH2021Q2.A000109,07/01/2020,Corona Energy,COMMERCIAL SUPPLIER,-1773.46,D10105,EMU CORPORATE ENERGY CONTRACTS,FINANCE & INVESTMENT,FINANCE & PROPERTY,PROCUREMENT,CONTRACT SERVICES,GAS,06/30/2020,Utilities.Gas.NA
OFH2021Q2.A000110,07/01/2020,Corona Energy,COMMERCIAL SUPPLIER,644.97,D10105,EMU CORPORATE ENERGY CONTRACTS,FINANCE & INVESTMENT,FINANCE & PROPERTY,PROCUREMENT,CONTRACT SERVICES,GAS,06/30/2020,Utilities.Gas.NA
OFH2021Q2.A000111,07/01/2020,Corona Energy,COMMERCIAL SUPPLIER,1780.05,D10105,EMU CORPORATE ENERGY CONTRACTS,FINANCE & INVESTMENT,FINANCE & PROPERTY,PROCUREMENT,CONTRACT SERVICES,GAS,06/30/2020,Utilities.Gas.NA
OFH2021Q2.A000112,07/01/2020,Corona Energy,COMMERCIAL SUPPLIER,1526.73,D10105,EMU CORPORATE ENERGY CONTRACTS,FINANCE & INVESTMENT,FINANCE & PROPERTY,PROCUREMENT,CONTRACT SERVICES,GAS,06/30/2020,Utilities.Gas.NA
OFH2021Q2.A000113,07/01/2020,Corona Energy,COMMERCIAL SUPPLIER,529.87,D10105,EMU CORPORATE ENERGY CONTRACTS,FINANCE & INVESTMENT,FINANCE & PROPERTY,PROCUREMENT,CONTRACT SERVICES,GAS,06/30/2020,Utilities.Gas.NA
OFH2021Q2.A000114,07/01/2020,Corona Energy,COMMERCIAL SUPPLIER,979.1,D10105,EMU CORPORATE ENERGY CONTRACTS,FINANCE & INVESTMENT,FINANCE & PROPERTY,PROCUREMENT,CONTRACT SERVICES,GAS,06/30/2020,Utilities.Gas.NA
OFH2021Q2.A000115,07/01/2020,Corona Energy,COMMERCIAL SUPPLIER,939.46,D10105,EMU CORPORATE ENERGY CONTRACTS,FINANCE & INVESTMENT,FINANCE & PROPERTY,PROCUREMENT,CONTRACT SERVICES,GAS,06/30/2020,Utilities.Gas.NA
OFH2021Q2.A000116,07/01/2020,Corona Energy,COMMERCIAL SUPPLIER,4485.78,D10105,EMU CORPORATE ENERGY CONTRACTS,FINANCE & INVESTMENT,FINANCE & PROPERTY,PROCUREMENT,CONTRACT SERVICES,GAS,06/30/2020,Utilities.Gas.NA
OFH2021Q2.A000117,07/01/2020,Corona Energy,COMMERCIAL SUPPLIER,793.14,D10105,EMU CORPORATE ENERGY CONTRACTS,FINANCE & INVESTMENT,FINANCE & PROPERTY,PROCUREMENT,CONTRACT SERVICES,GAS,06/30/2020,Utilities.Gas.NA
OFH2021Q2.A000118,07/01/2020,Corona Energy,COMMERCIAL SUPPLIER,617.55,D10105,EMU CORPORATE ENERGY CONTRACTS,FINANCE & INVESTMENT,FINANCE & PROPERTY,PROCUREMENT,CONTRACT SERVICES,GAS,06/30/2020,Utilities.Gas.NA
OFH2021Q2.A000119,07/01/2020,Corona Energy,COMMERCIAL SUPPLIER,1203.61,D10105,EMU CORPORATE ENERGY CONTRACTS,FINANCE & INVESTMENT,FINANCE & PROPERTY,PROCUREMENT,CONTRACT SERVICES,GAS,06/30/2020,Utilities.Gas.NA
OFH2021Q2.A000120,07/01/2020,Corona Energy,COMMERCIAL SUPPLIER,791.79,D10105,EMU CORPORATE ENERGY CONTRACTS,FINANCE & INVESTMENT,FINANCE & PROPERTY,PROCUREMENT,CONTRACT SERVICES,GAS,06/30/2020,Utilities.Gas.NA
OFH2021Q2.A000121,07/01/2020,Corona Energy,COMMERCIAL SUPPLIER,1422.62,D10105,EMU CORPORATE ENERGY CONTRACTS,FINANCE & INVESTMENT,FINANCE & PROPERTY,PROCUREMENT,CONTRACT SERVICES,GAS,06/30/2020,Utilities.Gas.NA
OFH2021Q2.A000122,07/01/2020,Corona Energy,COMMERCIAL SUPPLIER,2387.21,D10105,EMU CORPORATE ENERGY CONTRACTS,FINANCE & INVESTMENT,FINANCE & PROPERTY,PROCUREMENT,CONTRACT SERVICES,GAS,06/30/2020,Utilities.Gas.NA
OFH2021Q2.A000123,07/01/2020,Corona Energy,COMMERCIAL SUPPLIER,1449.09,D10105,EMU CORPORATE ENERGY CONTRACTS,FINANCE & INVESTMENT,FINANCE & PROPERTY,PROCUREMENT,CONTRACT SERVICES,GAS,06/30/2020,Utilities.Gas.NA
OFH2021Q2.A000124,07/01/2020,Corona Energy,COMMERCIAL SUPPLIER,1205.88,D10105,EMU CORPORATE ENERGY CONTRACTS,FINANCE & INVESTMENT,FINANCE & PROPERTY,PROCUREMENT,CONTRACT SERVICES,GAS,06/30/2020,Utilities.Gas.NA
OFH2021Q2.A000125,07/01/2020,Corona Energy,COMMERCIAL SUPPLIER,2329.43,D10105,EMU CORPORATE ENERGY CONTRACTS,FINANCE & INVESTMENT,FINANCE & PROPERTY,PROCUREMENT,CONTRACT SERVICES,GAS,06/30/2020,Utilities.Gas.NA
OFH2021Q2.A000126,07/01/2020,Corona Energy,COMMERCIAL SUPPLIER,1241.59,D10105,EMU CORPORATE ENERGY CONTRACTS,FINANCE & INVESTMENT,FINANCE & PROPERTY,PROCUREMENT,CONTRACT SERVICES,GAS,06/30/2020,Utilities.Gas.NA
OFH2021Q2.A000127,07/01/2020,Corona Energy,COMMERCIAL SUPPLIER,1658.33,D10105,EMU CORPORATE ENERGY CONTRACTS,FINANCE & INVESTMENT,FINANCE & PROPERTY,PROCUREMENT,CONTRACT SERVICES,GAS,06/30/2020,Utilities.Gas.NA
OFH2021Q2.A000128,07/01/2020,Corona Energy,COMMERCIAL SUPPLIER,2791.99,D10105,EMU CORPORATE ENERGY CONTRACTS,FINANCE & INVESTMENT,FINANCE & PROPERTY,PROCUREMENT,CONTRACT SERVICES,GAS,06/30/2020,Utilities.Gas.NA
OFH2021Q2.A000129,07/01/2020,Corona Energy,COMMERCIAL SUPPLIER,2204.27,D10105,EMU CORPORATE ENERGY CONTRACTS,FINANCE & INVESTMENT,FINANCE & PROPERTY,PROCUREMENT,CONTRACT SERVICES,GAS,06/30/2020,Utilities.Gas.NA
OFH2021Q2.A000130,07/01/2020,Corona Energy,COMMERCIAL SUPPLIER,4413.94,D10105,EMU CORPORATE ENERGY CONTRACTS,FINANCE & INVESTMENT,FINANCE & PROPERTY,PROCUREMENT,CONTRACT SERVICES,GAS,06/30/2020,Utilities.Gas.NA
OFH2021Q2.A000131,07/01/2020,Corona Energy,COMMERCIAL SUPPLIER,6158.36,D10105,EMU CORPORATE ENERGY CONTRACTS,FINANCE & INVESTMENT,FINANCE & PROPERTY,PROCUREMENT,CONTRACT SERVICES,GAS,06/30/2020,Utilities.Gas.NA
OFH2021Q2.A000132,07/01/2020,Corona Energy,COMMERCIAL SUPPLIER,557.72,D10105,EMU CORPORATE ENERGY CONTRACTS,FINANCE & INVESTMENT,FINANCE & PROPERTY,PROCUREMENT,CONTRACT SERVICES,GAS,06/30/2020,Utilities.Gas.NA
OFH2021Q2.A000133,07/01/2020,Corona Energy,COMMERCIAL SUPPLIER,501.62,D10105,EMU CORPORATE ENERGY CONTRACTS,FINANCE & INVESTMENT,FINANCE & PROPERTY,PROCUREMENT,CONTRACT SERVICES,GAS,06/30/2020,Utilities.Gas.NA
OFH2021Q2.A000134,07/01/2020,Corona Energy,COMMERCIAL SUPPLIER,2199.05,D10105,EMU CORPORATE ENERGY CONTRACTS,FINANCE & INVESTMENT,FINANCE & PROPERTY,PROCUREMENT,CONTRACT SERVICES,GAS,06/30/2020,Utilities.Gas.NA
OFH2021Q2.A000135,07/01/2020,Corona Energy,COMMERCIAL SUPPLIER,798.77,D10105,EMU CORPORATE ENERGY CONTRACTS,FINANCE & INVESTMENT,FINANCE & PROPERTY,PROCUREMENT,CONTRACT SERVICES,GAS,06/30/2020,Utilities.Gas.NA
OFH2021Q2.A000136,07/01/2020,Corona Energy,COMMERCIAL SUPPLIER,837.55,D10105,EMU CORPORATE ENERGY CONTRACTS,FINANCE & INVESTMENT,FINANCE & PROPERTY,PROCUREMENT,CONTRACT SERVICES,GAS,06/30/2020,Utilities.Gas.NA
OFH2021Q2.A000137,07/01/2020,Corona Energy,COMMERCIAL SUPPLIER,920.95,D10105,EMU CORPORATE ENERGY CONTRACTS,FINANCE & INVESTMENT,FINANCE & PROPERTY,PROCUREMENT,CONTRACT SERVICES,GAS,06/30/2020,Utilities.Gas.NA
OFH2021Q2.A000138,07/01/2020,Corona Energy,COMMERCIAL SUPPLIER,897.55,D10105,EMU CORPORATE ENERGY CONTRACTS,FINANCE & INVESTMENT,FINANCE & PROPERTY,PROCUREMENT,CONTRACT SERVICES,GAS,06/30/2020,Utilities.Gas.NA
OFH2021Q2.A000139,07/01/2020,Corona Energy,COMMERCIAL SUPPLIER,1390.43,D10105,EMU CORPORATE ENERGY CONTRACTS,FINANCE & INVESTMENT,FINANCE & PROPERTY,PROCUREMENT,CONTRACT SERVICES,GAS,06/30/2020,Utilities.Gas.NA
OFH2021Q2.A000140,07/01/2020,Corona Energy,COMMERCIAL SUPPLIER,990.37,D10105,EMU CORPORATE ENERGY CONTRACTS,FINANCE & INVESTMENT,FINANCE & PROPERTY,PROCUREMENT,CONTRACT SERVICES,GAS,06/30/2020,Utilities.Gas.NA
OFH2021Q2.A000141,07/01/2020,Corona Energy,COMMERCIAL SUPPLIER,2110.41,D10105,EMU CORPORATE ENERGY CONTRACTS,FINANCE & INVESTMENT,FINANCE & PROPERTY,PROCUREMENT,CONTRACT SERVICES,GAS,06/30/2020,Utilities.Gas.NA
OFH2021Q2.A000142,07/01/2020,Corona Energy,COMMERCIAL SUPPLIER,2511.28,D10105,EMU CORPORATE ENERGY CONTRACTS,FINANCE & INVESTMENT,FINANCE & PROPERTY,PROCUREMENT,CONTRACT SERVICES,GAS,06/30/2020,Utilities.Gas.NA
OFH2021Q2.A000143,07/01/2020,Corona Energy,COMMERCIAL SUPPLIER,1443.44,D10105,EMU CORPORATE ENERGY CONTRACTS,FINANCE & INVESTMENT,FINANCE & PROPERTY,PROCUREMENT,CONTRACT SERVICES,GAS,06/30/2020,Utilities.Gas.NA
OFH2021Q2.A000144,07/01/2020,Corona Energy,COMMERCIAL SUPPLIER,2986.83,D10105,EMU CORPORATE ENERGY CONTRACTS,FINANCE & INVESTMENT,FINANCE & PROPERTY,PROCUREMENT,CONTRACT SERVICES,GAS,06/30/2020,Utilities.Gas.NA
OFH2021Q2.A000145,07/01/2020,Corona Energy,COMMERCIAL SUPPLIER,1276.33,D10105,EMU CORPORATE ENERGY CONTRACTS,FINANCE & INVESTMENT,FINANCE & PROPERTY,PROCUREMENT,CONTRACT SERVICES,GAS,06/30/2020,Utilities.Gas.NA
OFH2021Q2.A000146,07/01/2020,Corona Energy,COMMERCIAL SUPPLIER,1603.82,D10105,EMU CORPORATE ENERGY CONTRACTS,FINANCE & INVESTMENT,FINANCE & PROPERTY,PROCUREMENT,CONTRACT SERVICES,GAS,06/30/2020,Utilities.Gas.NA
OFH2021Q2.A000147,07/01/2020,Corona Energy,COMMERCIAL SUPPLIER,810.72,D10105,EMU CORPORATE ENERGY CONTRACTS,FINANCE & INVESTMENT,FINANCE & PROPERTY,PROCUREMENT,CONTRACT SERVICES,GAS,06/30/2020,Utilities.Gas.NA
OFH2021Q2.A000148,07/01/2020,Corona Energy,COMMERCIAL SUPPLIER,914.21,D10105,EMU CORPORATE ENERGY CONTRACTS,FINANCE & INVESTMENT,FINANCE & PROPERTY,PROCUREMENT,CONTRACT SERVICES,GAS,06/30/2020,Utilities.Gas.NA
OFH2021Q2.A000149,07/01/2020,Corona Energy,COMMERCIAL SUPPLIER,518.83,D10105,EMU CORPORATE ENERGY CONTRACTS,FINANCE & INVESTMENT,FINANCE & PROPERTY,PROCUREMENT,CONTRACT SERVICES,GAS,06/30/2020,Utilities.Gas.NA
OFH2021Q2.A000150,07/01/2020,Corona Energy,COMMERCIAL SUPPLIER,1407.32,D10105,EMU CORPORATE ENERGY CONTRACTS,FINANCE & INVESTMENT,FINANCE & PROPERTY,PROCUREMENT,CONTRACT SERVICES,GAS,06/30/2020,Utilities.Gas.NA
OFH2021Q2.A000151,07/01/2020,Corona Energy,COMMERCIAL SUPPLIER,592.74,D10105,EMU CORPORATE ENERGY CONTRACTS,FINANCE & INVESTMENT,FINANCE & PROPERTY,PROCUREMENT,CONTRACT SERVICES,GAS,06/30/2020,Utilities.Gas.NA
OFH2021Q2.A000152,07/01/2020,Corona Energy,COMMERCIAL SUPPLIER,885.93,D10105,EMU CORPORATE ENERGY CONTRACTS,FINANCE & INVESTMENT,FINANCE & PROPERTY,PROCUREMENT,CONTRACT SERVICES,GAS,06/30/2020,Utilities.Gas.NA
OFH2021Q2.A000153,07/01/2020,Corona Energy,COMMERCIAL SUPPLIER,1857.17,D10105,EMU CORPORATE ENERGY CONTRACTS,FINANCE & INVESTMENT,FINANCE & PROPERTY,PROCUREMENT,CONTRACT SERVICES,GAS,06/30/2020,Utilities.Gas.NA
OFH2021Q2.A000154,07/01/2020,Earth Creative Strategies,COMMERCIAL SUPPLIER,4924,D14217,ENVIRONMENTAL QUALITY,RESIDENT SERVICES (GF),ENVIRONMENT & STREETSCENE,ENVIRONMENTAL SERVICES,ENVIRONMENTAL SERVICES,"ADVERTISING, PUBLICITY AND MARKETING",04/22/2020,Facilities & Management .Advertising.NA
OFH2021Q2.A000155,07/01/2020,Earth Creative Strategies,COMMERCIAL SUPPLIER,4924,D14217,ENVIRONMENTAL QUALITY,RESIDENT SERVICES (GF),ENVIRONMENT & STREETSCENE,ENVIRONMENTAL SERVICES,ENVIRONMENTAL SERVICES,"ADVERTISING, PUBLICITY AND MARKETING",04/29/2020,Facilities & Management .Advertising.NA
OFH2021Q2.A000156,07/01/2020,F D Welters Ltd,COMMERCIAL SUPPLIER,859.85,D14841,CEMS & CREMS,RESIDENT SERVICES (GF),ENVIRONMENT & STREETSCENE,"NEIGHBOURHOODS (PARKS, LEISURE & CEMETERIES)",BEREAVEMENT SERVICES,CREMATION AND BURIAL COSTS,06/26/2020,Cemetery & Crematorium.Burial & Cremation.Burial
OFH2021Q2.A000157,07/01/2020,F D Welters Ltd,COMMERCIAL SUPPLIER,740.53,D14841,CEMS & CREMS,RESIDENT SERVICES (GF),ENVIRONMENT & STREETSCENE,"NEIGHBOURHOODS (PARKS, LEISURE & CEMETERIES)",BEREAVEMENT SERVICES,CREMATION AND BURIAL COSTS,06/26/2020,Cemetery & Crematorium.Burial & Cremation.Burial
OFH2021Q2.A000158,07/01/2020,Gillingham Football Club Community Trust School,COMMERCIAL SUPPLIER,2842.08,D13155,INDEPENDENT & NON-MAINTAINED SCHOOLS,EDUCATION & LEARNING (DSG),EDUCATION & LEARNING (DSG),EDUCATION & LEARNING (DSG),DSG HIGH NEEDS BLOCK,PRIVATE CONTRACTORS PAYMENT - OTHER,06/29/2020,
OFH2021Q2.A000159,07/01/2020,Lambeth College,COMMERCIAL SUPPLIER,16789.52,D13167,TOP-UPS FE SEND,EDUCATION & LEARNING (DSG),EDUCATION & LEARNING (DSG),EDUCATION & LEARNING (DSG),DSG HIGH NEEDS BLOCK,PRIVATE CONTRACTORS PAYMENT - OTHER,06/26/2020,
OFH2021Q2.A000160,07/01/2020,Lambeth College,COMMERCIAL SUPPLIER,632.38,D13167,TOP-UPS FE SEND,EDUCATION & LEARNING (DSG),EDUCATION & LEARNING (DSG),EDUCATION & LEARNING (DSG),DSG HIGH NEEDS BLOCK,PRIVATE CONTRACTORS PAYMENT - OTHER,06/26/2020,
OFH2021Q2.A000161,07/01/2020,Lambeth College,COMMERCIAL SUPPLIER,16789.52,D13167,TOP-UPS FE SEND,EDUCATION & LEARNING (DSG),EDUCATION & LEARNING (DSG),EDUCATION & LEARNING (DSG),DSG HIGH NEEDS BLOCK,PRIVATE CONTRACTORS PAYMENT - OTHER,06/26/2020,
OFH2021Q2.A000162,07/01/2020,Lambeth College,COMMERCIAL SUPPLIER,16789.52,D13167,TOP-UPS FE SEND,EDUCATION & LEARNING (DSG),EDUCATION & LEARNING (DSG),EDUCATION & LEARNING (DSG),DSG HIGH NEEDS BLOCK,PRIVATE CONTRACTORS PAYMENT - OTHER,06/26/2020,
OFH2021Q2.A000163,07/01/2020,Lambeth College,COMMERCIAL SUPPLIER,632.39,D13167,TOP-UPS FE SEND,EDUCATION & LEARNING (DSG),EDUCATION & LEARNING (DSG),EDUCATION & LEARNING (DSG),DSG HIGH NEEDS BLOCK,PRIVATE CONTRACTORS PAYMENT - OTHER,06/26/2020,
OFH2021Q2.A000164,07/01/2020,Lambeth College,COMMERCIAL SUPPLIER,632.39,D13167,TOP-UPS FE SEND,EDUCATION & LEARNING (DSG),EDUCATION & LEARNING (DSG),EDUCATION & LEARNING (DSG),DSG HIGH NEEDS BLOCK,PRIVATE CONTRACTORS PAYMENT - OTHER,06/26/2020,
OFH2021Q2.A000165,07/01/2020,Lambeth College,COMMERCIAL SUPPLIER,7398.84,D13167,TOP-UPS FE SEND,EDUCATION & LEARNING (DSG),EDUCATION & LEARNING (DSG),EDUCATION & LEARNING (DSG),DSG HIGH NEEDS BLOCK,PRIVATE CONTRACTORS PAYMENT - OTHER,06/29/2020,
OFH2021Q2.A000166,07/01/2020,Lambeth College,COMMERCIAL SUPPLIER,13077.22,D13167,TOP-UPS FE SEND,EDUCATION & LEARNING (DSG),EDUCATION & LEARNING (DSG),EDUCATION & LEARNING (DSG),DSG HIGH NEEDS BLOCK,PRIVATE CONTRACTORS PAYMENT - OTHER,06/29/2020,
OFH2021Q2.A000167,07/01/2020,Lambeth College,COMMERCIAL SUPPLIER,22873.09,D13167,TOP-UPS FE SEND,EDUCATION & LEARNING (DSG),EDUCATION & LEARNING (DSG),EDUCATION & LEARNING (DSG),DSG HIGH NEEDS BLOCK,PRIVATE CONTRACTORS PAYMENT - OTHER,06/29/2020,
OFH2021Q2.A000168,07/01/2020,Lambeth College,COMMERCIAL SUPPLIER,137521.44,D13167,TOP-UPS FE SEND,EDUCATION & LEARNING (DSG),EDUCATION & LEARNING (DSG),EDUCATION & LEARNING (DSG),DSG HIGH NEEDS BLOCK,PRIVATE CONTRACTORS PAYMENT - OTHER,06/29/2020,
OFH2021Q2.A000169,07/01/2020,Lambeth Elfrida Rathbone Society,COMMERCIAL SUPPLIER,8635,D13352,YOUTH & PLAY EXTERNAL PROVIDERS & TUPE STAFF,CHILDREN'S SERVICES,CHILDREN'S COMMISSIONING & COMMUNITY SAFETY,ADVENTURE PLAYGROUNDS & ONE O'CLOCK CLUB,EARLY ADOPTER PROGRAMMES,PRIVATE CONTRACTORS PAYMENT - OTHER,06/08/2020,Social Community Care-Children.Community Based Services.Voluntary Sector Support Services e.g. Activities
OFH2021Q2.A000170,07/01/2020,Mears Group Plc,COMMERCIAL SUPPLIER,80694.25,D19998,CAPITAL COST CENTRE,RESIDENT SERVICES (HRA),STRATEGIC PROGRAMMES (HRA),HOUSING CAPITAL & ASSET MANAGEMENT,CAPITAL DELIVERY TEAM,R & M MAJOR WORKS,06/30/2020,"Works - Construction, R & M.Buildings.Repair & Maintenance"
OFH2021Q2.A000171,07/01/2020,Mears Group Plc,COMMERCIAL SUPPLIER,34277.32,D19998,CAPITAL COST CENTRE,RESIDENT SERVICES (HRA),STRATEGIC PROGRAMMES (HRA),HOUSING CAPITAL & ASSET MANAGEMENT,CAPITAL DELIVERY TEAM,R & M MAJOR WORKS,06/30/2020,"Works - Construction, R & M.Buildings.NA"
OFH2021Q2.A000172,07/01/2020,Merton & Lambeth Citizens Advice Bureaux Ltd,COMMERCIAL SUPPLIER,7500,D10741,REVENUES,RESIDENT SERVICES (GF),RESIDENTS EXPERIENCE & DIGITAL,REVENUE & BENEFITS,REVENUES,PROFESSIONAL SERVICES - GENERAL,06/04/2020,Human Resources.Professional & Advisory Services.NA
OFH2021Q2.A000173,07/01/2020,OutSystems Limited,COMMERCIAL SUPPLIER,68000,D10101,CONTRACT SERVICES,FINANCE & INVESTMENT,FINANCE & PROPERTY,PROCUREMENT,CONTRACT SERVICES,ICT MAINTENANCE AND SUPPORT,05/12/2020,Information Communication Tech.Services.Application Service Provision
OFH2021Q2.A000174,07/01/2020,Posturite (UK) Ltd,COMMERCIAL SUPPLIER,4125.9,D12550,OP HOSPITALS TEAM,ADULTS & HEALTH,ADULT SOCIAL CARE,OLDER PEOPLE,OP SERVICES,"PURCHASE - EQUIPMENT, FURNITURE AND MATERIALS",06/11/2020,Furniture & Soft Furnishings.Office Furniture.NA
OFH2021Q2.A000175,07/01/2020,Posturite (UK) Ltd,COMMERCIAL SUPPLIER,4125.9,D12550,OP HOSPITALS TEAM,ADULTS & HEALTH,ADULT SOCIAL CARE,OLDER PEOPLE,OP SERVICES,"PURCHASE - EQUIPMENT, FURNITURE AND MATERIALS",06/11/2020,Furniture & Soft Furnishings.Office Furniture.NA
OFH2021Q2.A000176,07/01/2020,Posturite (UK) Ltd,COMMERCIAL SUPPLIER,996,D10044,HEALTH & SAFETY,FINANCE & INVESTMENT,HUMAN RESOURCES & ORGANISATIONAL DEVELOPMENT,HUMAN RESOURCES & ORGANISATIONAL DEVELOPMENT,RESILIENCE AND HEALTH & SAFETY,HEALTH AND SAFETY WORKS,06/22/2020,Health & Safety.Products.NA
OFH2021Q2.A000177,07/01/2020,PPG Architectural Coating UK Ltd,COMMERCIAL SUPPLIER,553.44,D14212,GRIMEBUSTERS & PEST CONTROL,RESIDENT SERVICES (GF),ENVIRONMENT & STREETSCENE,ENVIRONMENTAL SERVICES,ENVIRONMENTAL SERVICES,SPECIALIST EQUIPMENT FOR SERVICE PROVISION,06/15/2020,Street & Traffic Management.Parking.NA
OFH2021Q2.A000178,07/01/2020,PPG Architectural Coating UK Ltd,COMMERCIAL SUPPLIER,835.88,D14212,GRIMEBUSTERS & PEST CONTROL,RESIDENT SERVICES (GF),ENVIRONMENT & STREETSCENE,ENVIRONMENTAL SERVICES,ENVIRONMENTAL SERVICES,SPECIALIST EQUIPMENT FOR SERVICE PROVISION,06/15/2020,Street & Traffic Management.Parking.NA
OFH2021Q2.A000179,07/01/2020,Remedy Law,COMMERCIAL SUPPLIER,3144,D10356,REDRESS SCHEME,FINANCE & INVESTMENT,FINANCE & PROPERTY,IMPROVEMENT RISK AND INSURANCE,IMPROVEMENT RISK AND INSURANCE,COMPENSATION,06/29/2020,
OFH2021Q2.A000180,07/01/2020,Remedy Law,COMMERCIAL SUPPLIER,6000,D10356,REDRESS SCHEME,FINANCE & INVESTMENT,FINANCE & PROPERTY,IMPROVEMENT RISK AND INSURANCE,IMPROVEMENT RISK AND INSURANCE,COMPENSATION,06/29/2020,
OFH2021Q2.A000181,07/01/2020,TGSUKLtd,COMMERCIAL SUPPLIER,890,D14752,PARKS,RESIDENT SERVICES (GF),ENVIRONMENT & STREETSCENE,"NEIGHBOURHOODS (PARKS, LEISURE & CEMETERIES)",PARKS & LEISURE SERVICES,"PURCHASE - EQUIPMENT, FURNITURE AND MATERIALS",06/30/2020,Horticultural.Tools & Equipment.Purchase
OFH2021Q2.A000182,07/01/2020,WSP Group Ltd,COMMERCIAL SUPPLIER,19812,D14513,POLICY & PLACE SHAPING,SUSTAINABLE GROWTH & OPPORTUNITY,"DEVELOPMENT, PLANNING & HOUSING GROWTH","PLANNING, TRANSPORT & SUSTAINABILITY",PLANNING,CONSULTANCY FEES,06/24/2020,Consultancy.Efficiency.NA
OFH2021Q2.A000183,07/01/2020,*******,DIRECT PAYMENTS,195,D13082,LAC PLACEMENT-IN-HOUSE FOSTERING,CHILDREN'S SERVICES,CHILDREN'S SOCIAL CARE,CORPORATE PARENTING,FOSTERING & PERMANENCY,CLIENT ALLOWANCES - SOCIAL SERVICES,07/01/2020,
OFH2021Q2.A000184,07/01/2020,*******,DIRECT PAYMENTS,399.05,D13082,LAC PLACEMENT-IN-HOUSE FOSTERING,CHILDREN'S SERVICES,CHILDREN'S SOCIAL CARE,CORPORATE PARENTING,FOSTERING & PERMANENCY,IN HOUSE FOSTER CARE PLACEMENTS - PRIVATE CONTRACTORS PAYMENT,07/01/2020,
OFH2021Q2.A000185,07/01/2020,*******,DIRECT PAYMENTS,607.54,D13084,LAC PLACEMENT-CONNECTED PERSONS FOSTERIN,CHILDREN'S SERVICES,CHILDREN'S SOCIAL CARE,CORPORATE PARENTING,FOSTERING & PERMANENCY,IN HOUSE FOSTER CARE PLACEMENTS - PRIVATE CONTRACTORS PAYMENT,07/01/2020,
OFH2021Q2.A000186,07/01/2020,*******,DIRECT PAYMENTS,619.01,D13082,LAC PLACEMENT-IN-HOUSE FOSTERING,CHILDREN'S SERVICES,CHILDREN'S SOCIAL CARE,CORPORATE PARENTING,FOSTERING & PERMANENCY,IN HOUSE FOSTER CARE PLACEMENTS - PRIVATE CONTRACTORS PAYMENT,07/01/2020,
OFH2021Q2.A000187,07/01/2020,*******,DIRECT PAYMENTS,-1388.67,D13082,LAC PLACEMENT-IN-HOUSE FOSTERING,CHILDREN'S SERVICES,CHILDREN'S SOCIAL CARE,CORPORATE PARENTING,FOSTERING & PERMANENCY,IN HOUSE FOSTER CARE PLACEMENTS - PRIVATE CONTRACTORS PAYMENT,07/01/2020,
OFH2021Q2.A000188,07/01/2020,*******,DIRECT PAYMENTS,-6943.31,D13082,LAC PLACEMENT-IN-HOUSE FOSTERING,CHILDREN'S SERVICES,CHILDREN'S SOCIAL CARE,CORPORATE PARENTING,FOSTERING & PERMANENCY,IN HOUSE FOSTER CARE PLACEMENTS - PRIVATE CONTRACTORS PAYMENT,07/01/2020,
OFH2021Q2.A000189,07/01/2020,*******,DIRECT PAYMENTS,8939.52,D13070,UASC UNDER 18,CHILDREN'S SERVICES,CHILDREN'S SOCIAL CARE,CORPORATE PARENTING,CHILDREN LOOKED AFTER,IN HOUSE FOSTER CARE PLACEMENTS - PRIVATE CONTRACTORS PAYMENT,07/01/2020,
OFH2021Q2.A000190,07/01/2020,*******,DIRECT PAYMENTS,2361.05,D13082,LAC PLACEMENT-IN-HOUSE FOSTERING,CHILDREN'S SERVICES,CHILDREN'S SOCIAL CARE,CORPORATE PARENTING,FOSTERING & PERMANENCY,IN HOUSE FOSTER CARE PLACEMENTS - PRIVATE CONTRACTORS PAYMENT,07/01/2020,
OFH2021Q2.A000191,07/01/2020,*******,DIRECT PAYMENTS,608.32,D13084,LAC PLACEMENT-CONNECTED PERSONS FOSTERIN,CHILDREN'S SERVICES,CHILDREN'S SOCIAL CARE,CORPORATE PARENTING,FOSTERING & PERMANENCY,IN HOUSE FOSTER CARE PLACEMENTS - PRIVATE CONTRACTORS PAYMENT,07/01/2020,
OFH2021Q2.A000192,07/01/2020,*******,DIRECT PAYMENTS,225,D13084,LAC PLACEMENT-CONNECTED PERSONS FOSTERIN,CHILDREN'S SERVICES,CHILDREN'S SOCIAL CARE,CORPORATE PARENTING,FOSTERING & PERMANENCY,CLIENT ALLOWANCES - SOCIAL SERVICES,07/01/2020,
OFH2021Q2.A000193,07/01/2020,*******,DIRECT PAYMENTS,359.29,D13084,LAC PLACEMENT-CONNECTED PERSONS FOSTERIN,CHILDREN'S SERVICES,CHILDREN'S SOCIAL CARE,CORPORATE PARENTING,FOSTERING & PERMANENCY,IN HOUSE FOSTER CARE PLACEMENTS - PRIVATE CONTRACTORS PAYMENT,07/01/2020,
OFH2021Q2.A000194,07/01/2020,*******,DIRECT PAYMENTS,-5073.64,D13082,LAC PLACEMENT-IN-HOUSE FOSTERING,CHILDREN'S SERVICES,CHILDREN'S SOCIAL CARE,CORPORATE PARENTING,FOSTERING & PERMANENCY,IN HOUSE FOSTER CARE PLACEMENTS - PRIVATE CONTRACTORS PAYMENT,07/01/2020,
OFH2021Q2.A000195,07/01/2020,*******,DIRECT PAYMENTS,788.94,D13082,LAC PLACEMENT-IN-HOUSE FOSTERING,CHILDREN'S SERVICES,CHILDREN'S SOCIAL CARE,CORPORATE PARENTING,FOSTERING & PERMANENCY,IN HOUSE FOSTER CARE PLACEMENTS - PRIVATE CONTRACTORS PAYMENT,07/01/2020,
OFH2021Q2.A000196,07/01/2020,*******,DIRECT PAYMENTS,5871.74,D13070,UASC UNDER 18,CHILDREN'S SERVICES,CHILDREN'S SOCIAL CARE,CORPORATE PARENTING,CHILDREN LOOKED AFTER,IN HOUSE FOSTER CARE PLACEMENTS - PRIVATE CONTRACTORS PAYMENT,07/01/2020,
OFH2021Q2.A000197,07/01/2020,*******,DIRECT PAYMENTS,607.54,D13082,LAC PLACEMENT-IN-HOUSE FOSTERING,CHILDREN'S SERVICES,CHILDREN'S SOCIAL CARE,CORPORATE PARENTING,FOSTERING & PERMANENCY,IN HOUSE FOSTER CARE PLACEMENTS - PRIVATE CONTRACTORS PAYMENT,07/01/2020,
OFH2021Q2.A000198,07/01/2020,*******,DIRECT PAYMENTS,358.51,D13082,LAC PLACEMENT-IN-HOUSE FOSTERING,CHILDREN'S SERVICES,CHILDREN'S SOCIAL CARE,CORPORATE PARENTING,FOSTERING & PERMANENCY,IN HOUSE FOSTER CARE PLACEMENTS - PRIVATE CONTRACTORS PAYMENT,07/01/2020,
OFH2021Q2.A000199,07/01/2020,*******,DIRECT PAYMENTS,1380,D13082,LAC PLACEMENT-IN-HOUSE FOSTERING,CHILDREN'S SERVICES,CHILDREN'S SOCIAL CARE,CORPORATE PARENTING,FOSTERING & PERMANENCY,CLIENT ALLOWANCES - SOCIAL SERVICES,07/01/2020,
OFH2021Q2.A000200,07/01/2020,*******,DIRECT PAYMENTS,500,D13136,FOSTERING SUPPORT,CHILDREN'S SERVICES,CHILDREN'S SOCIAL CARE,CORPORATE PARENTING,FOSTERING & PERMANENCY,"PURCHASE - EQUIPMENT, FURNITURE AND MATERIALS",07/01/2020,
OFH2021Q2.A000201,07/01/2020,*******,DIRECT PAYMENTS,2337.29,D13082,LAC PLACEMENT-IN-HOUSE FOSTERING,CHILDREN'S SERVICES,CHILDREN'S SOCIAL CARE,CORPORATE PARENTING,FOSTERING & PERMANENCY,IN HOUSE FOSTER CARE PLACEMENTS - PRIVATE CONTRACTORS PAYMENT,07/01/2020,
OFH2021Q2.A000202,07/01/2020,*******,DIRECT PAYMENTS,607.54,D13082,LAC PLACEMENT-IN-HOUSE FOSTERING,CHILDREN'S SERVICES,CHILDREN'S SOCIAL CARE,CORPORATE PARENTING,FOSTERING & PERMANENCY,IN HOUSE FOSTER CARE PLACEMENTS - PRIVATE CONTRACTORS PAYMENT,07/01/2020,
OFH2021Q2.A000203,07/01/2020,*******,DIRECT PAYMENTS,225,D13082,LAC PLACEMENT-IN-HOUSE FOSTERING,CHILDREN'S SERVICES,CHILDREN'S SOCIAL CARE,CORPORATE PARENTING,FOSTERING & PERMANENCY,CLIENT ALLOWANCES - SOCIAL SERVICES,07/01/2020,
OFH2021Q2.A000204,07/01/2020,*******,DIRECT PAYMENTS,394.47,D13082,LAC PLACEMENT-IN-HOUSE FOSTERING,CHILDREN'S SERVICES,CHILDREN'S SOCIAL CARE,CORPORATE PARENTING,FOSTERING & PERMANENCY,IN HOUSE FOSTER CARE PLACEMENTS - PRIVATE CONTRACTORS PAYMENT,07/01/2020,
OFH2021Q2.A000205,07/01/2020,*******,DIRECT PAYMENTS,925.48,D13130,SPECIAL GUARDIANSHIP ALLOWANCES,CHILDREN'S SERVICES,CHILDREN'S SOCIAL CARE,CORPORATE PARENTING,FOSTERING & PERMANENCY,SPECIAL GUARDIANSHIP,07/01/2020,
OFH2021Q2.A000206,07/01/2020,*******,DIRECT PAYMENTS,210,D13082,LAC PLACEMENT-IN-HOUSE FOSTERING,CHILDREN'S SERVICES,CHILDREN'S SOCIAL CARE,CORPORATE PARENTING,FOSTERING & PERMANENCY,CLIENT ALLOWANCES - SOCIAL SERVICES,07/01/2020,
OFH2021Q2.A000207,07/01/2020,*******,DIRECT PAYMENTS,399.05,D13082,LAC PLACEMENT-IN-HOUSE FOSTERING,CHILDREN'S SERVICES,CHILDREN'S SOCIAL CARE,CORPORATE PARENTING,FOSTERING & PERMANENCY,IN HOUSE FOSTER CARE PLACEMENTS - PRIVATE CONTRACTORS PAYMENT,07/01/2020,
OFH2021Q2.A000208,07/01/2020,*******,DIRECT PAYMENTS,612.12,D13082,LAC PLACEMENT-IN-HOUSE FOSTERING,CHILDREN'S SERVICES,CHILDREN'S SOCIAL CARE,CORPORATE PARENTING,FOSTERING & PERMANENCY,IN HOUSE FOSTER CARE PLACEMENTS - PRIVATE CONTRACTORS PAYMENT,07/01/2020,
OFH2021Q2.A000209,07/01/2020,*******,DIRECT PAYMENTS,60,D13082,LAC PLACEMENT-IN-HOUSE FOSTERING,CHILDREN'S SERVICES,CHILDREN'S SOCIAL CARE,CORPORATE PARENTING,FOSTERING & PERMANENCY,CLIENT ALLOWANCES - SOCIAL SERVICES,07/01/2020,
OFH2021Q2.A000210,07/01/2020,*******,DIRECT PAYMENTS,608.32,D13082,LAC PLACEMENT-IN-HOUSE FOSTERING,CHILDREN'S SERVICES,CHILDREN'S SOCIAL CARE,CORPORATE PARENTING,FOSTERING & PERMANENCY,IN HOUSE FOSTER CARE PLACEMENTS - PRIVATE CONTRACTORS PAYMENT,07/01/2020,
OFH2021Q2.A000211,07/01/2020,*******,DIRECT PAYMENTS,225,D13082,LAC PLACEMENT-IN-HOUSE FOSTERING,CHILDREN'S SERVICES,CHILDREN'S SOCIAL CARE,CORPORATE PARENTING,FOSTERING & PERMANENCY,CLIENT ALLOWANCES - SOCIAL SERVICES,07/01/2020,
OFH2021Q2.A000212,07/01/2020,*******,DIRECT PAYMENTS,608.32,D13082,LAC PLACEMENT-IN-HOUSE FOSTERING,CHILDREN'S SERVICES,CHILDREN'S SOCIAL CARE,CORPORATE PARENTING,FOSTERING & PERMANENCY,IN HOUSE FOSTER CARE PLACEMENTS - PRIVATE CONTRACTORS PAYMENT,07/01/2020,
OFH2021Q2.A000213,07/01/2020,*******,DIRECT PAYMENTS,608.32,D13082,LAC PLACEMENT-IN-HOUSE FOSTERING,CHILDREN'S SERVICES,CHILDREN'S SOCIAL CARE,CORPORATE PARENTING,FOSTERING & PERMANENCY,IN HOUSE FOSTER CARE PLACEMENTS - PRIVATE CONTRACTORS PAYMENT,07/01/2020,
OFH2021Q2.A000214,07/01/2020,*******,DIRECT PAYMENTS,608.32,D13082,LAC PLACEMENT-IN-HOUSE FOSTERING,CHILDREN'S SERVICES,CHILDREN'S SOCIAL CARE,CORPORATE PARENTING,FOSTERING & PERMANENCY,IN HOUSE FOSTER CARE PLACEMENTS - PRIVATE CONTRACTORS PAYMENT,07/01/2020,
OFH2021Q2.A000215,07/01/2020,*******,DIRECT PAYMENTS,-5301.66,D13082,LAC PLACEMENT-IN-HOUSE FOSTERING,CHILDREN'S SERVICES,CHILDREN'S SOCIAL CARE,CORPORATE PARENTING,FOSTERING & PERMANENCY,IN HOUSE FOSTER CARE PLACEMENTS - PRIVATE CONTRACTORS PAYMENT,07/01/2020,
OFH2021Q2.A000216,07/01/2020,*******,DIRECT PAYMENTS,5869.77,D13070,UASC UNDER 18,CHILDREN'S SERVICES,CHILDREN'S SOCIAL CARE,CORPORATE PARENTING,CHILDREN LOOKED AFTER,IN HOUSE FOSTER CARE PLACEMENTS - PRIVATE CONTRACTORS PAYMENT,07/01/2020,
OFH2021Q2.A000217,07/01/2020,*******,FOSTER CARERS,607.54,D13084,LAC PLACEMENT-CONNECTED PERSONS FOSTERIN,CHILDREN'S SERVICES,CHILDREN'S SOCIAL CARE,CORPORATE PARENTING,FOSTERING & PERMANENCY,IN HOUSE FOSTER CARE PLACEMENTS - PRIVATE CONTRACTORS PAYMENT,07/01/2020,
OFH2021Q2.A000218,07/01/2020,*******,FOSTER CARERS,607.54,D13084,LAC PLACEMENT-CONNECTED PERSONS FOSTERIN,CHILDREN'S SERVICES,CHILDREN'S SOCIAL CARE,CORPORATE PARENTING,FOSTERING & PERMANENCY,IN HOUSE FOSTER CARE PLACEMENTS - PRIVATE CONTRACTORS PAYMENT,07/01/2020,
OFH2021Q2.A000219,07/01/2020,*******,FOSTER CARERS,1200,D13084,LAC PLACEMENT-CONNECTED PERSONS FOSTERIN,CHILDREN'S SERVICES,CHILDREN'S SOCIAL CARE,CORPORATE PARENTING,FOSTERING & PERMANENCY,CLIENT ALLOWANCES - SOCIAL SERVICES,07/01/2020,
OFH2021Q2.A000220,07/01/2020,Slater & Gordon LLP,LEGAL SERVICES,4100,D10356,REDRESS SCHEME,FINANCE & INVESTMENT,FINANCE & PROPERTY,IMPROVEMENT RISK AND INSURANCE,IMPROVEMENT RISK AND INSURANCE,COMPENSATION,06/29/2020,
OFH2021Q2.A000221,07/01/2020,Verison Law,LEGAL SERVICES,5800,D10356,REDRESS SCHEME,FINANCE & INVESTMENT,FINANCE & PROPERTY,IMPROVEMENT RISK AND INSURANCE,IMPROVEMENT RISK AND INSURANCE,COMPENSATION,06/29/2020,
OFH2021Q2.A000222,07/01/2020,Verison Law,LEGAL SERVICES,540,D10356,REDRESS SCHEME,FINANCE & INVESTMENT,FINANCE & PROPERTY,IMPROVEMENT RISK AND INSURANCE,IMPROVEMENT RISK AND INSURANCE,COMPENSATION,06/29/2020,
OFH2021Q2.A000223,07/01/2020,Verison Law,LEGAL SERVICES,101000,D10356,REDRESS SCHEME,FINANCE & INVESTMENT,FINANCE & PROPERTY,IMPROVEMENT RISK AND INSURANCE,IMPROVEMENT RISK AND INSURANCE,COMPENSATION,06/29/2020,
OFH2021Q2.A000224,07/01/2020,Verison Law,LEGAL SERVICES,2000,D10356,REDRESS SCHEME,FINANCE & INVESTMENT,FINANCE & PROPERTY,IMPROVEMENT RISK AND INSURANCE,IMPROVEMENT RISK AND INSURANCE,COMPENSATION,06/30/2020,
OFH2021Q2.A000225,07/01/2020,Willis Palmer,LEGAL SERVICES,727.5,D13028,SECTION 17 - FSCP TEAM 1-4,CHILDREN'S SERVICES,CHILDREN'S SOCIAL CARE,CHILDREN SAFEGUARDING,FAMILY SUPPORT & CHILD PROTECTION,SECTION 17 - PRIVATE CONTRACTORS PAYMENT,06/30/2020,
OFH2021Q2.A000226,07/01/2020,London Borough of Southwark,LOCAL AUTHORITY SERVICES,121533.48,D02300,ADMINISTRATIVE BODY - London Borough of Lambeth,,,,,TRANSFER VALUES PAID OUT,06/29/2020,
OFH2021Q2.A000227,07/01/2020,Hudgell Solictors,NON COMMERCIAL SUPPLIER,42740,D10356,REDRESS SCHEME,FINANCE & INVESTMENT,FINANCE & PROPERTY,IMPROVEMENT RISK AND INSURANCE,IMPROVEMENT RISK AND INSURANCE,COMPENSATION,06/29/2020,
OFH2021Q2.A000228,07/01/2020,Imran Khan & Partners Solicitors,NON COMMERCIAL SUPPLIER,5450,D10356,REDRESS SCHEME,FINANCE & INVESTMENT,FINANCE & PROPERTY,IMPROVEMENT RISK AND INSURANCE,IMPROVEMENT RISK AND INSURANCE,COMPENSATION,06/30/2020,
OFH2021Q2.A000229,07/01/2020,Imran Khan & Partners Solicitors,NON COMMERCIAL SUPPLIER,12012,D10356,REDRESS SCHEME,FINANCE & INVESTMENT,FINANCE & PROPERTY,IMPROVEMENT RISK AND INSURANCE,IMPROVEMENT RISK AND INSURANCE,COMPENSATION,07/01/2020,
OFH2021Q2.A000230,07/01/2020,*******,,56.83,D02300,ADMINISTRATIVE BODY - London Borough of Lambeth,,,,,LUMP SUM RETIREMENT BENEFIT,06/30/2020,
OFH2021Q2.A000231,07/01/2020,*******,,39275.41,D02300,ADMINISTRATIVE BODY - London Borough of Lambeth,,,,,LUMP SUM RETIREMENT BENEFIT,06/30/2020,
OFH2021Q2.A000232,07/01/2020,*******,,12.3,D02300,ADMINISTRATIVE BODY - London Borough of Lambeth,,,,,RETURN OF CONTRIBUTIONS,06/30/2020,
OFH2021Q2.A000233,07/01/2020,*******,,-183.43,D02500,COMMON FUND OPERATIONS,,,,,PENSION FUND SUNDRY CREDITOR,06/30/2020,
OFH2021Q2.A000234,07/01/2020,*******,,917.15,D02300,ADMINISTRATIVE BODY - London Borough of Lambeth,,,,,RETURN OF CONTRIBUTIONS,06/30/2020,
OFH2021Q2.A000235,07/01/2020,*******,,3305.96,D02300,ADMINISTRATIVE BODY - London Borough of Lambeth,,,,,LUMP SUM RETIREMENT BENEFIT,06/30/2020,
OFH2021Q2.A000236,07/01/2020,*******,,62000,D10356,REDRESS SCHEME,FINANCE & INVESTMENT,FINANCE & PROPERTY,IMPROVEMENT RISK AND INSURANCE,IMPROVEMENT RISK AND INSURANCE,COMPENSATION,06/23/2020,
OFH2021Q2.A000237,07/01/2020,*******,,96900,D10356,REDRESS SCHEME,FINANCE & INVESTMENT,FINANCE & PROPERTY,IMPROVEMENT RISK AND INSURANCE,IMPROVEMENT RISK AND INSURANCE,COMPENSATION,06/23/2020,
OFH2021Q2.A000238,07/01/2020,*******,,2500,D10356,REDRESS SCHEME,FINANCE & INVESTMENT,FINANCE & PROPERTY,IMPROVEMENT RISK AND INSURANCE,IMPROVEMENT RISK AND INSURANCE,COMPENSATION,06/29/2020,
OFH2021Q2.A000239,07/01/2020,*******,,103300,D10356,REDRESS SCHEME,FINANCE & INVESTMENT,FINANCE & PROPERTY,IMPROVEMENT RISK AND INSURANCE,IMPROVEMENT RISK AND INSURANCE,COMPENSATION,06/29/2020,
OFH2021Q2.A000240,07/01/2020,*******,,1122,D10000,BALANCE SHEET COST CENTRE,,,,,HOUSING RENTS DEBTOR,06/30/2020,
OFH2021Q2.A000241,07/01/2020,*******,,540,D10000,BALANCE SHEET COST CENTRE,,,,,HOUSING RENTS DEBTOR,06/30/2020,
OFH2021Q2.A000242,07/01/2020,*******,,-608.32,D13129,ADOPTION- ALLOWANCES,CHILDREN'S SERVICES,CHILDREN'S SOCIAL CARE,CORPORATE PARENTING,ADOPTIONS,ADOPTION ALLOWANCE - PRIVATE CONTRACTORS PAYMENT,05/26/2020,
OFH2021Q2.A000243,07/01/2020,*******,,608.32,D13082,LAC PLACEMENT-IN-HOUSE FOSTERING,CHILDREN'S SERVICES,CHILDREN'S SOCIAL CARE,CORPORATE PARENTING,FOSTERING & PERMANENCY,IN HOUSE FOSTER CARE PLACEMENTS - PRIVATE CONTRACTORS PAYMENT,07/01/2020,
OFH2021Q2.A000244,07/01/2020,*******,,500,D13136,FOSTERING SUPPORT,CHILDREN'S SERVICES,CHILDREN'S SOCIAL CARE,CORPORATE PARENTING,FOSTERING & PERMANENCY,"PURCHASE - EQUIPMENT, FURNITURE AND MATERIALS",07/01/2020,
OFH2021Q2.A000245,07/01/2020,*******,,1406.84,D13082,LAC PLACEMENT-IN-HOUSE FOSTERING,CHILDREN'S SERVICES,CHILDREN'S SOCIAL CARE,CORPORATE PARENTING,FOSTERING & PERMANENCY,IN HOUSE FOSTER CARE PLACEMENTS - PRIVATE CONTRACTORS PAYMENT,07/01/2020,
OFH2021Q2.A000246,07/01/2020,*******,,607.54,D13084,LAC PLACEMENT-CONNECTED PERSONS FOSTERIN,CHILDREN'S SERVICES,CHILDREN'S SOCIAL CARE,CORPORATE PARENTING,FOSTERING & PERMANENCY,IN HOUSE FOSTER CARE PLACEMENTS - PRIVATE CONTRACTORS PAYMENT,07/01/2020,
OFH2021Q2.A000247,07/01/2020,*******,,225,D13082,LAC PLACEMENT-IN-HOUSE FOSTERING,CHILDREN'S SERVICES,CHILDREN'S SOCIAL CARE,CORPORATE PARENTING,FOSTERING & PERMANENCY,CLIENT ALLOWANCES - SOCIAL SERVICES,07/01/2020,
OFH2021Q2.A000248,07/01/2020,*******,,399.05,D13082,LAC PLACEMENT-IN-HOUSE FOSTERING,CHILDREN'S SERVICES,CHILDREN'S SOCIAL CARE,CORPORATE PARENTING,FOSTERING & PERMANENCY,IN HOUSE FOSTER CARE PLACEMENTS - PRIVATE CONTRACTORS PAYMENT,07/01/2020,
OFH2021Q2.A000249,07/01/2020,*******,,608.32,D13084,LAC PLACEMENT-CONNECTED PERSONS FOSTERIN,CHILDREN'S SERVICES,CHILDREN'S SOCIAL CARE,CORPORATE PARENTING,FOSTERING & PERMANENCY,IN HOUSE FOSTER CARE PLACEMENTS - PRIVATE CONTRACTORS PAYMENT,07/01/2020,
OFH2021Q2.A000250,07/01/2020,*******,,608.32,D13082,LAC PLACEMENT-IN-HOUSE FOSTERING,CHILDREN'S SERVICES,CHILDREN'S SOCIAL CARE,CORPORATE PARENTING,FOSTERING & PERMANENCY,IN HOUSE FOSTER CARE PLACEMENTS - PRIVATE CONTRACTORS PAYMENT,07/01/2020,
OFH2021Q2.A000251,07/01/2020,*******,,2952.02,D13082,LAC PLACEMENT-IN-HOUSE FOSTERING,CHILDREN'S SERVICES,CHILDREN'S SOCIAL CARE,CORPORATE PARENTING,FOSTERING & PERMANENCY,IN HOUSE FOSTER CARE PLACEMENTS - PRIVATE CONTRACTORS PAYMENT,07/01/2020,
OFH2021Q2.A000252,07/01/2020,*******,,10000,D10356,REDRESS SCHEME,FINANCE & INVESTMENT,FINANCE & PROPERTY,IMPROVEMENT RISK AND INSURANCE,IMPROVEMENT RISK AND INSURANCE,COMPENSATION,07/01/2020,
OFH2021Q2.A000253,07/01/2020,*******,,15000,D10356,REDRESS SCHEME,FINANCE & INVESTMENT,FINANCE & PROPERTY,IMPROVEMENT RISK AND INSURANCE,IMPROVEMENT RISK AND INSURANCE,COMPENSATION,07/01/2020,
OFH2021Q2.A000254,07/01/2020,*******,,5000,D10356,REDRESS SCHEME,FINANCE & INVESTMENT,FINANCE & PROPERTY,IMPROVEMENT RISK AND INSURANCE,IMPROVEMENT RISK AND INSURANCE,COMPENSATION,07/01/2020,
OFH2021Q2.A000255,07/01/2020,Capital City College Group,,3417.67,D13167,TOP-UPS FE SEND,EDUCATION & LEARNING (DSG),EDUCATION & LEARNING (DSG),EDUCATION & LEARNING (DSG),DSG HIGH NEEDS BLOCK,PAYMENT TO OTHER LOCAL AUTHORITIES,06/23/2020,
OFH2021Q2.A000256,07/01/2020,Capital City College Group,,3417.66,D13167,TOP-UPS FE SEND,EDUCATION & LEARNING (DSG),EDUCATION & LEARNING (DSG),EDUCATION & LEARNING (DSG),DSG HIGH NEEDS BLOCK,PAYMENT TO OTHER LOCAL AUTHORITIES,06/23/2020,
OFH2021Q2.A000257,07/01/2020,Capital City College Group,,3417.67,D13167,TOP-UPS FE SEND,EDUCATION & LEARNING (DSG),EDUCATION & LEARNING (DSG),EDUCATION & LEARNING (DSG),DSG HIGH NEEDS BLOCK,PAYMENT TO OTHER LOCAL AUTHORITIES,06/23/2020,
OFH2021Q2.A000258,07/01/2020,Capital City College Group,,14433,D13167,TOP-UPS FE SEND,EDUCATION & LEARNING (DSG),EDUCATION & LEARNING (DSG),EDUCATION & LEARNING (DSG),DSG HIGH NEEDS BLOCK,PAYMENT TO OTHER LOCAL AUTHORITIES,06/23/2020,
OFH2021Q2.A000259,07/01/2020,Capital City College Group,,14433,D13167,TOP-UPS FE SEND,EDUCATION & LEARNING (DSG),EDUCATION & LEARNING (DSG),EDUCATION & LEARNING (DSG),DSG HIGH NEEDS BLOCK,PAYMENT TO OTHER LOCAL AUTHORITIES,06/23/2020,
OFH2021Q2.A000260,07/01/2020,FEW AND FAR GROUP LIMITED,,10000,D14833,LOCAL ECONOMY HARDSHIP FUND,SUSTAINABLE GROWTH & OPPORTUNITY,"ECONOMY, CULTURE & SKILLS","BUSINESS, CULTURE & INWARD INVESTMENT","BUSINESS, CULTURE & INWARD INVESTMENT",GOVERNMENT GRANTS REVENUE NON RINGFENCED,06/30/2020,
OFH2021Q2.A000261,07/01/2020,ICAB,,600.72,D18133,ESTATE SERVICES MANAGER (NORTH),RESIDENT SERVICES (HRA),HOUSING SERVICES (HRA),NEIGHBOURHOOD HOUSING,CONTRACT MANAGEMENT,COMPENSATION,06/29/2020,
OFH2021Q2.A000262,07/01/2020,St Peter's Eaton Square C. of E. Primary School,,3974.81,D13170,TOP-UPS OOB MAINSTREAM,EDUCATION & LEARNING (DSG),EDUCATION & LEARNING (DSG),EDUCATION & LEARNING (DSG),DSG HIGH NEEDS BLOCK,PRIVATE CONTRACTORS PAYMENT - OTHER,06/30/2020,
OFH2021Q2.A000263,07/01/2020,St Peter's Eaton Square C. of E. Primary School,,4497.13,D13170,TOP-UPS OOB MAINSTREAM,EDUCATION & LEARNING (DSG),EDUCATION & LEARNING (DSG),EDUCATION & LEARNING (DSG),DSG HIGH NEEDS BLOCK,PRIVATE CONTRACTORS PAYMENT - OTHER,06/30/2020,
OFH2021Q2.A000264,07/01/2020,Sundry NNDR,,10000,D10000,BALANCE SHEET COST CENTRE,,,,,NNDR/BRS DEBTOR,06/30/2020,
OFH2021Q2.A000265,07/01/2020,Sundry NNDR,,10000,D10000,BALANCE SHEET COST CENTRE,,,,,NNDR/BRS DEBTOR,06/30/2020,
OFH2021Q2.A000266,07/01/2020,Sundry NNDR,,10000,D10000,BALANCE SHEET COST CENTRE,,,,,NNDR/BRS DEBTOR,06/30/2020,
OFH2021Q2.A000267,07/01/2020,Sundry NNDR,,10000,D10000,BALANCE SHEET COST CENTRE,,,,,NNDR/BRS DEBTOR,06/30/2020,
OFH2021Q2.A000268,07/01/2020,Sundry NNDR,,10000,D10000,BALANCE SHEET COST CENTRE,,,,,NNDR/BRS DEBTOR,06/30/2020,
OFH2021Q2.A000269,07/01/2020,Sundry NNDR,,25000,D10000,BALANCE SHEET COST CENTRE,,,,,NNDR/BRS DEBTOR,06/30/2020,
OFH2021Q2.A000270,07/01/2020,Switalskis Solicitor,,540,D10356,REDRESS SCHEME,FINANCE & INVESTMENT,FINANCE & PROPERTY,IMPROVEMENT RISK AND INSURANCE,IMPROVEMENT RISK AND INSURANCE,COMPENSATION,06/29/2020,
OFH2021Q2.A000271,07/01/2020,Switalskis Solicitor,,6000,D10356,REDRESS SCHEME,FINANCE & INVESTMENT,FINANCE & PROPERTY,IMPROVEMENT RISK AND INSURANCE,IMPROVEMENT RISK AND INSURANCE,COMPENSATION,06/29/2020,
OFH2021Q2.A000272,07/01/2020,Switalskis Solicitor,,6000,D10356,REDRESS SCHEME,FINANCE & INVESTMENT,FINANCE & PROPERTY,IMPROVEMENT RISK AND INSURANCE,IMPROVEMENT RISK AND INSURANCE,COMPENSATION,06/29/2020,
OFH2021Q2.A000273,07/01/2020,Switalskis Solicitor,,4162.32,D10356,REDRESS SCHEME,FINANCE & INVESTMENT,FINANCE & PROPERTY,IMPROVEMENT RISK AND INSURANCE,IMPROVEMENT RISK AND INSURANCE,COMPENSATION,06/29/2020,
OFH2021Q2.A000274,07/01/2020,Switalskis Solicitor,,6000,D10356,REDRESS SCHEME,FINANCE & INVESTMENT,FINANCE & PROPERTY,IMPROVEMENT RISK AND INSURANCE,IMPROVEMENT RISK AND INSURANCE,COMPENSATION,06/29/2020,
OFH2021Q2.A000275,07/01/2020,Switalskis Solicitor,,2778.6,D10356,REDRESS SCHEME,FINANCE & INVESTMENT,FINANCE & PROPERTY,IMPROVEMENT RISK AND INSURANCE,IMPROVEMENT RISK AND INSURANCE,COMPENSATION,06/29/2020,
OFH2021Q2.A000276,07/01/2020,Switalskis Solicitor,,3144,D10356,REDRESS SCHEME,FINANCE & INVESTMENT,FINANCE & PROPERTY,IMPROVEMENT RISK AND INSURANCE,IMPROVEMENT RISK AND INSURANCE,COMPENSATION,06/29/2020,
OFH2021Q2.A000277,07/01/2020,Switalskis Solicitor,,3144,D10356,REDRESS SCHEME,FINANCE & INVESTMENT,FINANCE & PROPERTY,IMPROVEMENT RISK AND INSURANCE,IMPROVEMENT RISK AND INSURANCE,COMPENSATION,06/29/2020,
OFH2021Q2.A000278,07/01/2020,Switalskis Solicitor,,5000,D10356,REDRESS SCHEME,FINANCE & INVESTMENT,FINANCE & PROPERTY,IMPROVEMENT RISK AND INSURANCE,IMPROVEMENT RISK AND INSURANCE,COMPENSATION,07/01/2020,
OFH2021Q2.A000279,07/01/2020,Switalskis Solicitor,,124500,D10356,REDRESS SCHEME,FINANCE & INVESTMENT,FINANCE & PROPERTY,IMPROVEMENT RISK AND INSURANCE,IMPROVEMENT RISK AND INSURANCE,COMPENSATION,07/01/2020,
OFH2021Q2.A000280,07/01/2020,Trinity Church of England School,,3333.33,D13170,TOP-UPS OOB MAINSTREAM,EDUCATION & LEARNING (DSG),EDUCATION & LEARNING (DSG),EDUCATION & LEARNING (DSG),DSG HIGH NEEDS BLOCK,PAYMENT TO OTHER LOCAL AUTHORITIES,06/23/2020,
OFH2021Q2.A000281,07/01/2020,TTRC,,10000,D14833,LOCAL ECONOMY HARDSHIP FUND,SUSTAINABLE GROWTH & OPPORTUNITY,"ECONOMY, CULTURE & SKILLS","BUSINESS, CULTURE & INWARD INVESTMENT","BUSINESS, CULTURE & INWARD INVESTMENT",GOVERNMENT GRANTS REVENUE NON RINGFENCED,06/30/2020,
OFH2021Q2.A000282,07/01/2020,Vibe Teacher Recruitment Ltd,,900,D13155,INDEPENDENT & NON-MAINTAINED SCHOOLS,EDUCATION & LEARNING (DSG),EDUCATION & LEARNING (DSG),EDUCATION & LEARNING (DSG),DSG HIGH NEEDS BLOCK,PRIVATE CONTRACTORS PAYMENT - OTHER,06/30/2020,
OFH2021Q2.A000283,07/01/2020,Vibe Teacher Recruitment Ltd,,1125,D13155,INDEPENDENT & NON-MAINTAINED SCHOOLS,EDUCATION & LEARNING (DSG),EDUCATION & LEARNING (DSG),EDUCATION & LEARNING (DSG),DSG HIGH NEEDS BLOCK,PRIVATE CONTRACTORS PAYMENT - OTHER,06/30/2020,
OFH2021Q2.A000284,07/01/2020,Vibe Teacher Recruitment Ltd,,1125,D13155,INDEPENDENT & NON-MAINTAINED SCHOOLS,EDUCATION & LEARNING (DSG),EDUCATION & LEARNING (DSG),EDUCATION & LEARNING (DSG),DSG HIGH NEEDS BLOCK,PRIVATE CONTRACTORS PAYMENT - OTHER,06/11/2020,
OFH2021Q2.A000285,07/01/2020,Vibe Teacher Recruitment Ltd,,675,D13155,INDEPENDENT & NON-MAINTAINED SCHOOLS,EDUCATION & LEARNING (DSG),EDUCATION & LEARNING (DSG),EDUCATION & LEARNING (DSG),DSG HIGH NEEDS BLOCK,PRIVATE CONTRACTORS PAYMENT - OTHER,06/11/2020,
OFH2021Q2.A000286,07/01/2020,Vibe Teacher Recruitment Ltd,,1125,D13155,INDEPENDENT & NON-MAINTAINED SCHOOLS,EDUCATION & LEARNING (DSG),EDUCATION & LEARNING (DSG),EDUCATION & LEARNING (DSG),DSG HIGH NEEDS BLOCK,PRIVATE CONTRACTORS PAYMENT - OTHER,06/18/2020,
OFH2021Q2.A000287,07/01/2020,We Are Graft Ltd,,10000,D14833,LOCAL ECONOMY HARDSHIP FUND,SUSTAINABLE GROWTH & OPPORTUNITY,"ECONOMY, CULTURE & SKILLS","BUSINESS, CULTURE & INWARD INVESTMENT","BUSINESS, CULTURE & INWARD INVESTMENT",GOVERNMENT GRANTS REVENUE NON RINGFENCED,06/30/2020,
OFH2021Q2.A000288,07/02/2020,P A Finlay & Co Ltd,CIS,34892.88,D19998,CAPITAL COST CENTRE,FINANCE & INVESTMENT,PERFORMANCE & BUSINESS IMPROVEMENT,SCHOOLS & COMMUNITIES CAPITAL,SCHOOLS & COMMUNITIES CAPITAL,PROFESSIONAL SERVICES - GENERAL,06/25/2020,"Works - Construction, R & M.Architect.NA"
OFH2021Q2.A000289,07/02/2020,*******,COMMERCIAL SUPPLIER,1367.09,D14142,TEMPORARY ACCOMMODATION,RESIDENT SERVICES (GF),HOUSING MANAGEMENT,HOUSING NEEDS,ACCOMMODATION SERVICES - GF,PAYMENT TO PRIVATE SECTOR LANDLORDS (PSL),07/01/2020,
OFH2021Q2.A000290,07/02/2020,*******,COMMERCIAL SUPPLIER,800,D14142,TEMPORARY ACCOMMODATION,RESIDENT SERVICES (GF),HOUSING MANAGEMENT,HOUSING NEEDS,ACCOMMODATION SERVICES - GF,PAYMENT TO PRIVATE SECTOR LANDLORDS (PSL),07/01/2020,
OFH2021Q2.A000291,07/02/2020,*******,COMMERCIAL SUPPLIER,860.65,D14142,TEMPORARY ACCOMMODATION,RESIDENT SERVICES (GF),HOUSING MANAGEMENT,HOUSING NEEDS,ACCOMMODATION SERVICES - GF,PAYMENT TO PRIVATE SECTOR LANDLORDS (PSL),07/01/2020,
OFH2021Q2.A000292,07/02/2020,Airey Miller Ltd,COMMERCIAL SUPPLIER,4050,D19998,CAPITAL COST CENTRE,SUSTAINABLE GROWTH & OPPORTUNITY,REGENERATION & HOUSING GROWTH,AREA REGENERATION,BRIXTON CLAPHAM AREA REGENERATION,CONSULTANCY FEES,06/15/2020,Consultancy.Business.NA
OFH2021Q2.A000293,07/02/2020,Autozone Dutch Ltd,COMMERCIAL SUPPLIER,2550,D10106,VEHICLE HIRE CONTRACT MANAGEMENT,RESIDENT SERVICES (GF),ENVIRONMENT & STREETSCENE,PARKING & ENFORCEMENT,PARKING OPERATIONS,VEHICLE REPAIRS AND MAINTENANCE,06/25/2020,Vehicle Management.Maintenance.NA
OFH2021Q2.A000294,07/02/2020,Autozone Dutch Ltd,COMMERCIAL SUPPLIER,1800,D10106,VEHICLE HIRE CONTRACT MANAGEMENT,RESIDENT SERVICES (GF),ENVIRONMENT & STREETSCENE,PARKING & ENFORCEMENT,PARKING OPERATIONS,VEHICLE REPAIRS AND MAINTENANCE,06/25/2020,Vehicle Management.Maintenance.NA
OFH2021Q2.A000295,07/02/2020,Autozone Dutch Ltd,COMMERCIAL SUPPLIER,1290,D10106,VEHICLE HIRE CONTRACT MANAGEMENT,RESIDENT SERVICES (GF),ENVIRONMENT & STREETSCENE,PARKING & ENFORCEMENT,PARKING OPERATIONS,VEHICLE REPAIRS AND MAINTENANCE,06/25/2020,Vehicle Management.Maintenance.NA
OFH2021Q2.A000296,07/02/2020,Birlem Ltd,COMMERCIAL SUPPLIER,520,D18133,ESTATE SERVICES MANAGER (NORTH),RESIDENT SERVICES (HRA),HOUSING SERVICES (HRA),NEIGHBOURHOOD HOUSING,CONTRACT MANAGEMENT,LIQUID FUEL,06/05/2020,Utilities.Heating Oil.NA
OFH2021Q2.A000297,07/02/2020,Brook Green Supply Ltd,COMMERCIAL SUPPLIER,1772.82,D10602,SPRINGFIELD COMMUNITY & HEALTH CENTRE GF,RESIDENT SERVICES (GF),HOUSING MANAGEMENT,"FACILITIES MANAGEMENT, PROPERTY & PROJECTS",FACILITIES MANAGEMENT,ELECTRICITY,06/11/2020,
OFH2021Q2.A000298,07/02/2020,Corona Energy,COMMERCIAL SUPPLIER,43814.67,D72902,STOCKWELL - JUNIOR,EDUCATION & LEARNING (DSG),EDUCATION & LEARNING (DSG),EDUCATION & LEARNING (DSG),SCHOOL HOLDING ACCOUNTS,ELECTRICITY,07/01/2020,
OFH2021Q2.A000299,07/02/2020,Eaton House The Manor School,COMMERCIAL SUPPLIER,4155.01,D13155,INDEPENDENT & NON-MAINTAINED SCHOOLS,EDUCATION & LEARNING (DSG),EDUCATION & LEARNING (DSG),EDUCATION & LEARNING (DSG),DSG HIGH NEEDS BLOCK,PRIVATE CONTRACTORS PAYMENT - OTHER,07/01/2020,
OFH2021Q2.A000300,07/02/2020,Eaton House The Manor School,COMMERCIAL SUPPLIER,2562.26,D13155,INDEPENDENT & NON-MAINTAINED SCHOOLS,EDUCATION & LEARNING (DSG),EDUCATION & LEARNING (DSG),EDUCATION & LEARNING (DSG),DSG HIGH NEEDS BLOCK,PRIVATE CONTRACTORS PAYMENT - OTHER,07/01/2020,
OFH2021Q2.A000301,07/02/2020,Eaton House The Manor School,COMMERCIAL SUPPLIER,2250.64,D13155,INDEPENDENT & NON-MAINTAINED SCHOOLS,EDUCATION & LEARNING (DSG),EDUCATION & LEARNING (DSG),EDUCATION & LEARNING (DSG),DSG HIGH NEEDS BLOCK,PRIVATE CONTRACTORS PAYMENT - OTHER,07/01/2020,
OFH2021Q2.A000302,07/02/2020,Eaton House The Manor School,COMMERCIAL SUPPLIER,2250.74,D13155,INDEPENDENT & NON-MAINTAINED SCHOOLS,EDUCATION & LEARNING (DSG),EDUCATION & LEARNING (DSG),EDUCATION & LEARNING (DSG),DSG HIGH NEEDS BLOCK,RESIDENTIAL PLACEMENTS - PRIVATE CONTRACTORS PAYMENT,07/01/2020,
OFH2021Q2.A000303,07/02/2020,Eaton House The Manor School,COMMERCIAL SUPPLIER,2250.64,D13155,INDEPENDENT & NON-MAINTAINED SCHOOLS,EDUCATION & LEARNING (DSG),EDUCATION & LEARNING (DSG),EDUCATION & LEARNING (DSG),DSG HIGH NEEDS BLOCK,PRIVATE CONTRACTORS PAYMENT - OTHER,07/01/2020,
OFH2021Q2.A000304,07/02/2020,Eaton House The Manor School,COMMERCIAL SUPPLIER,2250.74,D13155,INDEPENDENT & NON-MAINTAINED SCHOOLS,EDUCATION & LEARNING (DSG),EDUCATION & LEARNING (DSG),EDUCATION & LEARNING (DSG),DSG HIGH NEEDS BLOCK,RESIDENTIAL PLACEMENTS - PRIVATE CONTRACTORS PAYMENT,07/01/2020,
OFH2021Q2.A000305,07/02/2020,Eaton House The Manor School,COMMERCIAL SUPPLIER,4501.38,D13155,INDEPENDENT & NON-MAINTAINED SCHOOLS,EDUCATION & LEARNING (DSG),EDUCATION & LEARNING (DSG),EDUCATION & LEARNING (DSG),DSG HIGH NEEDS BLOCK,PRIVATE CONTRACTORS PAYMENT - OTHER,07/01/2020,
OFH2021Q2.A000306,07/02/2020,Eb7 Seneca Limited,COMMERCIAL SUPPLIER,2720,D14591,OASIS JOANNA PRIMARY SCHOOL,SUSTAINABLE GROWTH & OPPORTUNITY,NEIGHBOURHOOD REGENERATION & HOUSING GROWTH,NEIGHBOURHOOD REGENERATION,"NEIGHBOURHOOD REGENERATION: WATERLOO, VAUXHALL & STREATHAM",CONSULTANCY FEES,06/19/2020,Consultancy.Business.NA
OFH2021Q2.A000307,07/02/2020,Eb7 Seneca Limited,COMMERCIAL SUPPLIER,4080,D14591,OASIS JOANNA PRIMARY SCHOOL,SUSTAINABLE GROWTH & OPPORTUNITY,NEIGHBOURHOOD REGENERATION & HOUSING GROWTH,NEIGHBOURHOOD REGENERATION,"NEIGHBOURHOOD REGENERATION: WATERLOO, VAUXHALL & STREATHAM",CONSULTANCY FEES,06/19/2020,Consultancy.Business.NA
OFH2021Q2.A000308,07/02/2020,Grant Thornton,COMMERCIAL SUPPLIER,20000,D10126,STRATEGIC DIRECTOR - FINANCE & INVESTMENT,FINANCE & INVESTMENT,FINANCE & PROPERTY,FINANCIAL PLANNING AND MANAGEMENT,STRATEGIC DIRECTOR - CORPORATE RESOURCES,CONSULTANCY FEES,07/01/2020,Consultancy.Management.Organisation & Planning
OFH2021Q2.A000309,07/02/2020,Holland Rise & Whitebeam Close TMO,COMMERCIAL SUPPLIER,58365.46,D18007,HOLLAND RISE TMC,RESIDENT SERVICES (HRA),HOUSING SERVICES (HRA),TENANT MANAGEMENT ORGANISATIONS,TENANT MANAGEMENT ORGANISATIONS,PROFESSIONAL SERVICES - GENERAL,07/01/2020,Housing Management.Arms Length Management Organisations.NA
OFH2021Q2.A000310,07/02/2020,Holmdene Housing Ltd,COMMERCIAL SUPPLIER,-4431.43,D13135,16+ INDEPENDENCE PLACEMENTS,CHILDREN'S SERVICES,CHILDREN'S SOCIAL CARE,CORPORATE PARENTING,16+ INDEPENDENCE SERVICE (LEAVING CARE),RENTS PAYABLE,07/01/2020,
OFH2021Q2.A000311,07/02/2020,Holmdene Housing Ltd,COMMERCIAL SUPPLIER,8191.43,D13135,16+ INDEPENDENCE PLACEMENTS,CHILDREN'S SERVICES,CHILDREN'S SOCIAL CARE,CORPORATE PARENTING,16+ INDEPENDENCE SERVICE (LEAVING CARE),SUPPORTED OTHER ACCOMMODATION - PRIVATE CONTRACTORS PAYMENT,07/01/2020,
OFH2021Q2.A000312,07/02/2020,Holmdene Housing Ltd,COMMERCIAL SUPPLIER,-54377.14,D13100,SEMI INDEPENDENT LIVING,CHILDREN'S SERVICES,CHILDREN'S SOCIAL CARE,CORPORATE PARENTING,CHILDREN LOOKED AFTER PLACEMENTS,RENTS PAYABLE,07/01/2020,
OFH2021Q2.A000313,07/02/2020,Holmdene Housing Ltd,COMMERCIAL SUPPLIER,79337.14,D13100,SEMI INDEPENDENT LIVING,CHILDREN'S SERVICES,CHILDREN'S SOCIAL CARE,CORPORATE PARENTING,CHILDREN LOOKED AFTER PLACEMENTS,SUPPORTED OTHER ACCOMMODATION - PRIVATE CONTRACTORS PAYMENT,07/01/2020,
OFH2021Q2.A000314,07/02/2020,Homes 2 Let UK,COMMERCIAL SUPPLIER,564.3,D14142,TEMPORARY ACCOMMODATION,RESIDENT SERVICES (GF),HOUSING MANAGEMENT,HOUSING NEEDS,ACCOMMODATION SERVICES - GF,BED & BREAKFAST - PRIVATE CONTRACTORS PAYMENT,07/01/2020,
OFH2021Q2.A000315,07/02/2020,Hytyme Ltd,COMMERCIAL SUPPLIER,2100,D13096,CHILDREN SERVICES NON- RECOURSE TO PUBLI,NO RECOURSE TO PUBLIC FUNDS,NO RECOURSE TO PUBLIC FUNDS,NO RECOURSE TO PUBLIC FUNDS,NO RECOURSE TO PUBLIC FUNDS,BED & BREAKFAST - PRIVATE CONTRACTORS PAYMENT,07/01/2020,
OFH2021Q2.A000316,07/02/2020,London Learning Consortium,COMMERCIAL SUPPLIER,3701.99,D14551,ADULT LEARNING TEAM,SUSTAINABLE GROWTH & OPPORTUNITY,"ECONOMY, CULTURE & SKILLS",ADULT LEARNING,ADULT LEARNING,PRIVATE CONTRACTORS PAYMENT - OTHER,06/09/2020,Education.Adult & Further Education Services.NA
OFH2021Q2.A000317,07/02/2020,Loos for Do's,COMMERCIAL SUPPLIER,6192.6,D14752,PARKS,RESIDENT SERVICES (GF),ENVIRONMENT & STREETSCENE,"NEIGHBOURHOODS (PARKS, LEISURE & CEMETERIES)",PARKS & LEISURE SERVICES,PROFESSIONAL SERVICES - GENERAL,06/29/2020,Health & Safety.Services.NA
OFH2021Q2.A000318,07/02/2020,Loos for Do's,COMMERCIAL SUPPLIER,1859,D14752,PARKS,RESIDENT SERVICES (GF),ENVIRONMENT & STREETSCENE,"NEIGHBOURHOODS (PARKS, LEISURE & CEMETERIES)",PARKS & LEISURE SERVICES,PROFESSIONAL SERVICES - GENERAL,06/29/2020,Health & Safety.Services.NA
OFH2021Q2.A000319,07/02/2020,Loos for Do's,COMMERCIAL SUPPLIER,3647,D14752,PARKS,RESIDENT SERVICES (GF),ENVIRONMENT & STREETSCENE,"NEIGHBOURHOODS (PARKS, LEISURE & CEMETERIES)",PARKS & LEISURE SERVICES,PROFESSIONAL SERVICES - GENERAL,06/29/2020,Health & Safety.Services.NA
OFH2021Q2.A000320,07/02/2020,Mears Group Plc,COMMERCIAL SUPPLIER,53189.37,D19998,CAPITAL COST CENTRE,RESIDENT SERVICES (HRA),STRATEGIC PROGRAMMES (HRA),HOUSING CAPITAL & ASSET MANAGEMENT,CAPITAL DELIVERY TEAM,ACQUISITION - LAND AND BUILDINGS,07/01/2020,"Works - Construction, R & M.Buildings.Construction"
OFH2021Q2.A000321,07/02/2020,National Association of British Market Authorities,COMMERCIAL SUPPLIER,895,D14242,CONSUMER PROTECTION - TRADING STANDARDS,RESIDENT SERVICES (GF),INFRASTRUCTURE & CAPITAL DELIVERY,PUBLIC PROTECTION & REGULATORY SERVICES,PUBLIC PROTECTION & REGULATORY SERVICES,MEMBERSHIP AND SUBSCRIPTIONS,06/26/2020,Financial Services.Subscriptions.NA
OFH2021Q2.A000322,07/02/2020,One Housing Group,COMMERCIAL SUPPLIER,533.12,D12534,OP - EXTRA CARE,ADULTS & HEALTH,ADULT SOCIAL CARE,OLDER PEOPLE,OP SERVICES,DOMICILIARY CARE - THIRD PARTY,06/17/2020,
OFH2021Q2.A000323,07/02/2020,One Housing Group,COMMERCIAL SUPPLIER,1009.12,D12534,OP - EXTRA CARE,ADULTS & HEALTH,ADULT SOCIAL CARE,OLDER PEOPLE,OP SERVICES,DOMICILIARY CARE - THIRD PARTY,06/17/2020,
OFH2021Q2.A000324,07/02/2020,One Housing Group,COMMERCIAL SUPPLIER,813.96,D12534,OP - EXTRA CARE,ADULTS & HEALTH,ADULT SOCIAL CARE,OLDER PEOPLE,OP SERVICES,DOMICILIARY CARE - THIRD PARTY,06/17/2020,
OFH2021Q2.A000325,07/02/2020,One Housing Group,COMMERCIAL SUPPLIER,1199.52,D12534,OP - EXTRA CARE,ADULTS & HEALTH,ADULT SOCIAL CARE,OLDER PEOPLE,OP SERVICES,DOMICILIARY CARE - THIRD PARTY,06/17/2020,
OFH2021Q2.A000326,07/02/2020,One Housing Group,COMMERCIAL SUPPLIER,1161.44,D12534,OP - EXTRA CARE,ADULTS & HEALTH,ADULT SOCIAL CARE,OLDER PEOPLE,OP SERVICES,DOMICILIARY CARE - THIRD PARTY,06/17/2020,
OFH2021Q2.A000327,07/02/2020,One Housing Group,COMMERCIAL SUPPLIER,1370.88,D12534,OP - EXTRA CARE,ADULTS & HEALTH,ADULT SOCIAL CARE,OLDER PEOPLE,OP SERVICES,DOMICILIARY CARE - THIRD PARTY,06/17/2020,
OFH2021Q2.A000328,07/02/2020,One Housing Group,COMMERCIAL SUPPLIER,1047.2,D12334,PD - EXTRA CARE HOUSING,ADULTS & HEALTH,ADULT SOCIAL CARE,ADULTS WITH PHYSICAL DISABILITIES,PD SERVICES,DOMICILIARY CARE - THIRD PARTY,06/17/2020,
OFH2021Q2.A000329,07/02/2020,One Housing Group,COMMERCIAL SUPPLIER,647.36,D12534,OP - EXTRA CARE,ADULTS & HEALTH,ADULT SOCIAL CARE,OLDER PEOPLE,OP SERVICES,DOMICILIARY CARE - THIRD PARTY,06/17/2020,
OFH2021Q2.A000330,07/02/2020,One Housing Group,COMMERCIAL SUPPLIER,932.96,D12534,OP - EXTRA CARE,ADULTS & HEALTH,ADULT SOCIAL CARE,OLDER PEOPLE,OP SERVICES,DOMICILIARY CARE - THIRD PARTY,06/17/2020,
OFH2021Q2.A000331,07/02/2020,One Housing Group,COMMERCIAL SUPPLIER,932.96,D12534,OP - EXTRA CARE,ADULTS & HEALTH,ADULT SOCIAL CARE,OLDER PEOPLE,OP SERVICES,DOMICILIARY CARE - THIRD PARTY,06/17/2020,
OFH2021Q2.A000332,07/02/2020,One Housing Group,COMMERCIAL SUPPLIER,1256.64,D12534,OP - EXTRA CARE,ADULTS & HEALTH,ADULT SOCIAL CARE,OLDER PEOPLE,OP SERVICES,DOMICILIARY CARE - THIRD PARTY,06/17/2020,
OFH2021Q2.A000333,07/02/2020,One Housing Group,COMMERCIAL SUPPLIER,2589.44,D12534,OP - EXTRA CARE,ADULTS & HEALTH,ADULT SOCIAL CARE,OLDER PEOPLE,OP SERVICES,DOMICILIARY CARE - THIRD PARTY,06/17/2020,
OFH2021Q2.A000334,07/02/2020,One Housing Group,COMMERCIAL SUPPLIER,2589.44,D12534,OP - EXTRA CARE,ADULTS & HEALTH,ADULT SOCIAL CARE,OLDER PEOPLE,OP SERVICES,DOMICILIARY CARE - THIRD PARTY,06/17/2020,
OFH2021Q2.A000335,07/02/2020,One Housing Group,COMMERCIAL SUPPLIER,2589.44,D12534,OP - EXTRA CARE,ADULTS & HEALTH,ADULT SOCIAL CARE,OLDER PEOPLE,OP SERVICES,DOMICILIARY CARE - THIRD PARTY,06/17/2020,
OFH2021Q2.A000336,07/02/2020,One Housing Group,COMMERCIAL SUPPLIER,2589.44,D12534,OP - EXTRA CARE,ADULTS & HEALTH,ADULT SOCIAL CARE,OLDER PEOPLE,OP SERVICES,DOMICILIARY CARE - THIRD PARTY,06/17/2020,
OFH2021Q2.A000337,07/02/2020,One Housing Group,COMMERCIAL SUPPLIER,2589.44,D12534,OP - EXTRA CARE,ADULTS & HEALTH,ADULT SOCIAL CARE,OLDER PEOPLE,OP SERVICES,DOMICILIARY CARE - THIRD PARTY,06/17/2020,
OFH2021Q2.A000338,07/02/2020,One Housing Group,COMMERCIAL SUPPLIER,2589.44,D12534,OP - EXTRA CARE,ADULTS & HEALTH,ADULT SOCIAL CARE,OLDER PEOPLE,OP SERVICES,DOMICILIARY CARE - THIRD PARTY,06/17/2020,
OFH2021Q2.A000339,07/02/2020,One Housing Group,COMMERCIAL SUPPLIER,2589.44,D12534,OP - EXTRA CARE,ADULTS & HEALTH,ADULT SOCIAL CARE,OLDER PEOPLE,OP SERVICES,DOMICILIARY CARE - THIRD PARTY,06/17/2020,
OFH2021Q2.A000340,07/02/2020,One Housing Group,COMMERCIAL SUPPLIER,2589.44,D12534,OP - EXTRA CARE,ADULTS & HEALTH,ADULT SOCIAL CARE,OLDER PEOPLE,OP SERVICES,DOMICILIARY CARE - THIRD PARTY,06/17/2020,
OFH2021Q2.A000341,07/02/2020,One Housing Group,COMMERCIAL SUPPLIER,2589.44,D12534,OP - EXTRA CARE,ADULTS & HEALTH,ADULT SOCIAL CARE,OLDER PEOPLE,OP SERVICES,DOMICILIARY CARE - THIRD PARTY,06/17/2020,
OFH2021Q2.A000342,07/02/2020,One Housing Group,COMMERCIAL SUPPLIER,2589.44,D12534,OP - EXTRA CARE,ADULTS & HEALTH,ADULT SOCIAL CARE,OLDER PEOPLE,OP SERVICES,DOMICILIARY CARE - THIRD PARTY,06/17/2020,
OFH2021Q2.A000343,07/02/2020,One Housing Group,COMMERCIAL SUPPLIER,913.92,D12534,OP - EXTRA CARE,ADULTS & HEALTH,ADULT SOCIAL CARE,OLDER PEOPLE,OP SERVICES,DOMICILIARY CARE - THIRD PARTY,06/17/2020,
OFH2021Q2.A000344,07/02/2020,One Housing Group,COMMERCIAL SUPPLIER,837.76,D12228,LD - SHARED LIVES,ADULTS & HEALTH,ADULT SOCIAL CARE,ADULTS WITH LEARNING DIFFICULTIES,ALD SERVICES,DOMICILIARY CARE - THIRD PARTY,06/17/2020,
OFH2021Q2.A000345,07/02/2020,One Housing Group,COMMERCIAL SUPPLIER,-9678.4,D12534,OP - EXTRA CARE,ADULTS & HEALTH,ADULT SOCIAL CARE,OLDER PEOPLE,OP SERVICES,PRIVATE CONTRACTORS PAYMENT - OTHER,06/18/2020,
OFH2021Q2.A000346,07/02/2020,One Housing Group,COMMERCIAL SUPPLIER,533.12,D12534,OP - EXTRA CARE,ADULTS & HEALTH,ADULT SOCIAL CARE,OLDER PEOPLE,OP SERVICES,DOMICILIARY CARE - THIRD PARTY,06/17/2020,
OFH2021Q2.A000347,07/02/2020,One Housing Group,COMMERCIAL SUPPLIER,990.08,D12534,OP - EXTRA CARE,ADULTS & HEALTH,ADULT SOCIAL CARE,OLDER PEOPLE,OP SERVICES,DOMICILIARY CARE - THIRD PARTY,06/17/2020,
OFH2021Q2.A000348,07/02/2020,One Housing Group,COMMERCIAL SUPPLIER,666.4,D12534,OP - EXTRA CARE,ADULTS & HEALTH,ADULT SOCIAL CARE,OLDER PEOPLE,OP SERVICES,DOMICILIARY CARE - THIRD PARTY,06/17/2020,
OFH2021Q2.A000349,07/02/2020,One Housing Group,COMMERCIAL SUPPLIER,780.64,D12534,OP - EXTRA CARE,ADULTS & HEALTH,ADULT SOCIAL CARE,OLDER PEOPLE,OP SERVICES,DOMICILIARY CARE - THIRD PARTY,06/17/2020,
OFH2021Q2.A000350,07/02/2020,One Housing Group,COMMERCIAL SUPPLIER,1218.56,D12534,OP - EXTRA CARE,ADULTS & HEALTH,ADULT SOCIAL CARE,OLDER PEOPLE,OP SERVICES,DOMICILIARY CARE - THIRD PARTY,06/17/2020,
OFH2021Q2.A000351,07/02/2020,One Housing Group,COMMERCIAL SUPPLIER,1466.08,D12534,OP - EXTRA CARE,ADULTS & HEALTH,ADULT SOCIAL CARE,OLDER PEOPLE,OP SERVICES,DOMICILIARY CARE - THIRD PARTY,06/17/2020,
OFH2021Q2.A000352,07/02/2020,One Housing Group,COMMERCIAL SUPPLIER,1675.52,D12534,OP - EXTRA CARE,ADULTS & HEALTH,ADULT SOCIAL CARE,OLDER PEOPLE,OP SERVICES,DOMICILIARY CARE - THIRD PARTY,06/17/2020,
OFH2021Q2.A000353,07/02/2020,One Housing Group,COMMERCIAL SUPPLIER,1351.84,D12534,OP - EXTRA CARE,ADULTS & HEALTH,ADULT SOCIAL CARE,OLDER PEOPLE,OP SERVICES,DOMICILIARY CARE - THIRD PARTY,06/17/2020,
OFH2021Q2.A000354,07/02/2020,Pilton Prop Ltd,COMMERCIAL SUPPLIER,1199.02,D14142,TEMPORARY ACCOMMODATION,RESIDENT SERVICES (GF),HOUSING MANAGEMENT,HOUSING NEEDS,ACCOMMODATION SERVICES - GF,PAYMENT TO PRIVATE SECTOR LANDLORDS (PSL),07/01/2020,
OFH2021Q2.A000355,07/02/2020,Premier Foods Service Provider Limited,COMMERCIAL SUPPLIER,2667.5,D12564,MISCELLANEOUS COVID-19 COSTS,ADULTS & HEALTH,ADULT SOCIAL CARE,OTHER - ADULTS,ASC SENIOR MANAGEMENT,CATERING EQUIPMENT,06/29/2020,Catering.Equipment & Utensils.Disposables
OFH2021Q2.A000356,07/02/2020,Remark! Ltd,COMMERCIAL SUPPLIER,759,D12541,OP AND PD CARE MANAGEMENT NORTH,ADULTS & HEALTH,ADULT SOCIAL CARE,OLDER PEOPLE,OP SERVICES,PRIVATE CONTRACTORS PAYMENT - OTHER,06/30/2020,"Social Community Care - Adult.Advice, Advocacy & Counselling Services.NA"
OFH2021Q2.A000357,07/02/2020,Remark! Ltd,COMMERCIAL SUPPLIER,690,D12541,OP AND PD CARE MANAGEMENT NORTH,ADULTS & HEALTH,ADULT SOCIAL CARE,OLDER PEOPLE,OP SERVICES,PRIVATE CONTRACTORS PAYMENT - OTHER,06/30/2020,"Social Community Care - Adult.Advice, Advocacy & Counselling Services.NA"
OFH2021Q2.A000358,07/02/2020,Roberts & Denny's (London) Ltd,COMMERCIAL SUPPLIER,461.25,D18053,ESTATE SERVICES MANAGER (SOUTH),RESIDENT SERVICES (HRA),HOUSING SERVICES (HRA),NEIGHBOURHOOD HOUSING,CONTRACT MANAGEMENT,REMOVAL SERVICES,05/19/2020,Facilities & Management .Removals.NA
OFH2021Q2.A000359,07/02/2020,Roberts & Denny's (London) Ltd,COMMERCIAL SUPPLIER,-461.25,D18053,ESTATE SERVICES MANAGER (SOUTH),RESIDENT SERVICES (HRA),HOUSING SERVICES (HRA),NEIGHBOURHOOD HOUSING,CONTRACT MANAGEMENT,REMOVAL SERVICES,07/01/2020,Facilities & Management .Removals.NA
OFH2021Q2.A000360,07/02/2020,Roberts & Denny's (London) Ltd,COMMERCIAL SUPPLIER,550,D18053,ESTATE SERVICES MANAGER (SOUTH),RESIDENT SERVICES (HRA),HOUSING SERVICES (HRA),NEIGHBOURHOOD HOUSING,CONTRACT MANAGEMENT,REMOVAL SERVICES,05/19/2020,Facilities & Management .Removals.NA
OFH2021Q2.A000361,07/02/2020,Roberts & Denny's (London) Ltd,COMMERCIAL SUPPLIER,-550,D18053,ESTATE SERVICES MANAGER (SOUTH),RESIDENT SERVICES (HRA),HOUSING SERVICES (HRA),NEIGHBOURHOOD HOUSING,CONTRACT MANAGEMENT,REMOVAL SERVICES,07/01/2020,Facilities & Management .Removals.NA
OFH2021Q2.A000362,07/02/2020,Roberts & Denny's (London) Ltd,COMMERCIAL SUPPLIER,1011.25,D18053,ESTATE SERVICES MANAGER (SOUTH),RESIDENT SERVICES (HRA),HOUSING SERVICES (HRA),NEIGHBOURHOOD HOUSING,CONTRACT MANAGEMENT,REMOVAL SERVICES,07/01/2020,Facilities & Management .Removals.NA
OFH2021Q2.A000363,07/02/2020,S A Associates Management Training Ltd,COMMERCIAL SUPPLIER,995,D10373,L&D ALL DIRECTORATES,FINANCE & INVESTMENT,HUMAN RESOURCES & ORGANISATIONAL DEVELOPMENT,HUMAN RESOURCES & ORGANISATIONAL DEVELOPMENT,LEARNING & DEVELOPMENT,PROFESSIONAL SERVICES - GENERAL,07/01/2020,Human Resources.Professional & Advisory Services.NA
OFH2021Q2.A000364,07/02/2020,Sanctuary Housing Association,COMMERCIAL SUPPLIER,854.99,D13092,NRPF- LONE CLIENTS OVER 65,NO RECOURSE TO PUBLIC FUNDS,NO RECOURSE TO PUBLIC FUNDS,NO RECOURSE TO PUBLIC FUNDS,NO RECOURSE TO PUBLIC FUNDS,RENTS PAYABLE,07/01/2020,
OFH2021Q2.A000365,07/02/2020,Southside Partnership,COMMERCIAL SUPPLIER,42216.67,D12228,LD - SHARED LIVES,ADULTS & HEALTH,ADULT SOCIAL CARE,ADULTS WITH LEARNING DIFFICULTIES,ALD SERVICES,SUPPORTED OTHER ACCOMMODATION - PRIVATE CONTRACTORS PAYMENT,07/01/2020,
OFH2021Q2.A000366,07/02/2020,Springboard Research Ltd,COMMERCIAL SUPPLIER,3675,D14577,BRIXTON CENTRAL,SUSTAINABLE GROWTH & OPPORTUNITY,NEIGHBOURHOOD REGENERATION & HOUSING GROWTH,NEIGHBOURHOOD REGENERATION,"NEIGHBOURHOOD REGENERATION: BRIXTON, CLAPHAM, STOCKWELL & NORWOOD",ICT MAINTENANCE AND SUPPORT,06/29/2020,Information Communication Tech.Services.NA
OFH2021Q2.A000367,07/02/2020,Starting Care,COMMERCIAL SUPPLIER,1550,D14142,TEMPORARY ACCOMMODATION,RESIDENT SERVICES (GF),HOUSING MANAGEMENT,HOUSING NEEDS,ACCOMMODATION SERVICES - GF,BED & BREAKFAST - PRIVATE CONTRACTORS PAYMENT,07/01/2020,
OFH2021Q2.A000368,07/02/2020,Starting Care,COMMERCIAL SUPPLIER,1929.75,D14142,TEMPORARY ACCOMMODATION,RESIDENT SERVICES (GF),HOUSING MANAGEMENT,HOUSING NEEDS,ACCOMMODATION SERVICES - GF,BED & BREAKFAST - PRIVATE CONTRACTORS PAYMENT,07/01/2020,
OFH2021Q2.A000369,07/02/2020,Starting Care,COMMERCIAL SUPPLIER,1929.75,D14142,TEMPORARY ACCOMMODATION,RESIDENT SERVICES (GF),HOUSING MANAGEMENT,HOUSING NEEDS,ACCOMMODATION SERVICES - GF,BED & BREAKFAST - PRIVATE CONTRACTORS PAYMENT,07/01/2020,
OFH2021Q2.A000370,07/02/2020,Starting Care,COMMERCIAL SUPPLIER,910.1,D14142,TEMPORARY ACCOMMODATION,RESIDENT SERVICES (GF),HOUSING MANAGEMENT,HOUSING NEEDS,ACCOMMODATION SERVICES - GF,BED & BREAKFAST - PRIVATE CONTRACTORS PAYMENT,07/01/2020,
OFH2021Q2.A000371,07/02/2020,Starting Care,COMMERCIAL SUPPLIER,2015,D14142,TEMPORARY ACCOMMODATION,RESIDENT SERVICES (GF),HOUSING MANAGEMENT,HOUSING NEEDS,ACCOMMODATION SERVICES - GF,BED & BREAKFAST - PRIVATE CONTRACTORS PAYMENT,07/01/2020,
OFH2021Q2.A000372,07/02/2020,Starting Care,COMMERCIAL SUPPLIER,1929.75,D14142,TEMPORARY ACCOMMODATION,RESIDENT SERVICES (GF),HOUSING MANAGEMENT,HOUSING NEEDS,ACCOMMODATION SERVICES - GF,BED & BREAKFAST - PRIVATE CONTRACTORS PAYMENT,07/01/2020,
OFH2021Q2.A000373,07/02/2020,Starting Care,COMMERCIAL SUPPLIER,1484.9,D14142,TEMPORARY ACCOMMODATION,RESIDENT SERVICES (GF),HOUSING MANAGEMENT,HOUSING NEEDS,ACCOMMODATION SERVICES - GF,BED & BREAKFAST - PRIVATE CONTRACTORS PAYMENT,07/01/2020,
OFH2021Q2.A000374,07/02/2020,Starting Care,COMMERCIAL SUPPLIER,1240,D14142,TEMPORARY ACCOMMODATION,RESIDENT SERVICES (GF),HOUSING MANAGEMENT,HOUSING NEEDS,ACCOMMODATION SERVICES - GF,BED & BREAKFAST - PRIVATE CONTRACTORS PAYMENT,07/01/2020,
OFH2021Q2.A000375,07/02/2020,Starting Care,COMMERCIAL SUPPLIER,1484.9,D14142,TEMPORARY ACCOMMODATION,RESIDENT SERVICES (GF),HOUSING MANAGEMENT,HOUSING NEEDS,ACCOMMODATION SERVICES - GF,BED & BREAKFAST - PRIVATE CONTRACTORS PAYMENT,07/01/2020,
OFH2021Q2.A000376,07/02/2020,Starting Care,COMMERCIAL SUPPLIER,1550,D14142,TEMPORARY ACCOMMODATION,RESIDENT SERVICES (GF),HOUSING MANAGEMENT,HOUSING NEEDS,ACCOMMODATION SERVICES - GF,BED & BREAKFAST - PRIVATE CONTRACTORS PAYMENT,07/01/2020,
OFH2021Q2.A000377,07/02/2020,Starting Care,COMMERCIAL SUPPLIER,1484.9,D14142,TEMPORARY ACCOMMODATION,RESIDENT SERVICES (GF),HOUSING MANAGEMENT,HOUSING NEEDS,ACCOMMODATION SERVICES - GF,BED & BREAKFAST - PRIVATE CONTRACTORS PAYMENT,07/01/2020,
OFH2021Q2.A000378,07/02/2020,Starting Care,COMMERCIAL SUPPLIER,1178,D14142,TEMPORARY ACCOMMODATION,RESIDENT SERVICES (GF),HOUSING MANAGEMENT,HOUSING NEEDS,ACCOMMODATION SERVICES - GF,BED & BREAKFAST - PRIVATE CONTRACTORS PAYMENT,07/01/2020,
OFH2021Q2.A000379,07/02/2020,Starting Care,COMMERCIAL SUPPLIER,2253.7,D14142,TEMPORARY ACCOMMODATION,RESIDENT SERVICES (GF),HOUSING MANAGEMENT,HOUSING NEEDS,ACCOMMODATION SERVICES - GF,BED & BREAKFAST - PRIVATE CONTRACTORS PAYMENT,07/01/2020,
OFH2021Q2.A000380,07/02/2020,Starting Care,COMMERCIAL SUPPLIER,1484.9,D14142,TEMPORARY ACCOMMODATION,RESIDENT SERVICES (GF),HOUSING MANAGEMENT,HOUSING NEEDS,ACCOMMODATION SERVICES - GF,BED & BREAKFAST - PRIVATE CONTRACTORS PAYMENT,07/01/2020,
OFH2021Q2.A000381,07/02/2020,Starting Care,COMMERCIAL SUPPLIER,1484.9,D14142,TEMPORARY ACCOMMODATION,RESIDENT SERVICES (GF),HOUSING MANAGEMENT,HOUSING NEEDS,ACCOMMODATION SERVICES - GF,BED & BREAKFAST - PRIVATE CONTRACTORS PAYMENT,07/01/2020,
OFH2021Q2.A000382,07/02/2020,Starting Care,COMMERCIAL SUPPLIER,2253.7,D14142,TEMPORARY ACCOMMODATION,RESIDENT SERVICES (GF),HOUSING MANAGEMENT,HOUSING NEEDS,ACCOMMODATION SERVICES - GF,BED & BREAKFAST - PRIVATE CONTRACTORS PAYMENT,07/01/2020,
OFH2021Q2.A000383,07/02/2020,Starting Care,COMMERCIAL SUPPLIER,1929.75,D14142,TEMPORARY ACCOMMODATION,RESIDENT SERVICES (GF),HOUSING MANAGEMENT,HOUSING NEEDS,ACCOMMODATION SERVICES - GF,BED & BREAKFAST - PRIVATE CONTRACTORS PAYMENT,07/01/2020,
OFH2021Q2.A000384,07/02/2020,Starting Care,COMMERCIAL SUPPLIER,1240,D14142,TEMPORARY ACCOMMODATION,RESIDENT SERVICES (GF),HOUSING MANAGEMENT,HOUSING NEEDS,ACCOMMODATION SERVICES - GF,BED & BREAKFAST - PRIVATE CONTRACTORS PAYMENT,07/01/2020,
OFH2021Q2.A000385,07/02/2020,Starting Care,COMMERCIAL SUPPLIER,1484.9,D14142,TEMPORARY ACCOMMODATION,RESIDENT SERVICES (GF),HOUSING MANAGEMENT,HOUSING NEEDS,ACCOMMODATION SERVICES - GF,BED & BREAKFAST - PRIVATE CONTRACTORS PAYMENT,07/01/2020,
OFH2021Q2.A000386,07/02/2020,Starting Care,COMMERCIAL SUPPLIER,1619.75,D14142,TEMPORARY ACCOMMODATION,RESIDENT SERVICES (GF),HOUSING MANAGEMENT,HOUSING NEEDS,ACCOMMODATION SERVICES - GF,BED & BREAKFAST - PRIVATE CONTRACTORS PAYMENT,07/01/2020,
OFH2021Q2.A000387,07/02/2020,Starting Care,COMMERCIAL SUPPLIER,848.3,D14142,TEMPORARY ACCOMMODATION,RESIDENT SERVICES (GF),HOUSING MANAGEMENT,HOUSING NEEDS,ACCOMMODATION SERVICES - GF,BED & BREAKFAST - PRIVATE CONTRACTORS PAYMENT,07/01/2020,
OFH2021Q2.A000388,07/02/2020,Starting Care,COMMERCIAL SUPPLIER,1484.9,D14142,TEMPORARY ACCOMMODATION,RESIDENT SERVICES (GF),HOUSING MANAGEMENT,HOUSING NEEDS,ACCOMMODATION SERVICES - GF,BED & BREAKFAST - PRIVATE CONTRACTORS PAYMENT,07/01/2020,
OFH2021Q2.A000389,07/02/2020,Starting Care,COMMERCIAL SUPPLIER,1484.9,D14142,TEMPORARY ACCOMMODATION,RESIDENT SERVICES (GF),HOUSING MANAGEMENT,HOUSING NEEDS,ACCOMMODATION SERVICES - GF,BED & BREAKFAST - PRIVATE CONTRACTORS PAYMENT,07/01/2020,
OFH2021Q2.A000390,07/02/2020,Starting Care,COMMERCIAL SUPPLIER,1484.9,D14142,TEMPORARY ACCOMMODATION,RESIDENT SERVICES (GF),HOUSING MANAGEMENT,HOUSING NEEDS,ACCOMMODATION SERVICES - GF,BED & BREAKFAST - PRIVATE CONTRACTORS PAYMENT,07/01/2020,
OFH2021Q2.A000391,07/02/2020,Starting Care,COMMERCIAL SUPPLIER,1484.9,D14142,TEMPORARY ACCOMMODATION,RESIDENT SERVICES (GF),HOUSING MANAGEMENT,HOUSING NEEDS,ACCOMMODATION SERVICES - GF,BED & BREAKFAST - PRIVATE CONTRACTORS PAYMENT,07/01/2020,
OFH2021Q2.A000392,07/02/2020,Starting Care,COMMERCIAL SUPPLIER,1929.75,D14142,TEMPORARY ACCOMMODATION,RESIDENT SERVICES (GF),HOUSING MANAGEMENT,HOUSING NEEDS,ACCOMMODATION SERVICES - GF,BED & BREAKFAST - PRIVATE CONTRACTORS PAYMENT,07/01/2020,
OFH2021Q2.A000393,07/02/2020,Starting Care,COMMERCIAL SUPPLIER,1484.9,D14142,TEMPORARY ACCOMMODATION,RESIDENT SERVICES (GF),HOUSING MANAGEMENT,HOUSING NEEDS,ACCOMMODATION SERVICES - GF,BED & BREAKFAST - PRIVATE CONTRACTORS PAYMENT,07/01/2020,
OFH2021Q2.A000394,07/02/2020,Starting Care,COMMERCIAL SUPPLIER,1484.9,D14142,TEMPORARY ACCOMMODATION,RESIDENT SERVICES (GF),HOUSING MANAGEMENT,HOUSING NEEDS,ACCOMMODATION SERVICES - GF,BED & BREAKFAST - PRIVATE CONTRACTORS PAYMENT,07/01/2020,
OFH2021Q2.A000395,07/02/2020,Starting Care,COMMERCIAL SUPPLIER,1929.75,D14142,TEMPORARY ACCOMMODATION,RESIDENT SERVICES (GF),HOUSING MANAGEMENT,HOUSING NEEDS,ACCOMMODATION SERVICES - GF,BED & BREAKFAST - PRIVATE CONTRACTORS PAYMENT,07/01/2020,
OFH2021Q2.A000396,07/02/2020,Starting Care,COMMERCIAL SUPPLIER,1550,D14142,TEMPORARY ACCOMMODATION,RESIDENT SERVICES (GF),HOUSING MANAGEMENT,HOUSING NEEDS,ACCOMMODATION SERVICES - GF,BED & BREAKFAST - PRIVATE CONTRACTORS PAYMENT,07/01/2020,
OFH2021Q2.A000397,07/02/2020,Starting Care,COMMERCIAL SUPPLIER,1929.75,D14142,TEMPORARY ACCOMMODATION,RESIDENT SERVICES (GF),HOUSING MANAGEMENT,HOUSING NEEDS,ACCOMMODATION SERVICES - GF,BED & BREAKFAST - PRIVATE CONTRACTORS PAYMENT,07/01/2020,
OFH2021Q2.A000398,07/02/2020,Starting Care,COMMERCIAL SUPPLIER,1484.9,D14142,TEMPORARY ACCOMMODATION,RESIDENT SERVICES (GF),HOUSING MANAGEMENT,HOUSING NEEDS,ACCOMMODATION SERVICES - GF,BED & BREAKFAST - PRIVATE CONTRACTORS PAYMENT,07/01/2020,
OFH2021Q2.A000399,07/02/2020,Starting Care,COMMERCIAL SUPPLIER,1929.75,D14142,TEMPORARY ACCOMMODATION,RESIDENT SERVICES (GF),HOUSING MANAGEMENT,HOUSING NEEDS,ACCOMMODATION SERVICES - GF,BED & BREAKFAST - PRIVATE CONTRACTORS PAYMENT,07/01/2020,
OFH2021Q2.A000400,07/02/2020,Starting Care,COMMERCIAL SUPPLIER,1302,D14142,TEMPORARY ACCOMMODATION,RESIDENT SERVICES (GF),HOUSING MANAGEMENT,HOUSING NEEDS,ACCOMMODATION SERVICES - GF,BED & BREAKFAST - PRIVATE CONTRACTORS PAYMENT,07/01/2020,
OFH2021Q2.A000401,07/02/2020,Starting Care,COMMERCIAL SUPPLIER,1929.75,D14142,TEMPORARY ACCOMMODATION,RESIDENT SERVICES (GF),HOUSING MANAGEMENT,HOUSING NEEDS,ACCOMMODATION SERVICES - GF,BED & BREAKFAST - PRIVATE CONTRACTORS PAYMENT,07/01/2020,
OFH2021Q2.A000402,07/02/2020,Starting Care,COMMERCIAL SUPPLIER,1178,D14142,TEMPORARY ACCOMMODATION,RESIDENT SERVICES (GF),HOUSING MANAGEMENT,HOUSING NEEDS,ACCOMMODATION SERVICES - GF,BED & BREAKFAST - PRIVATE CONTRACTORS PAYMENT,07/01/2020,
OFH2021Q2.A000403,07/02/2020,Starting Care,COMMERCIAL SUPPLIER,1395,D14142,TEMPORARY ACCOMMODATION,RESIDENT SERVICES (GF),HOUSING MANAGEMENT,HOUSING NEEDS,ACCOMMODATION SERVICES - GF,BED & BREAKFAST - PRIVATE CONTRACTORS PAYMENT,07/01/2020,
OFH2021Q2.A000404,07/02/2020,Starting Care,COMMERCIAL SUPPLIER,1782.5,D14142,TEMPORARY ACCOMMODATION,RESIDENT SERVICES (GF),HOUSING MANAGEMENT,HOUSING NEEDS,ACCOMMODATION SERVICES - GF,BED & BREAKFAST - PRIVATE CONTRACTORS PAYMENT,07/01/2020,
OFH2021Q2.A000405,07/02/2020,Starting Care,COMMERCIAL SUPPLIER,1929.75,D14142,TEMPORARY ACCOMMODATION,RESIDENT SERVICES (GF),HOUSING MANAGEMENT,HOUSING NEEDS,ACCOMMODATION SERVICES - GF,BED & BREAKFAST - PRIVATE CONTRACTORS PAYMENT,07/01/2020,
OFH2021Q2.A000406,07/02/2020,Starting Care,COMMERCIAL SUPPLIER,1484.9,D14142,TEMPORARY ACCOMMODATION,RESIDENT SERVICES (GF),HOUSING MANAGEMENT,HOUSING NEEDS,ACCOMMODATION SERVICES - GF,BED & BREAKFAST - PRIVATE CONTRACTORS PAYMENT,07/01/2020,
OFH2021Q2.A000407,07/02/2020,Starting Care,COMMERCIAL SUPPLIER,1302,D14142,TEMPORARY ACCOMMODATION,RESIDENT SERVICES (GF),HOUSING MANAGEMENT,HOUSING NEEDS,ACCOMMODATION SERVICES - GF,BED & BREAKFAST - PRIVATE CONTRACTORS PAYMENT,07/01/2020,
OFH2021Q2.A000408,07/02/2020,Starting Care,COMMERCIAL SUPPLIER,1484.9,D14142,TEMPORARY ACCOMMODATION,RESIDENT SERVICES (GF),HOUSING MANAGEMENT,HOUSING NEEDS,ACCOMMODATION SERVICES - GF,BED & BREAKFAST - PRIVATE CONTRACTORS PAYMENT,07/01/2020,
OFH2021Q2.A000409,07/02/2020,Starting Care,COMMERCIAL SUPPLIER,1484.9,D14142,TEMPORARY ACCOMMODATION,RESIDENT SERVICES (GF),HOUSING MANAGEMENT,HOUSING NEEDS,ACCOMMODATION SERVICES - GF,BED & BREAKFAST - PRIVATE CONTRACTORS PAYMENT,07/01/2020,
OFH2021Q2.A000410,07/02/2020,Starting Care,COMMERCIAL SUPPLIER,1085,D14142,TEMPORARY ACCOMMODATION,RESIDENT SERVICES (GF),HOUSING MANAGEMENT,HOUSING NEEDS,ACCOMMODATION SERVICES - GF,BED & BREAKFAST - PRIVATE CONTRACTORS PAYMENT,07/01/2020,
OFH2021Q2.A000411,07/02/2020,Starting Care,COMMERCIAL SUPPLIER,1484.9,D14142,TEMPORARY ACCOMMODATION,RESIDENT SERVICES (GF),HOUSING MANAGEMENT,HOUSING NEEDS,ACCOMMODATION SERVICES - GF,BED & BREAKFAST - PRIVATE CONTRACTORS PAYMENT,07/01/2020,
OFH2021Q2.A000412,07/02/2020,Starting Care,COMMERCIAL SUPPLIER,2253.7,D14142,TEMPORARY ACCOMMODATION,RESIDENT SERVICES (GF),HOUSING MANAGEMENT,HOUSING NEEDS,ACCOMMODATION SERVICES - GF,BED & BREAKFAST - PRIVATE CONTRACTORS PAYMENT,07/01/2020,
OFH2021Q2.A000413,07/02/2020,Starting Care,COMMERCIAL SUPPLIER,1782.5,D14142,TEMPORARY ACCOMMODATION,RESIDENT SERVICES (GF),HOUSING MANAGEMENT,HOUSING NEEDS,ACCOMMODATION SERVICES - GF,BED & BREAKFAST - PRIVATE CONTRACTORS PAYMENT,07/01/2020,
OFH2021Q2.A000414,07/02/2020,Starting Care,COMMERCIAL SUPPLIER,1484.9,D14142,TEMPORARY ACCOMMODATION,RESIDENT SERVICES (GF),HOUSING MANAGEMENT,HOUSING NEEDS,ACCOMMODATION SERVICES - GF,BED & BREAKFAST - PRIVATE CONTRACTORS PAYMENT,07/01/2020,
OFH2021Q2.A000415,07/02/2020,Starting Care,COMMERCIAL SUPPLIER,1457,D14142,TEMPORARY ACCOMMODATION,RESIDENT SERVICES (GF),HOUSING MANAGEMENT,HOUSING NEEDS,ACCOMMODATION SERVICES - GF,BED & BREAKFAST - PRIVATE CONTRACTORS PAYMENT,07/01/2020,
OFH2021Q2.A000416,07/02/2020,Starting Care,COMMERCIAL SUPPLIER,1147,D14142,TEMPORARY ACCOMMODATION,RESIDENT SERVICES (GF),HOUSING MANAGEMENT,HOUSING NEEDS,ACCOMMODATION SERVICES - GF,BED & BREAKFAST - PRIVATE CONTRACTORS PAYMENT,07/01/2020,
OFH2021Q2.A000417,07/02/2020,The Artemis Team,COMMERCIAL SUPPLIER,304.29,D13135,16+ INDEPENDENCE PLACEMENTS,CHILDREN'S SERVICES,CHILDREN'S SOCIAL CARE,CORPORATE PARENTING,16+ INDEPENDENCE SERVICE (LEAVING CARE),RENTS PAYABLE,07/01/2020,
OFH2021Q2.A000418,07/02/2020,The Artemis Team,COMMERCIAL SUPPLIER,13540.71,D13135,16+ INDEPENDENCE PLACEMENTS,CHILDREN'S SERVICES,CHILDREN'S SOCIAL CARE,CORPORATE PARENTING,16+ INDEPENDENCE SERVICE (LEAVING CARE),SUPPORTED OTHER ACCOMMODATION - PRIVATE CONTRACTORS PAYMENT,07/01/2020,
OFH2021Q2.A000419,07/02/2020,The Artemis Team,COMMERCIAL SUPPLIER,0.36,D13135,16+ INDEPENDENCE PLACEMENTS,CHILDREN'S SERVICES,CHILDREN'S SOCIAL CARE,CORPORATE PARENTING,16+ INDEPENDENCE SERVICE (LEAVING CARE),SUPPORTED OTHER ACCOMMODATION - PRIVATE CONTRACTORS PAYMENT,07/01/2020,
OFH2021Q2.A000420,07/02/2020,The Artemis Team,COMMERCIAL SUPPLIER,153.43,D13135,16+ INDEPENDENCE PLACEMENTS,CHILDREN'S SERVICES,CHILDREN'S SOCIAL CARE,CORPORATE PARENTING,16+ INDEPENDENCE SERVICE (LEAVING CARE),RENTS PAYABLE,07/01/2020,
OFH2021Q2.A000421,07/02/2020,The Artemis Team,COMMERCIAL SUPPLIER,6826.95,D13135,16+ INDEPENDENCE PLACEMENTS,CHILDREN'S SERVICES,CHILDREN'S SOCIAL CARE,CORPORATE PARENTING,16+ INDEPENDENCE SERVICE (LEAVING CARE),SUPPORTED OTHER ACCOMMODATION - PRIVATE CONTRACTORS PAYMENT,07/01/2020,
OFH2021Q2.A000422,07/02/2020,The Artemis Team,COMMERCIAL SUPPLIER,1047.8,D13135,16+ INDEPENDENCE PLACEMENTS,CHILDREN'S SERVICES,CHILDREN'S SOCIAL CARE,CORPORATE PARENTING,16+ INDEPENDENCE SERVICE (LEAVING CARE),CLIENT ALLOWANCES - SOCIAL SERVICES,07/01/2020,
OFH2021Q2.A000423,07/02/2020,The Artemis Team,COMMERCIAL SUPPLIER,220,D13135,16+ INDEPENDENCE PLACEMENTS,CHILDREN'S SERVICES,CHILDREN'S SOCIAL CARE,CORPORATE PARENTING,16+ INDEPENDENCE SERVICE (LEAVING CARE),RENTS PAYABLE,07/01/2020,
OFH2021Q2.A000424,07/02/2020,The Artemis Team,COMMERCIAL SUPPLIER,9790,D13135,16+ INDEPENDENCE PLACEMENTS,CHILDREN'S SERVICES,CHILDREN'S SOCIAL CARE,CORPORATE PARENTING,16+ INDEPENDENCE SERVICE (LEAVING CARE),SUPPORTED OTHER ACCOMMODATION - PRIVATE CONTRACTORS PAYMENT,07/01/2020,
OFH2021Q2.A000425,07/02/2020,The McLean Partnership Ltd,COMMERCIAL SUPPLIER,20333,D14002,SENIOR TEAM - SUSTAINABLE GROWTH & OPPORTUNITY,SUSTAINABLE GROWTH & OPPORTUNITY,SENIOR MANAGEMENT - SUSTAINABLE GROWTH & OPPORTUNITY,SENIOR MANAGEMENT - SUSTAINABLE GROWTH & OPPORTUNITY,SENIOR MANAGEMENT - SUSTAINABLE GROWTH & OPPORTUNITY,PROFESSIONAL SERVICES - GENERAL,06/15/2020,Human Resources.Professional & Advisory Services.NA
OFH2021Q2.A000426,07/02/2020,Tyco Fire & Integrated Solutions UK Ltd,COMMERCIAL SUPPLIER,24969.62,D14262,PARKING - PARKING OPERATIONS,RESIDENT SERVICES (GF),ENVIRONMENT & STREETSCENE,PARKING & ENFORCEMENT,PARKING OPERATIONS,PRIVATE CONTRACTORS PAYMENT - OTHER,06/04/2020,Street & Traffic Management.Parking.Car Parks
OFH2021Q2.A000427,07/02/2020,Unique Personnel (Uk) Ltd,COMMERCIAL SUPPLIER,633.6,D13027,CHILDREN WITH DISABILITIES FWi,CHILDREN'S SERVICES,CHILDREN'S SOCIAL CARE,CHILDREN SAFEGUARDING,CHILDREN WITH DISABILITIES,DOMICILIARY CARE - THIRD PARTY,07/01/2020,
OFH2021Q2.A000428,07/02/2020,Unique Personnel (Uk) Ltd,COMMERCIAL SUPPLIER,739.2,D13027,CHILDREN WITH DISABILITIES FWi,CHILDREN'S SERVICES,CHILDREN'S SOCIAL CARE,CHILDREN SAFEGUARDING,CHILDREN WITH DISABILITIES,DOMICILIARY CARE - THIRD PARTY,07/01/2020,
OFH2021Q2.A000429,07/02/2020,Unique Personnel (Uk) Ltd,COMMERCIAL SUPPLIER,708.82,D13027,CHILDREN WITH DISABILITIES FWi,CHILDREN'S SERVICES,CHILDREN'S SOCIAL CARE,CHILDREN SAFEGUARDING,CHILDREN WITH DISABILITIES,DOMICILIARY CARE - THIRD PARTY,07/01/2020,
OFH2021Q2.A000430,07/02/2020,Unique Personnel (Uk) Ltd,COMMERCIAL SUPPLIER,563.2,D13027,CHILDREN WITH DISABILITIES FWi,CHILDREN'S SERVICES,CHILDREN'S SOCIAL CARE,CHILDREN SAFEGUARDING,CHILDREN WITH DISABILITIES,DOMICILIARY CARE - THIRD PARTY,07/01/2020,
OFH2021Q2.A000431,07/02/2020,Youth Graces (UK) Ltd,COMMERCIAL SUPPLIER,524.4,D13027,CHILDREN WITH DISABILITIES FWi,CHILDREN'S SERVICES,CHILDREN'S SOCIAL CARE,CHILDREN SAFEGUARDING,CHILDREN WITH DISABILITIES,DOMICILIARY CARE - THIRD PARTY,07/01/2020,
OFH2021Q2.A000432,07/02/2020,Child Support Agency,DIRECT PAYMENTS,747.9,D10000,BALANCE SHEET COST CENTRE,,,,,PAYROLL VOLUNTARY DEDUCTIONS,07/01/2020,
OFH2021Q2.A000433,07/02/2020,Guy's & St Thomas NHS Foundation Trust,NHS BODIES,105000,D12054,PUBLIC HEALTH - HEALTH IMPROVEMENT,ADULTS & HEALTH,PUBLIC HEALTH,PUBLIC HEALTH - ADULTS,PUBLIC HEALTH - ADULTS,PAYMENT TO HEALTH AUTHORITIES,06/22/2020,Healthcare.Public Health.NA
OFH2021Q2.A000434,07/02/2020,*******,,31980,D10000,BALANCE SHEET COST CENTRE,,,,,OTHER CREDITORS- OTHER ENTITIES AND INDIVIDUALS,07/01/2020,
OFH2021Q2.A000435,07/02/2020,*******,,2248.1,D02300,ADMINISTRATIVE BODY - London Borough of Lambeth,,,,,LUMP SUM RETIREMENT BENEFIT,06/25/2020,
OFH2021Q2.A000436,07/02/2020,*******,,27675.44,D02300,ADMINISTRATIVE BODY - London Borough of Lambeth,,,,,LUMP SUM RETIREMENT BENEFIT,06/25/2020,
OFH2021Q2.A000437,07/02/2020,*******,,-229.05,D02500,COMMON FUND OPERATIONS,,,,,PENSION FUND SUNDRY CREDITOR,06/29/2020,
OFH2021Q2.A000438,07/02/2020,*******,,1145.25,D02300,ADMINISTRATIVE BODY - London Borough of Lambeth,,,,,RETURN OF CONTRIBUTIONS,06/29/2020,
OFH2021Q2.A000439,07/02/2020,*******,,15000,D02300,ADMINISTRATIVE BODY - London Borough of Lambeth,,,,,LUMP SUM RETIREMENT BENEFIT,06/30/2020,
OFH2021Q2.A000440,07/02/2020,*******,,25831.42,D02300,ADMINISTRATIVE BODY - London Borough of Lambeth,,,,,LUMP SUM RETIREMENT BENEFIT,07/01/2020,
OFH2021Q2.A000441,07/02/2020,*******,,89.44,D02300,ADMINISTRATIVE BODY - London Borough of Lambeth,,,,,LUMP SUM RETIREMENT BENEFIT,07/01/2020,
OFH2021Q2.A000442,07/02/2020,*******,,32974.09,D02300,ADMINISTRATIVE BODY - London Borough of Lambeth,,,,,LUMP SUM RETIREMENT BENEFIT,07/01/2020,
OFH2021Q2.A000443,07/02/2020,*******,,-50.92,D02500,COMMON FUND OPERATIONS,,,,,PENSION FUND SUNDRY CREDITOR,07/01/2020,
OFH2021Q2.A000444,07/02/2020,*******,,-99.73,D02300,ADMINISTRATIVE BODY - London Borough of Lambeth,,,,,RETURN OF CONTRIBUTIONS,07/01/2020,
OFH2021Q2.A000445,07/02/2020,*******,,354.33,D02300,ADMINISTRATIVE BODY - London Borough of Lambeth,,,,,RETURN OF CONTRIBUTIONS,07/01/2020,
OFH2021Q2.A000446,07/02/2020,*******,,872.87,D02300,ADMINISTRATIVE BODY - London Borough of Lambeth,,,,,RETURN OF CONTRIBUTIONS,07/01/2020,
OFH2021Q2.A000447,07/02/2020,*******,,700,D10000,BALANCE SHEET COST CENTRE,,,,,HOUSING RENTS DEBTOR,07/01/2020,
OFH2021Q2.A000448,07/02/2020,*******,,10000,D14833,LOCAL ECONOMY HARDSHIP FUND,SUSTAINABLE GROWTH & OPPORTUNITY,"ECONOMY, CULTURE & SKILLS","BUSINESS, CULTURE & INWARD INVESTMENT","BUSINESS, CULTURE & INWARD INVESTMENT",GOVERNMENT GRANTS REVENUE NON RINGFENCED,07/01/2020,
OFH2021Q2.A000449,07/02/2020,*******,,10000,D14833,LOCAL ECONOMY HARDSHIP FUND,SUSTAINABLE GROWTH & OPPORTUNITY,"ECONOMY, CULTURE & SKILLS","BUSINESS, CULTURE & INWARD INVESTMENT","BUSINESS, CULTURE & INWARD INVESTMENT",GOVERNMENT GRANTS REVENUE NON RINGFENCED,07/01/2020,
OFH2021Q2.A000450,07/02/2020,*******,,10000,D14833,LOCAL ECONOMY HARDSHIP FUND,SUSTAINABLE GROWTH & OPPORTUNITY,"ECONOMY, CULTURE & SKILLS","BUSINESS, CULTURE & INWARD INVESTMENT","BUSINESS, CULTURE & INWARD INVESTMENT",GOVERNMENT GRANTS REVENUE NON RINGFENCED,07/01/2020,
OFH2021Q2.A000451,07/02/2020,*******,,10000,D14833,LOCAL ECONOMY HARDSHIP FUND,SUSTAINABLE GROWTH & OPPORTUNITY,"ECONOMY, CULTURE & SKILLS","BUSINESS, CULTURE & INWARD INVESTMENT","BUSINESS, CULTURE & INWARD INVESTMENT",GOVERNMENT GRANTS REVENUE NON RINGFENCED,07/01/2020,
OFH2021Q2.A000452,07/02/2020,3d leisure limited t/a LA Active Life,,10000,D14833,LOCAL ECONOMY HARDSHIP FUND,SUSTAINABLE GROWTH & OPPORTUNITY,"ECONOMY, CULTURE & SKILLS","BUSINESS, CULTURE & INWARD INVESTMENT","BUSINESS, CULTURE & INWARD INVESTMENT",GOVERNMENT GRANTS REVENUE NON RINGFENCED,07/01/2020,
OFH2021Q2.A000453,07/02/2020,Agility Alliance JV,,7025.76,D14268,ON-STREET PARKING INCOME,RESIDENT SERVICES (GF),ENVIRONMENT & STREETSCENE,PARKING & ENFORCEMENT,PARKING INCOME,CAR PARKING FEES - ON STREET INCOME,06/29/2020,
OFH2021Q2.A000454,07/02/2020,Browne Jacobson LLP Client Account,,60000,D10356,REDRESS SCHEME,FINANCE & INVESTMENT,FINANCE & PROPERTY,IMPROVEMENT RISK AND INSURANCE,IMPROVEMENT RISK AND INSURANCE,COMPENSATION,07/01/2020,
OFH2021Q2.A000455,07/02/2020,Calcinotto Limited,,10000,D14833,LOCAL ECONOMY HARDSHIP FUND,SUSTAINABLE GROWTH & OPPORTUNITY,"ECONOMY, CULTURE & SKILLS","BUSINESS, CULTURE & INWARD INVESTMENT","BUSINESS, CULTURE & INWARD INVESTMENT",GOVERNMENT GRANTS REVENUE NON RINGFENCED,07/01/2020,
OFH2021Q2.A000456,07/02/2020,Caledonia Lettings,,10000,D14833,LOCAL ECONOMY HARDSHIP FUND,SUSTAINABLE GROWTH & OPPORTUNITY,"ECONOMY, CULTURE & SKILLS","BUSINESS, CULTURE & INWARD INVESTMENT","BUSINESS, CULTURE & INWARD INVESTMENT",GOVERNMENT GRANTS REVENUE NON RINGFENCED,07/01/2020,
OFH2021Q2.A000457,07/02/2020,DOGERS,,10000,D14833,LOCAL ECONOMY HARDSHIP FUND,SUSTAINABLE GROWTH & OPPORTUNITY,"ECONOMY, CULTURE & SKILLS","BUSINESS, CULTURE & INWARD INVESTMENT","BUSINESS, CULTURE & INWARD INVESTMENT",GOVERNMENT GRANTS REVENUE NON RINGFENCED,07/01/2020,
OFH2021Q2.A000458,07/02/2020,EBanymandhub Ltd,,10000,D14833,LOCAL ECONOMY HARDSHIP FUND,SUSTAINABLE GROWTH & OPPORTUNITY,"ECONOMY, CULTURE & SKILLS","BUSINESS, CULTURE & INWARD INVESTMENT","BUSINESS, CULTURE & INWARD INVESTMENT",GOVERNMENT GRANTS REVENUE NON RINGFENCED,07/01/2020,
OFH2021Q2.A000459,07/02/2020,Falafel rush ltd,,10000,D14833,LOCAL ECONOMY HARDSHIP FUND,SUSTAINABLE GROWTH & OPPORTUNITY,"ECONOMY, CULTURE & SKILLS","BUSINESS, CULTURE & INWARD INVESTMENT","BUSINESS, CULTURE & INWARD INVESTMENT",GOVERNMENT GRANTS REVENUE NON RINGFENCED,07/01/2020,
OFH2021Q2.A000460,07/02/2020,Family Of Drinks LTD,,10000,D14833,LOCAL ECONOMY HARDSHIP FUND,SUSTAINABLE GROWTH & OPPORTUNITY,"ECONOMY, CULTURE & SKILLS","BUSINESS, CULTURE & INWARD INVESTMENT","BUSINESS, CULTURE & INWARD INVESTMENT",GOVERNMENT GRANTS REVENUE NON RINGFENCED,07/01/2020,
OFH2021Q2.A000461,07/02/2020,GreenJinn Ltd,,10000,D14833,LOCAL ECONOMY HARDSHIP FUND,SUSTAINABLE GROWTH & OPPORTUNITY,"ECONOMY, CULTURE & SKILLS","BUSINESS, CULTURE & INWARD INVESTMENT","BUSINESS, CULTURE & INWARD INVESTMENT",GOVERNMENT GRANTS REVENUE NON RINGFENCED,07/01/2020,
OFH2021Q2.A000462,07/02/2020,Hartigan Recruitment Ltd,,10000,D14833,LOCAL ECONOMY HARDSHIP FUND,SUSTAINABLE GROWTH & OPPORTUNITY,"ECONOMY, CULTURE & SKILLS","BUSINESS, CULTURE & INWARD INVESTMENT","BUSINESS, CULTURE & INWARD INVESTMENT",GOVERNMENT GRANTS REVENUE NON RINGFENCED,07/01/2020,
OFH2021Q2.A000463,07/02/2020,INCEPTION worldwide ltd,,10000,D14833,LOCAL ECONOMY HARDSHIP FUND,SUSTAINABLE GROWTH & OPPORTUNITY,"ECONOMY, CULTURE & SKILLS","BUSINESS, CULTURE & INWARD INVESTMENT","BUSINESS, CULTURE & INWARD INVESTMENT",GOVERNMENT GRANTS REVENUE NON RINGFENCED,07/01/2020,
OFH2021Q2.A000464,07/02/2020,It's Just Cricket Ltd,,10000,D14833,LOCAL ECONOMY HARDSHIP FUND,SUSTAINABLE GROWTH & OPPORTUNITY,"ECONOMY, CULTURE & SKILLS","BUSINESS, CULTURE & INWARD INVESTMENT","BUSINESS, CULTURE & INWARD INVESTMENT",GOVERNMENT GRANTS REVENUE NON RINGFENCED,07/01/2020,
OFH2021Q2.A000465,07/02/2020,London Net Cars Limited,,10000,D14833,LOCAL ECONOMY HARDSHIP FUND,SUSTAINABLE GROWTH & OPPORTUNITY,"ECONOMY, CULTURE & SKILLS","BUSINESS, CULTURE & INWARD INVESTMENT","BUSINESS, CULTURE & INWARD INVESTMENT",GOVERNMENT GRANTS REVENUE NON RINGFENCED,07/01/2020,
OFH2021Q2.A000466,07/02/2020,lovage project cic,,10000,D14833,LOCAL ECONOMY HARDSHIP FUND,SUSTAINABLE GROWTH & OPPORTUNITY,"ECONOMY, CULTURE & SKILLS","BUSINESS, CULTURE & INWARD INVESTMENT","BUSINESS, CULTURE & INWARD INVESTMENT",GOVERNMENT GRANTS REVENUE NON RINGFENCED,07/01/2020,
OFH2021Q2.A000467,07/02/2020,LT Shoreditch Limited,,10000,D14833,LOCAL ECONOMY HARDSHIP FUND,SUSTAINABLE GROWTH & OPPORTUNITY,"ECONOMY, CULTURE & SKILLS","BUSINESS, CULTURE & INWARD INVESTMENT","BUSINESS, CULTURE & INWARD INVESTMENT",GOVERNMENT GRANTS REVENUE NON RINGFENCED,07/01/2020,
OFH2021Q2.A000468,07/02/2020,majeti ethiopian coffee shop,,10000,D14833,LOCAL ECONOMY HARDSHIP FUND,SUSTAINABLE GROWTH & OPPORTUNITY,"ECONOMY, CULTURE & SKILLS","BUSINESS, CULTURE & INWARD INVESTMENT","BUSINESS, CULTURE & INWARD INVESTMENT",GOVERNMENT GRANTS REVENUE NON RINGFENCED,07/01/2020,
OFH2021Q2.A000469,07/02/2020,Parcours Velo Limited,,10000,D14833,LOCAL ECONOMY HARDSHIP FUND,SUSTAINABLE GROWTH & OPPORTUNITY,"ECONOMY, CULTURE & SKILLS","BUSINESS, CULTURE & INWARD INVESTMENT","BUSINESS, CULTURE & INWARD INVESTMENT",GOVERNMENT GRANTS REVENUE NON RINGFENCED,07/01/2020,
OFH2021Q2.A000470,07/02/2020,Photofusion,,10000,D14833,LOCAL ECONOMY HARDSHIP FUND,SUSTAINABLE GROWTH & OPPORTUNITY,"ECONOMY, CULTURE & SKILLS","BUSINESS, CULTURE & INWARD INVESTMENT","BUSINESS, CULTURE & INWARD INVESTMENT",GOVERNMENT GRANTS REVENUE NON RINGFENCED,07/01/2020,
OFH2021Q2.A000471,07/02/2020,Q&B Ltd,,10000,D14833,LOCAL ECONOMY HARDSHIP FUND,SUSTAINABLE GROWTH & OPPORTUNITY,"ECONOMY, CULTURE & SKILLS","BUSINESS, CULTURE & INWARD INVESTMENT","BUSINESS, CULTURE & INWARD INVESTMENT",GOVERNMENT GRANTS REVENUE NON RINGFENCED,07/01/2020,
OFH2021Q2.A000472,07/02/2020,Round Table Books,,10000,D14833,LOCAL ECONOMY HARDSHIP FUND,SUSTAINABLE GROWTH & OPPORTUNITY,"ECONOMY, CULTURE & SKILLS","BUSINESS, CULTURE & INWARD INVESTMENT","BUSINESS, CULTURE & INWARD INVESTMENT",GOVERNMENT GRANTS REVENUE NON RINGFENCED,07/01/2020,
OFH2021Q2.A000473,07/02/2020,Select Latin America,,10000,D14833,LOCAL ECONOMY HARDSHIP FUND,SUSTAINABLE GROWTH & OPPORTUNITY,"ECONOMY, CULTURE & SKILLS","BUSINESS, CULTURE & INWARD INVESTMENT","BUSINESS, CULTURE & INWARD INVESTMENT",GOVERNMENT GRANTS REVENUE NON RINGFENCED,07/01/2020,
OFH2021Q2.A000474,07/02/2020,Somali Girls Can,,10000,D14833,LOCAL ECONOMY HARDSHIP FUND,SUSTAINABLE GROWTH & OPPORTUNITY,"ECONOMY, CULTURE & SKILLS","BUSINESS, CULTURE & INWARD INVESTMENT","BUSINESS, CULTURE & INWARD INVESTMENT",GOVERNMENT GRANTS REVENUE NON RINGFENCED,07/01/2020,
OFH2021Q2.A000475,07/02/2020,Sundry CTAX,,718.69,D10000,BALANCE SHEET COST CENTRE,,,,,COUNCIL TAX DEBTOR,07/01/2020,
OFH2021Q2.A000476,07/02/2020,Sundry CTAX,,519.61,D10000,BALANCE SHEET COST CENTRE,,,,,COUNCIL TAX DEBTOR,07/01/2020,
OFH2021Q2.A000477,07/02/2020,Sundry NNDR,,10000,D10000,BALANCE SHEET COST CENTRE,,,,,NNDR/BRS DEBTOR,07/01/2020,
OFH2021Q2.A000478,07/02/2020,Sundry NNDR,,10000,D10000,BALANCE SHEET COST CENTRE,,,,,NNDR/BRS DEBTOR,07/01/2020,
OFH2021Q2.A000479,07/02/2020,Sundry NNDR,,25000,D10000,BALANCE SHEET COST CENTRE,,,,,NNDR/BRS DEBTOR,07/01/2020,
OFH2021Q2.A000480,07/02/2020,Sundry NNDR,,10000,D10000,BALANCE SHEET COST CENTRE,,,,,NNDR/BRS DEBTOR,07/01/2020,
OFH2021Q2.A000481,07/02/2020,Sundry NNDR,,10000,D10000,BALANCE SHEET COST CENTRE,,,,,NNDR/BRS DEBTOR,07/01/2020,
OFH2021Q2.A000482,07/02/2020,Sundry NNDR,,10000,D10000,BALANCE SHEET COST CENTRE,,,,,NNDR/BRS DEBTOR,07/01/2020,
OFH2021Q2.A000483,07/02/2020,Sundry NNDR,,10000,D10000,BALANCE SHEET COST CENTRE,,,,,NNDR/BRS DEBTOR,07/01/2020,
OFH2021Q2.A000484,07/02/2020,Sundry NNDR,,25000,D10000,BALANCE SHEET COST CENTRE,,,,,NNDR/BRS DEBTOR,07/01/2020,
OFH2021Q2.A000485,07/02/2020,Sundry NNDR,,849.57,D10000,BALANCE SHEET COST CENTRE,,,,,NNDR/BRS DEBTOR,07/01/2020,
OFH2021Q2.A000486,07/02/2020,Sundry NNDR,,686.25,D10000,BALANCE SHEET COST CENTRE,,,,,NNDR/BRS DEBTOR,07/01/2020,
OFH2021Q2.A000487,07/02/2020,Sundry NNDR,,10000,D10000,BALANCE SHEET COST CENTRE,,,,,NNDR/BRS DEBTOR,07/01/2020,
OFH2021Q2.A000488,07/02/2020,Sundry NNDR,,10000,D10000,BALANCE SHEET COST CENTRE,,,,,NNDR/BRS DEBTOR,07/01/2020,
OFH2021Q2.A000489,07/02/2020,Sundry NNDR,,10000,D10000,BALANCE SHEET COST CENTRE,,,,,NNDR/BRS DEBTOR,07/01/2020,
OFH2021Q2.A000490,07/02/2020,Sundry NNDR,,10000,D10000,BALANCE SHEET COST CENTRE,,,,,NNDR/BRS DEBTOR,07/01/2020,
OFH2021Q2.A000491,07/02/2020,Sundry NNDR,,14397.83,D10000,BALANCE SHEET COST CENTRE,,,,,NNDR/BRS DEBTOR,07/01/2020,
OFH2021Q2.A000492,07/02/2020,Sundry NNDR,,10000,D10000,BALANCE SHEET COST CENTRE,,,,,NNDR/BRS DEBTOR,07/01/2020,
OFH2021Q2.A000493,07/02/2020,Sundry NNDR,,10000,D10000,BALANCE SHEET COST CENTRE,,,,,NNDR/BRS DEBTOR,07/01/2020,
OFH2021Q2.A000494,07/02/2020,Sundry NNDR,,25000,D10000,BALANCE SHEET COST CENTRE,,,,,NNDR/BRS DEBTOR,07/01/2020,
OFH2021Q2.A000495,07/02/2020,Sundry NNDR,,1600.5,D10000,BALANCE SHEET COST CENTRE,,,,,NNDR/BRS DEBTOR,07/01/2020,
OFH2021Q2.A000496,07/02/2020,Sundry NNDR,,25000,D10000,BALANCE SHEET COST CENTRE,,,,,NNDR/BRS DEBTOR,07/01/2020,
OFH2021Q2.A000497,07/02/2020,Sundry NNDR,,10000,D10000,BALANCE SHEET COST CENTRE,,,,,NNDR/BRS DEBTOR,07/01/2020,
OFH2021Q2.A000498,07/02/2020,Sundry NNDR,,10000,D10000,BALANCE SHEET COST CENTRE,,,,,NNDR/BRS DEBTOR,07/01/2020,
OFH2021Q2.A000499,07/02/2020,Sundry NNDR,,10000,D10000,BALANCE SHEET COST CENTRE,,,,,NNDR/BRS DEBTOR,07/01/2020,
OFH2021Q2.A000500,07/02/2020,Sundry NNDR,,10000,D10000,BALANCE SHEET COST CENTRE,,,,,NNDR/BRS DEBTOR,07/01/2020,
OFH2021Q2.A000501,07/02/2020,Sundry NNDR,,10000,D10000,BALANCE SHEET COST CENTRE,,,,,NNDR/BRS DEBTOR,07/01/2020,
OFH2021Q2.A000502,07/02/2020,Sundry NNDR,,10000,D10000,BALANCE SHEET COST CENTRE,,,,,NNDR/BRS DEBTOR,07/01/2020,
OFH2021Q2.A000503,07/02/2020,Sundry NNDR,,10000,D10000,BALANCE SHEET COST CENTRE,,,,,NNDR/BRS DEBTOR,07/01/2020,
OFH2021Q2.A000504,07/02/2020,Sundry NNDR,,10000,D10000,BALANCE SHEET COST CENTRE,,,,,NNDR/BRS DEBTOR,07/01/2020,
OFH2021Q2.A000505,07/02/2020,Sundry NNDR,,10000,D10000,BALANCE SHEET COST CENTRE,,,,,NNDR/BRS DEBTOR,07/01/2020,
OFH2021Q2.A000506,07/02/2020,Sundry NNDR,,25000,D10000,BALANCE SHEET COST CENTRE,,,,,NNDR/BRS DEBTOR,07/01/2020,
OFH2021Q2.A000507,07/02/2020,Sundry NNDR,,10000,D10000,BALANCE SHEET COST CENTRE,,,,,NNDR/BRS DEBTOR,07/01/2020,
OFH2021Q2.A000508,07/02/2020,Sundry NNDR,,10000,D10000,BALANCE SHEET COST CENTRE,,,,,NNDR/BRS DEBTOR,07/01/2020,
OFH2021Q2.A000509,07/02/2020,Sundry NNDR,,10000,D10000,BALANCE SHEET COST CENTRE,,,,,NNDR/BRS DEBTOR,07/01/2020,
OFH2021Q2.A000510,07/02/2020,Sundry NNDR,,10000,D10000,BALANCE SHEET COST CENTRE,,,,,NNDR/BRS DEBTOR,07/01/2020,
OFH2021Q2.A000511,07/02/2020,Sundry NNDR,,10000,D10000,BALANCE SHEET COST CENTRE,,,,,NNDR/BRS DEBTOR,07/01/2020,
OFH2021Q2.A000512,07/02/2020,Sundry NNDR,,10000,D10000,BALANCE SHEET COST CENTRE,,,,,NNDR/BRS DEBTOR,07/01/2020,
OFH2021Q2.A000513,07/02/2020,Sundry NNDR,,10000,D10000,BALANCE SHEET COST CENTRE,,,,,NNDR/BRS DEBTOR,07/01/2020,
OFH2021Q2.A000514,07/02/2020,Sundry NNDR,,10000,D10000,BALANCE SHEET COST CENTRE,,,,,NNDR/BRS DEBTOR,07/01/2020,
OFH2021Q2.A000515,07/02/2020,Sundry NNDR,,10000,D10000,BALANCE SHEET COST CENTRE,,,,,NNDR/BRS DEBTOR,07/01/2020,
OFH2021Q2.A000516,07/02/2020,Sundry NNDR,,4531.75,D10000,BALANCE SHEET COST CENTRE,,,,,NNDR/BRS DEBTOR,07/01/2020,
OFH2021Q2.A000517,07/02/2020,Sundry NNDR,,1361.32,D10000,BALANCE SHEET COST CENTRE,,,,,NNDR/BRS DEBTOR,07/01/2020,
OFH2021Q2.A000518,07/02/2020,Sundry NNDR,,10000,D10000,BALANCE SHEET COST CENTRE,,,,,NNDR/BRS DEBTOR,07/01/2020,
OFH2021Q2.A000519,07/02/2020,Sundry NNDR,,10000,D10000,BALANCE SHEET COST CENTRE,,,,,NNDR/BRS DEBTOR,07/01/2020,
OFH2021Q2.A000520,07/02/2020,Sundry NNDR,,10000,D10000,BALANCE SHEET COST CENTRE,,,,,NNDR/BRS DEBTOR,07/01/2020,
OFH2021Q2.A000521,07/02/2020,Sundry NNDR,,10000,D10000,BALANCE SHEET COST CENTRE,,,,,NNDR/BRS DEBTOR,07/01/2020,
OFH2021Q2.A000522,07/02/2020,Sundry NNDR,,10000,D10000,BALANCE SHEET COST CENTRE,,,,,NNDR/BRS DEBTOR,07/01/2020,
OFH2021Q2.A000523,07/02/2020,Sundry NNDR,,10000,D10000,BALANCE SHEET COST CENTRE,,,,,NNDR/BRS DEBTOR,07/01/2020,
OFH2021Q2.A000524,07/02/2020,Sundry NNDR,,10000,D10000,BALANCE SHEET COST CENTRE,,,,,NNDR/BRS DEBTOR,07/01/2020,
OFH2021Q2.A000525,07/02/2020,Sundry NNDR,,10000,D10000,BALANCE SHEET COST CENTRE,,,,,NNDR/BRS DEBTOR,07/01/2020,
OFH2021Q2.A000526,07/02/2020,Sundry NNDR,,10000,D10000,BALANCE SHEET COST CENTRE,,,,,NNDR/BRS DEBTOR,07/01/2020,
OFH2021Q2.A000527,07/02/2020,Sundry NNDR,,10000,D10000,BALANCE SHEET COST CENTRE,,,,,NNDR/BRS DEBTOR,07/01/2020,
OFH2021Q2.A000528,07/02/2020,Sundry NNDR,,10000,D10000,BALANCE SHEET COST CENTRE,,,,,NNDR/BRS DEBTOR,07/01/2020,
OFH2021Q2.A000529,07/02/2020,Sundry NNDR,,10000,D10000,BALANCE SHEET COST CENTRE,,,,,NNDR/BRS DEBTOR,07/01/2020,
OFH2021Q2.A000530,07/02/2020,Sundry NNDR,,563.05,D10000,BALANCE SHEET COST CENTRE,,,,,NNDR/BRS DEBTOR,07/01/2020,
OFH2021Q2.A000531,07/02/2020,Sundry NNDR,,10000,D10000,BALANCE SHEET COST CENTRE,,,,,NNDR/BRS DEBTOR,07/01/2020,
OFH2021Q2.A000532,07/02/2020,Sundry NNDR,,10000,D10000,BALANCE SHEET COST CENTRE,,,,,NNDR/BRS DEBTOR,07/01/2020,
OFH2021Q2.A000533,07/02/2020,Sundry NNDR,,10000,D10000,BALANCE SHEET COST CENTRE,,,,,NNDR/BRS DEBTOR,07/01/2020,
OFH2021Q2.A000534,07/02/2020,Sundry NNDR,,10000,D10000,BALANCE SHEET COST CENTRE,,,,,NNDR/BRS DEBTOR,07/01/2020,
OFH2021Q2.A000535,07/02/2020,Sundry NNDR,,855.76,D10000,BALANCE SHEET COST CENTRE,,,,,NNDR/BRS DEBTOR,07/01/2020,
OFH2021Q2.A000536,07/02/2020,Sundry NNDR,,5102,D10000,BALANCE SHEET COST CENTRE,,,,,NNDR/BRS DEBTOR,07/01/2020,
OFH2021Q2.A000537,07/02/2020,Sundry NNDR,,10000,D10000,BALANCE SHEET COST CENTRE,,,,,NNDR/BRS DEBTOR,07/01/2020,
OFH2021Q2.A000538,07/02/2020,Sundry NNDR,,10000,D10000,BALANCE SHEET COST CENTRE,,,,,NNDR/BRS DEBTOR,07/01/2020,
OFH2021Q2.A000539,07/02/2020,Sundry NNDR,,25000,D10000,BALANCE SHEET COST CENTRE,,,,,NNDR/BRS DEBTOR,07/01/2020,
OFH2021Q2.A000540,07/02/2020,Sundry NNDR,,10000,D10000,BALANCE SHEET COST CENTRE,,,,,NNDR/BRS DEBTOR,07/01/2020,
OFH2021Q2.A000541,07/02/2020,Sundry NNDR,,10000,D10000,BALANCE SHEET COST CENTRE,,,,,NNDR/BRS DEBTOR,07/01/2020,
OFH2021Q2.A000542,07/02/2020,Sundry NNDR,,10000,D10000,BALANCE SHEET COST CENTRE,,,,,NNDR/BRS DEBTOR,07/01/2020,
OFH2021Q2.A000543,07/02/2020,The Brixton Framers,,10000,D14833,LOCAL ECONOMY HARDSHIP FUND,SUSTAINABLE GROWTH & OPPORTUNITY,"ECONOMY, CULTURE & SKILLS","BUSINESS, CULTURE & INWARD INVESTMENT","BUSINESS, CULTURE & INWARD INVESTMENT",GOVERNMENT GRANTS REVENUE NON RINGFENCED,06/29/2020,
OFH2021Q2.A000544,07/02/2020,thehgroup.com - trading as go hyer,,10000,D14833,LOCAL ECONOMY HARDSHIP FUND,SUSTAINABLE GROWTH & OPPORTUNITY,"ECONOMY, CULTURE & SKILLS","BUSINESS, CULTURE & INWARD INVESTMENT","BUSINESS, CULTURE & INWARD INVESTMENT",GOVERNMENT GRANTS REVENUE NON RINGFENCED,07/01/2020,
OFH2021Q2.A000545,07/02/2020,We Are Livewire Ltd,,10000,D14833,LOCAL ECONOMY HARDSHIP FUND,SUSTAINABLE GROWTH & OPPORTUNITY,"ECONOMY, CULTURE & SKILLS","BUSINESS, CULTURE & INWARD INVESTMENT","BUSINESS, CULTURE & INWARD INVESTMENT",GOVERNMENT GRANTS REVENUE NON RINGFENCED,07/01/2020,
OFH2021Q2.A000546,07/03/2020,*******,CARERS,5000,D13093,NRPF- FAMILIES,NO RECOURSE TO PUBLIC FUNDS,NO RECOURSE TO PUBLIC FUNDS,NO RECOURSE TO PUBLIC FUNDS,NO RECOURSE TO PUBLIC FUNDS,SUBSISTENCE,04/28/2020,
OFH2021Q2.A000547,07/03/2020,Generate,CARERS,652.8,D12233,LD - EXTERNAL DAY CARE,ADULTS & HEALTH,ADULT SOCIAL CARE,ADULTS WITH LEARNING DIFFICULTIES,ALD SERVICES,DAYCARE - PRIVATE CONTRACTORS PAYMENT,06/25/2020,
OFH2021Q2.A000548,07/03/2020,Generate,CARERS,1224,D12233,LD - EXTERNAL DAY CARE,ADULTS & HEALTH,ADULT SOCIAL CARE,ADULTS WITH LEARNING DIFFICULTIES,ALD SERVICES,DAYCARE - PRIVATE CONTRACTORS PAYMENT,06/25/2020,
OFH2021Q2.A000549,07/03/2020,MPS Housing Limited,CIS,12182.04,D10000,BALANCE SHEET COST CENTRE,,,,,OTHER CREDITORS- OTHER ENTITIES AND INDIVIDUALS,07/02/2020,
OFH2021Q2.A000550,07/03/2020,MPS Housing Limited,CIS,37815.96,D10000,BALANCE SHEET COST CENTRE,,,,,OTHER CREDITORS- OTHER ENTITIES AND INDIVIDUALS,07/02/2020,
OFH2021Q2.A000551,07/03/2020,MPS Housing Limited,CIS,19049.4,D10000,BALANCE SHEET COST CENTRE,,,,,OTHER CREDITORS- OTHER ENTITIES AND INDIVIDUALS,07/02/2020,
OFH2021Q2.A000552,07/03/2020,MPS Housing Limited,CIS,21832.9,D10000,BALANCE SHEET COST CENTRE,,,,,OTHER CREDITORS- OTHER ENTITIES AND INDIVIDUALS,07/02/2020,
OFH2021Q2.A000553,07/03/2020,MPS Housing Limited,CIS,3.14,D18075,PLANNED MAINTENANCE (SOUTH),RESIDENT SERVICES (HRA),STRATEGIC PROGRAMMES (HRA),HOUSING CAPITAL & ASSET MANAGEMENT,TECHNICAL SERVICES,RESPONSIVE REPAIRS - MECHANICAL AND ELECTRICAL,07/02/2020,
OFH2021Q2.A000554,07/03/2020,MPS Housing Limited,CIS,3.14,D18075,PLANNED MAINTENANCE (SOUTH),RESIDENT SERVICES (HRA),STRATEGIC PROGRAMMES (HRA),HOUSING CAPITAL & ASSET MANAGEMENT,TECHNICAL SERVICES,RESPONSIVE REPAIRS - MECHANICAL AND ELECTRICAL,07/02/2020,
OFH2021Q2.A000555,07/03/2020,MPS Housing Limited,CIS,3.14,D18075,PLANNED MAINTENANCE (SOUTH),RESIDENT SERVICES (HRA),STRATEGIC PROGRAMMES (HRA),HOUSING CAPITAL & ASSET MANAGEMENT,TECHNICAL SERVICES,RESPONSIVE REPAIRS - MECHANICAL AND ELECTRICAL,07/02/2020,
OFH2021Q2.A000556,07/03/2020,MPS Housing Limited,CIS,3.14,D18075,PLANNED MAINTENANCE (SOUTH),RESIDENT SERVICES (HRA),STRATEGIC PROGRAMMES (HRA),HOUSING CAPITAL & ASSET MANAGEMENT,TECHNICAL SERVICES,RESPONSIVE REPAIRS - MECHANICAL AND ELECTRICAL,07/02/2020,
OFH2021Q2.A000557,07/03/2020,MPS Housing Limited,CIS,3.14,D18075,PLANNED MAINTENANCE (SOUTH),RESIDENT SERVICES (HRA),STRATEGIC PROGRAMMES (HRA),HOUSING CAPITAL & ASSET MANAGEMENT,TECHNICAL SERVICES,RESPONSIVE REPAIRS - MECHANICAL AND ELECTRICAL,07/02/2020,
OFH2021Q2.A000558,07/03/2020,MPS Housing Limited,CIS,3.14,D18075,PLANNED MAINTENANCE (SOUTH),RESIDENT SERVICES (HRA),STRATEGIC PROGRAMMES (HRA),HOUSING CAPITAL & ASSET MANAGEMENT,TECHNICAL SERVICES,RESPONSIVE REPAIRS - MECHANICAL AND ELECTRICAL,07/02/2020,
OFH2021Q2.A000559,07/03/2020,MPS Housing Limited,CIS,3.14,D18075,PLANNED MAINTENANCE (SOUTH),RESIDENT SERVICES (HRA),STRATEGIC PROGRAMMES (HRA),HOUSING CAPITAL & ASSET MANAGEMENT,TECHNICAL SERVICES,RESPONSIVE REPAIRS - MECHANICAL AND ELECTRICAL,07/02/2020,
OFH2021Q2.A000560,07/03/2020,MPS Housing Limited,CIS,3.14,D18075,PLANNED MAINTENANCE (SOUTH),RESIDENT SERVICES (HRA),STRATEGIC PROGRAMMES (HRA),HOUSING CAPITAL & ASSET MANAGEMENT,TECHNICAL SERVICES,RESPONSIVE REPAIRS - MECHANICAL AND ELECTRICAL,07/02/2020,
OFH2021Q2.A000561,07/03/2020,MPS Housing Limited,CIS,3.14,D18075,PLANNED MAINTENANCE (SOUTH),RESIDENT SERVICES (HRA),STRATEGIC PROGRAMMES (HRA),HOUSING CAPITAL & ASSET MANAGEMENT,TECHNICAL SERVICES,RESPONSIVE REPAIRS - MECHANICAL AND ELECTRICAL,07/02/2020,
OFH2021Q2.A000562,07/03/2020,MPS Housing Limited,CIS,3.14,D18075,PLANNED MAINTENANCE (SOUTH),RESIDENT SERVICES (HRA),STRATEGIC PROGRAMMES (HRA),HOUSING CAPITAL & ASSET MANAGEMENT,TECHNICAL SERVICES,RESPONSIVE REPAIRS - MECHANICAL AND ELECTRICAL,07/02/2020,
OFH2021Q2.A000563,07/03/2020,MPS Housing Limited,CIS,3.14,D18075,PLANNED MAINTENANCE (SOUTH),RESIDENT SERVICES (HRA),STRATEGIC PROGRAMMES (HRA),HOUSING CAPITAL & ASSET MANAGEMENT,TECHNICAL SERVICES,RESPONSIVE REPAIRS - MECHANICAL AND ELECTRICAL,07/02/2020,
OFH2021Q2.A000564,07/03/2020,MPS Housing Limited,CIS,3.14,D18075,PLANNED MAINTENANCE (SOUTH),RESIDENT SERVICES (HRA),STRATEGIC PROGRAMMES (HRA),HOUSING CAPITAL & ASSET MANAGEMENT,TECHNICAL SERVICES,RESPONSIVE REPAIRS - MECHANICAL AND ELECTRICAL,07/02/2020,
OFH2021Q2.A000565,07/03/2020,MPS Housing Limited,CIS,3.14,D18075,PLANNED MAINTENANCE (SOUTH),RESIDENT SERVICES (HRA),STRATEGIC PROGRAMMES (HRA),HOUSING CAPITAL & ASSET MANAGEMENT,TECHNICAL SERVICES,RESPONSIVE REPAIRS - MECHANICAL AND ELECTRICAL,07/02/2020,
OFH2021Q2.A000566,07/03/2020,MPS Housing Limited,CIS,3.14,D18075,PLANNED MAINTENANCE (SOUTH),RESIDENT SERVICES (HRA),STRATEGIC PROGRAMMES (HRA),HOUSING CAPITAL & ASSET MANAGEMENT,TECHNICAL SERVICES,RESPONSIVE REPAIRS - MECHANICAL AND ELECTRICAL,07/02/2020,
OFH2021Q2.A000567,07/03/2020,MPS Housing Limited,CIS,3.14,D18075,PLANNED MAINTENANCE (SOUTH),RESIDENT SERVICES (HRA),STRATEGIC PROGRAMMES (HRA),HOUSING CAPITAL & ASSET MANAGEMENT,TECHNICAL SERVICES,RESPONSIVE REPAIRS - MECHANICAL AND ELECTRICAL,07/02/2020,
OFH2021Q2.A000568,07/03/2020,MPS Housing Limited,CIS,3.14,D18075,PLANNED MAINTENANCE (SOUTH),RESIDENT SERVICES (HRA),STRATEGIC PROGRAMMES (HRA),HOUSING CAPITAL & ASSET MANAGEMENT,TECHNICAL SERVICES,RESPONSIVE REPAIRS - MECHANICAL AND ELECTRICAL,07/02/2020,
OFH2021Q2.A000569,07/03/2020,MPS Housing Limited,CIS,3.14,D18075,PLANNED MAINTENANCE (SOUTH),RESIDENT SERVICES (HRA),STRATEGIC PROGRAMMES (HRA),HOUSING CAPITAL & ASSET MANAGEMENT,TECHNICAL SERVICES,RESPONSIVE REPAIRS - MECHANICAL AND ELECTRICAL,07/02/2020,
OFH2021Q2.A000570,07/03/2020,MPS Housing Limited,CIS,3.14,D18075,PLANNED MAINTENANCE (SOUTH),RESIDENT SERVICES (HRA),STRATEGIC PROGRAMMES (HRA),HOUSING CAPITAL & ASSET MANAGEMENT,TECHNICAL SERVICES,RESPONSIVE REPAIRS - MECHANICAL AND ELECTRICAL,07/02/2020,
OFH2021Q2.A000571,07/03/2020,MPS Housing Limited,CIS,3.14,D18075,PLANNED MAINTENANCE (SOUTH),RESIDENT SERVICES (HRA),STRATEGIC PROGRAMMES (HRA),HOUSING CAPITAL & ASSET MANAGEMENT,TECHNICAL SERVICES,RESPONSIVE REPAIRS - MECHANICAL AND ELECTRICAL,07/02/2020,
OFH2021Q2.A000572,07/03/2020,MPS Housing Limited,CIS,3.14,D18075,PLANNED MAINTENANCE (SOUTH),RESIDENT SERVICES (HRA),STRATEGIC PROGRAMMES (HRA),HOUSING CAPITAL & ASSET MANAGEMENT,TECHNICAL SERVICES,RESPONSIVE REPAIRS - MECHANICAL AND ELECTRICAL,07/02/2020,
OFH2021Q2.A000573,07/03/2020,MPS Housing Limited,CIS,3.14,D18075,PLANNED MAINTENANCE (SOUTH),RESIDENT SERVICES (HRA),STRATEGIC PROGRAMMES (HRA),HOUSING CAPITAL & ASSET MANAGEMENT,TECHNICAL SERVICES,RESPONSIVE REPAIRS - MECHANICAL AND ELECTRICAL,07/02/2020,
OFH2021Q2.A000574,07/03/2020,MPS Housing Limited,CIS,3.14,D18075,PLANNED MAINTENANCE (SOUTH),RESIDENT SERVICES (HRA),STRATEGIC PROGRAMMES (HRA),HOUSING CAPITAL & ASSET MANAGEMENT,TECHNICAL SERVICES,RESPONSIVE REPAIRS - MECHANICAL AND ELECTRICAL,07/02/2020,
OFH2021Q2.A000575,07/03/2020,MPS Housing Limited,CIS,3.14,D18075,PLANNED MAINTENANCE (SOUTH),RESIDENT SERVICES (HRA),STRATEGIC PROGRAMMES (HRA),HOUSING CAPITAL & ASSET MANAGEMENT,TECHNICAL SERVICES,RESPONSIVE REPAIRS - MECHANICAL AND ELECTRICAL,07/02/2020,
OFH2021Q2.A000576,07/03/2020,MPS Housing Limited,CIS,3.14,D18075,PLANNED MAINTENANCE (SOUTH),RESIDENT SERVICES (HRA),STRATEGIC PROGRAMMES (HRA),HOUSING CAPITAL & ASSET MANAGEMENT,TECHNICAL SERVICES,RESPONSIVE REPAIRS - MECHANICAL AND ELECTRICAL,07/02/2020,
OFH2021Q2.A000577,07/03/2020,MPS Housing Limited,CIS,4.69,D18075,PLANNED MAINTENANCE (SOUTH),RESIDENT SERVICES (HRA),STRATEGIC PROGRAMMES (HRA),HOUSING CAPITAL & ASSET MANAGEMENT,TECHNICAL SERVICES,RESPONSIVE REPAIRS - MECHANICAL AND ELECTRICAL,07/02/2020,
OFH2021Q2.A000578,07/03/2020,MPS Housing Limited,CIS,4.69,D18075,PLANNED MAINTENANCE (SOUTH),RESIDENT SERVICES (HRA),STRATEGIC PROGRAMMES (HRA),HOUSING CAPITAL & ASSET MANAGEMENT,TECHNICAL SERVICES,RESPONSIVE REPAIRS - MECHANICAL AND ELECTRICAL,07/02/2020,
OFH2021Q2.A000579,07/03/2020,MPS Housing Limited,CIS,4.69,D18075,PLANNED MAINTENANCE (SOUTH),RESIDENT SERVICES (HRA),STRATEGIC PROGRAMMES (HRA),HOUSING CAPITAL & ASSET MANAGEMENT,TECHNICAL SERVICES,RESPONSIVE REPAIRS - MECHANICAL AND ELECTRICAL,07/02/2020,
OFH2021Q2.A000580,07/03/2020,MPS Housing Limited,CIS,4.69,D18075,PLANNED MAINTENANCE (SOUTH),RESIDENT SERVICES (HRA),STRATEGIC PROGRAMMES (HRA),HOUSING CAPITAL & ASSET MANAGEMENT,TECHNICAL SERVICES,RESPONSIVE REPAIRS - MECHANICAL AND ELECTRICAL,07/02/2020,
OFH2021Q2.A000581,07/03/2020,MPS Housing Limited,CIS,4.69,D18075,PLANNED MAINTENANCE (SOUTH),RESIDENT SERVICES (HRA),STRATEGIC PROGRAMMES (HRA),HOUSING CAPITAL & ASSET MANAGEMENT,TECHNICAL SERVICES,RESPONSIVE REPAIRS - MECHANICAL AND ELECTRICAL,07/02/2020,
OFH2021Q2.A000582,07/03/2020,MPS Housing Limited,CIS,4.69,D18075,PLANNED MAINTENANCE (SOUTH),RESIDENT SERVICES (HRA),STRATEGIC PROGRAMMES (HRA),HOUSING CAPITAL & ASSET MANAGEMENT,TECHNICAL SERVICES,RESPONSIVE REPAIRS - MECHANICAL AND ELECTRICAL,07/02/2020,
OFH2021Q2.A000583,07/03/2020,MPS Housing Limited,CIS,4.69,D18075,PLANNED MAINTENANCE (SOUTH),RESIDENT SERVICES (HRA),STRATEGIC PROGRAMMES (HRA),HOUSING CAPITAL & ASSET MANAGEMENT,TECHNICAL SERVICES,RESPONSIVE REPAIRS - MECHANICAL AND ELECTRICAL,07/02/2020,
OFH2021Q2.A000584,07/03/2020,MPS Housing Limited,CIS,4.69,D18075,PLANNED MAINTENANCE (SOUTH),RESIDENT SERVICES (HRA),STRATEGIC PROGRAMMES (HRA),HOUSING CAPITAL & ASSET MANAGEMENT,TECHNICAL SERVICES,RESPONSIVE REPAIRS - MECHANICAL AND ELECTRICAL,07/02/2020,
OFH2021Q2.A000585,07/03/2020,MPS Housing Limited,CIS,4.69,D18075,PLANNED MAINTENANCE (SOUTH),RESIDENT SERVICES (HRA),STRATEGIC PROGRAMMES (HRA),HOUSING CAPITAL & ASSET MANAGEMENT,TECHNICAL SERVICES,RESPONSIVE REPAIRS - MECHANICAL AND ELECTRICAL,07/02/2020,
OFH2021Q2.A000586,07/03/2020,MPS Housing Limited,CIS,4.69,D18075,PLANNED MAINTENANCE (SOUTH),RESIDENT SERVICES (HRA),STRATEGIC PROGRAMMES (HRA),HOUSING CAPITAL & ASSET MANAGEMENT,TECHNICAL SERVICES,RESPONSIVE REPAIRS - MECHANICAL AND ELECTRICAL,07/02/2020,
OFH2021Q2.A000587,07/03/2020,MPS Housing Limited,CIS,4.69,D18075,PLANNED MAINTENANCE (SOUTH),RESIDENT SERVICES (HRA),STRATEGIC PROGRAMMES (HRA),HOUSING CAPITAL & ASSET MANAGEMENT,TECHNICAL SERVICES,RESPONSIVE REPAIRS - MECHANICAL AND ELECTRICAL,07/02/2020,
OFH2021Q2.A000588,07/03/2020,MPS Housing Limited,CIS,4.69,D18075,PLANNED MAINTENANCE (SOUTH),RESIDENT SERVICES (HRA),STRATEGIC PROGRAMMES (HRA),HOUSING CAPITAL & ASSET MANAGEMENT,TECHNICAL SERVICES,RESPONSIVE REPAIRS - MECHANICAL AND ELECTRICAL,07/02/2020,
OFH2021Q2.A000589,07/03/2020,MPS Housing Limited,CIS,4.69,D18075,PLANNED MAINTENANCE (SOUTH),RESIDENT SERVICES (HRA),STRATEGIC PROGRAMMES (HRA),HOUSING CAPITAL & ASSET MANAGEMENT,TECHNICAL SERVICES,RESPONSIVE REPAIRS - MECHANICAL AND ELECTRICAL,07/02/2020,
OFH2021Q2.A000590,07/03/2020,MPS Housing Limited,CIS,4.69,D18075,PLANNED MAINTENANCE (SOUTH),RESIDENT SERVICES (HRA),STRATEGIC PROGRAMMES (HRA),HOUSING CAPITAL & ASSET MANAGEMENT,TECHNICAL SERVICES,RESPONSIVE REPAIRS - MECHANICAL AND ELECTRICAL,07/02/2020,
OFH2021Q2.A000591,07/03/2020,MPS Housing Limited,CIS,4.69,D18075,PLANNED MAINTENANCE (SOUTH),RESIDENT SERVICES (HRA),STRATEGIC PROGRAMMES (HRA),HOUSING CAPITAL & ASSET MANAGEMENT,TECHNICAL SERVICES,RESPONSIVE REPAIRS - MECHANICAL AND ELECTRICAL,07/02/2020,
OFH2021Q2.A000592,07/03/2020,MPS Housing Limited,CIS,4.69,D18075,PLANNED MAINTENANCE (SOUTH),RESIDENT SERVICES (HRA),STRATEGIC PROGRAMMES (HRA),HOUSING CAPITAL & ASSET MANAGEMENT,TECHNICAL SERVICES,RESPONSIVE REPAIRS - MECHANICAL AND ELECTRICAL,07/02/2020,
OFH2021Q2.A000593,07/03/2020,MPS Housing Limited,CIS,4.69,D18075,PLANNED MAINTENANCE (SOUTH),RESIDENT SERVICES (HRA),STRATEGIC PROGRAMMES (HRA),HOUSING CAPITAL & ASSET MANAGEMENT,TECHNICAL SERVICES,RESPONSIVE REPAIRS - MECHANICAL AND ELECTRICAL,07/02/2020,
OFH2021Q2.A000594,07/03/2020,MPS Housing Limited,CIS,4.69,D18075,PLANNED MAINTENANCE (SOUTH),RESIDENT SERVICES (HRA),STRATEGIC PROGRAMMES (HRA),HOUSING CAPITAL & ASSET MANAGEMENT,TECHNICAL SERVICES,RESPONSIVE REPAIRS - MECHANICAL AND ELECTRICAL,07/02/2020,
OFH2021Q2.A000595,07/03/2020,MPS Housing Limited,CIS,4.69,D18075,PLANNED MAINTENANCE (SOUTH),RESIDENT SERVICES (HRA),STRATEGIC PROGRAMMES (HRA),HOUSING CAPITAL & ASSET MANAGEMENT,TECHNICAL SERVICES,RESPONSIVE REPAIRS - MECHANICAL AND ELECTRICAL,07/02/2020,
OFH2021Q2.A000596,07/03/2020,MPS Housing Limited,CIS,4.69,D18075,PLANNED MAINTENANCE (SOUTH),RESIDENT SERVICES (HRA),STRATEGIC PROGRAMMES (HRA),HOUSING CAPITAL & ASSET MANAGEMENT,TECHNICAL SERVICES,RESPONSIVE REPAIRS - MECHANICAL AND ELECTRICAL,07/02/2020,
OFH2021Q2.A000597,07/03/2020,MPS Housing Limited,CIS,4.69,D18075,PLANNED MAINTENANCE (SOUTH),RESIDENT SERVICES (HRA),STRATEGIC PROGRAMMES (HRA),HOUSING CAPITAL & ASSET MANAGEMENT,TECHNICAL SERVICES,RESPONSIVE REPAIRS - MECHANICAL AND ELECTRICAL,07/02/2020,
OFH2021Q2.A000598,07/03/2020,MPS Housing Limited,CIS,4.69,D18075,PLANNED MAINTENANCE (SOUTH),RESIDENT SERVICES (HRA),STRATEGIC PROGRAMMES (HRA),HOUSING CAPITAL & ASSET MANAGEMENT,TECHNICAL SERVICES,RESPONSIVE REPAIRS - MECHANICAL AND ELECTRICAL,07/02/2020,
OFH2021Q2.A000599,07/03/2020,MPS Housing Limited,CIS,4.69,D18075,PLANNED MAINTENANCE (SOUTH),RESIDENT SERVICES (HRA),STRATEGIC PROGRAMMES (HRA),HOUSING CAPITAL & ASSET MANAGEMENT,TECHNICAL SERVICES,RESPONSIVE REPAIRS - MECHANICAL AND ELECTRICAL,07/02/2020,
OFH2021Q2.A000600,07/03/2020,MPS Housing Limited,CIS,4.69,D18075,PLANNED MAINTENANCE (SOUTH),RESIDENT SERVICES (HRA),STRATEGIC PROGRAMMES (HRA),HOUSING CAPITAL & ASSET MANAGEMENT,TECHNICAL SERVICES,RESPONSIVE REPAIRS - MECHANICAL AND ELECTRICAL,07/02/2020,
OFH2021Q2.A000601,07/03/2020,MPS Housing Limited,CIS,4.69,D18075,PLANNED MAINTENANCE (SOUTH),RESIDENT SERVICES (HRA),STRATEGIC PROGRAMMES (HRA),HOUSING CAPITAL & ASSET MANAGEMENT,TECHNICAL SERVICES,RESPONSIVE REPAIRS - MECHANICAL AND ELECTRICAL,07/02/2020,
OFH2021Q2.A000602,07/03/2020,MPS Housing Limited,CIS,4.69,D18075,PLANNED MAINTENANCE (SOUTH),RESIDENT SERVICES (HRA),STRATEGIC PROGRAMMES (HRA),HOUSING CAPITAL & ASSET MANAGEMENT,TECHNICAL SERVICES,RESPONSIVE REPAIRS - MECHANICAL AND ELECTRICAL,07/02/2020,
OFH2021Q2.A000603,07/03/2020,MPS Housing Limited,CIS,4.69,D18075,PLANNED MAINTENANCE (SOUTH),RESIDENT SERVICES (HRA),STRATEGIC PROGRAMMES (HRA),HOUSING CAPITAL & ASSET MANAGEMENT,TECHNICAL SERVICES,RESPONSIVE REPAIRS - MECHANICAL AND ELECTRICAL,07/02/2020,
OFH2021Q2.A000604,07/03/2020,MPS Housing Limited,CIS,4.69,D18075,PLANNED MAINTENANCE (SOUTH),RESIDENT SERVICES (HRA),STRATEGIC PROGRAMMES (HRA),HOUSING CAPITAL & ASSET MANAGEMENT,TECHNICAL SERVICES,RESPONSIVE REPAIRS - MECHANICAL AND ELECTRICAL,07/02/2020,
OFH2021Q2.A000605,07/03/2020,MPS Housing Limited,CIS,4.69,D18075,PLANNED MAINTENANCE (SOUTH),RESIDENT SERVICES (HRA),STRATEGIC PROGRAMMES (HRA),HOUSING CAPITAL & ASSET MANAGEMENT,TECHNICAL SERVICES,RESPONSIVE REPAIRS - MECHANICAL AND ELECTRICAL,07/02/2020,
OFH2021Q2.A000606,07/03/2020,MPS Housing Limited,CIS,4.69,D18075,PLANNED MAINTENANCE (SOUTH),RESIDENT SERVICES (HRA),STRATEGIC PROGRAMMES (HRA),HOUSING CAPITAL & ASSET MANAGEMENT,TECHNICAL SERVICES,RESPONSIVE REPAIRS - MECHANICAL AND ELECTRICAL,07/02/2020,
OFH2021Q2.A000607,07/03/2020,MPS Housing Limited,CIS,4.69,D18075,PLANNED MAINTENANCE (SOUTH),RESIDENT SERVICES (HRA),STRATEGIC PROGRAMMES (HRA),HOUSING CAPITAL & ASSET MANAGEMENT,TECHNICAL SERVICES,RESPONSIVE REPAIRS - MECHANICAL AND ELECTRICAL,07/02/2020,
OFH2021Q2.A000608,07/03/2020,MPS Housing Limited,CIS,4.69,D18075,PLANNED MAINTENANCE (SOUTH),RESIDENT SERVICES (HRA),STRATEGIC PROGRAMMES (HRA),HOUSING CAPITAL & ASSET MANAGEMENT,TECHNICAL SERVICES,RESPONSIVE REPAIRS - MECHANICAL AND ELECTRICAL,07/02/2020,
OFH2021Q2.A000609,07/03/2020,MPS Housing Limited,CIS,4.69,D18075,PLANNED MAINTENANCE (SOUTH),RESIDENT SERVICES (HRA),STRATEGIC PROGRAMMES (HRA),HOUSING CAPITAL & ASSET MANAGEMENT,TECHNICAL SERVICES,RESPONSIVE REPAIRS - MECHANICAL AND ELECTRICAL,07/02/2020,
OFH2021Q2.A000610,07/03/2020,MPS Housing Limited,CIS,4.69,D18075,PLANNED MAINTENANCE (SOUTH),RESIDENT SERVICES (HRA),STRATEGIC PROGRAMMES (HRA),HOUSING CAPITAL & ASSET MANAGEMENT,TECHNICAL SERVICES,RESPONSIVE REPAIRS - MECHANICAL AND ELECTRICAL,07/02/2020,
OFH2021Q2.A000611,07/03/2020,MPS Housing Limited,CIS,4.69,D18075,PLANNED MAINTENANCE (SOUTH),RESIDENT SERVICES (HRA),STRATEGIC PROGRAMMES (HRA),HOUSING CAPITAL & ASSET MANAGEMENT,TECHNICAL SERVICES,RESPONSIVE REPAIRS - MECHANICAL AND ELECTRICAL,07/02/2020,
OFH2021Q2.A000612,07/03/2020,MPS Housing Limited,CIS,4.69,D18075,PLANNED MAINTENANCE (SOUTH),RESIDENT SERVICES (HRA),STRATEGIC PROGRAMMES (HRA),HOUSING CAPITAL & ASSET MANAGEMENT,TECHNICAL SERVICES,RESPONSIVE REPAIRS - MECHANICAL AND ELECTRICAL,07/02/2020,
OFH2021Q2.A000613,07/03/2020,MPS Housing Limited,CIS,4.69,D18075,PLANNED MAINTENANCE (SOUTH),RESIDENT SERVICES (HRA),STRATEGIC PROGRAMMES (HRA),HOUSING CAPITAL & ASSET MANAGEMENT,TECHNICAL SERVICES,RESPONSIVE REPAIRS - MECHANICAL AND ELECTRICAL,07/02/2020,
OFH2021Q2.A000614,07/03/2020,MPS Housing Limited,CIS,4.69,D18075,PLANNED MAINTENANCE (SOUTH),RESIDENT SERVICES (HRA),STRATEGIC PROGRAMMES (HRA),HOUSING CAPITAL & ASSET MANAGEMENT,TECHNICAL SERVICES,RESPONSIVE REPAIRS - MECHANICAL AND ELECTRICAL,07/02/2020,
OFH2021Q2.A000615,07/03/2020,MPS Housing Limited,CIS,4.69,D18075,PLANNED MAINTENANCE (SOUTH),RESIDENT SERVICES (HRA),STRATEGIC PROGRAMMES (HRA),HOUSING CAPITAL & ASSET MANAGEMENT,TECHNICAL SERVICES,RESPONSIVE REPAIRS - MECHANICAL AND ELECTRICAL,07/02/2020,
OFH2021Q2.A000616,07/03/2020,MPS Housing Limited,CIS,4.69,D18075,PLANNED MAINTENANCE (SOUTH),RESIDENT SERVICES (HRA),STRATEGIC PROGRAMMES (HRA),HOUSING CAPITAL & ASSET MANAGEMENT,TECHNICAL SERVICES,RESPONSIVE REPAIRS - MECHANICAL AND ELECTRICAL,07/02/2020,
OFH2021Q2.A000617,07/03/2020,MPS Housing Limited,CIS,4.69,D18075,PLANNED MAINTENANCE (SOUTH),RESIDENT SERVICES (HRA),STRATEGIC PROGRAMMES (HRA),HOUSING CAPITAL & ASSET MANAGEMENT,TECHNICAL SERVICES,RESPONSIVE REPAIRS - MECHANICAL AND ELECTRICAL,07/02/2020,
OFH2021Q2.A000618,07/03/2020,MPS Housing Limited,CIS,8.68,D18075,PLANNED MAINTENANCE (SOUTH),RESIDENT SERVICES (HRA),STRATEGIC PROGRAMMES (HRA),HOUSING CAPITAL & ASSET MANAGEMENT,TECHNICAL SERVICES,CYCLICAL/PLANNED MAINTENANCE - MECHANICAL AND ELECTRICAL,07/02/2020,
OFH2021Q2.A000619,07/03/2020,MPS Housing Limited,CIS,8.68,D18075,PLANNED MAINTENANCE (SOUTH),RESIDENT SERVICES (HRA),STRATEGIC PROGRAMMES (HRA),HOUSING CAPITAL & ASSET MANAGEMENT,TECHNICAL SERVICES,CYCLICAL/PLANNED MAINTENANCE - MECHANICAL AND ELECTRICAL,07/02/2020,
OFH2021Q2.A000620,07/03/2020,MPS Housing Limited,CIS,8.68,D18075,PLANNED MAINTENANCE (SOUTH),RESIDENT SERVICES (HRA),STRATEGIC PROGRAMMES (HRA),HOUSING CAPITAL & ASSET MANAGEMENT,TECHNICAL SERVICES,CYCLICAL/PLANNED MAINTENANCE - MECHANICAL AND ELECTRICAL,07/02/2020,
OFH2021Q2.A000621,07/03/2020,MPS Housing Limited,CIS,8.68,D18075,PLANNED MAINTENANCE (SOUTH),RESIDENT SERVICES (HRA),STRATEGIC PROGRAMMES (HRA),HOUSING CAPITAL & ASSET MANAGEMENT,TECHNICAL SERVICES,CYCLICAL/PLANNED MAINTENANCE - MECHANICAL AND ELECTRICAL,07/02/2020,
OFH2021Q2.A000622,07/03/2020,MPS Housing Limited,CIS,8.68,D18075,PLANNED MAINTENANCE (SOUTH),RESIDENT SERVICES (HRA),STRATEGIC PROGRAMMES (HRA),HOUSING CAPITAL & ASSET MANAGEMENT,TECHNICAL SERVICES,CYCLICAL/PLANNED MAINTENANCE - MECHANICAL AND ELECTRICAL,07/02/2020,
OFH2021Q2.A000623,07/03/2020,MPS Housing Limited,CIS,8.68,D18075,PLANNED MAINTENANCE (SOUTH),RESIDENT SERVICES (HRA),STRATEGIC PROGRAMMES (HRA),HOUSING CAPITAL & ASSET MANAGEMENT,TECHNICAL SERVICES,CYCLICAL/PLANNED MAINTENANCE - MECHANICAL AND ELECTRICAL,07/02/2020,
OFH2021Q2.A000624,07/03/2020,MPS Housing Limited,CIS,8.68,D18075,PLANNED MAINTENANCE (SOUTH),RESIDENT SERVICES (HRA),STRATEGIC PROGRAMMES (HRA),HOUSING CAPITAL & ASSET MANAGEMENT,TECHNICAL SERVICES,CYCLICAL/PLANNED MAINTENANCE - MECHANICAL AND ELECTRICAL,07/02/2020,
OFH2021Q2.A000625,07/03/2020,MPS Housing Limited,CIS,8.68,D18075,PLANNED MAINTENANCE (SOUTH),RESIDENT SERVICES (HRA),STRATEGIC PROGRAMMES (HRA),HOUSING CAPITAL & ASSET MANAGEMENT,TECHNICAL SERVICES,CYCLICAL/PLANNED MAINTENANCE - MECHANICAL AND ELECTRICAL,07/02/2020,
OFH2021Q2.A000626,07/03/2020,MPS Housing Limited,CIS,8.68,D18075,PLANNED MAINTENANCE (SOUTH),RESIDENT SERVICES (HRA),STRATEGIC PROGRAMMES (HRA),HOUSING CAPITAL & ASSET MANAGEMENT,TECHNICAL SERVICES,CYCLICAL/PLANNED MAINTENANCE - MECHANICAL AND ELECTRICAL,07/02/2020,
OFH2021Q2.A000627,07/03/2020,MPS Housing Limited,CIS,8.68,D18075,PLANNED MAINTENANCE (SOUTH),RESIDENT SERVICES (HRA),STRATEGIC PROGRAMMES (HRA),HOUSING CAPITAL & ASSET MANAGEMENT,TECHNICAL SERVICES,CYCLICAL/PLANNED MAINTENANCE - MECHANICAL AND ELECTRICAL,07/02/2020,
OFH2021Q2.A000628,07/03/2020,MPS Housing Limited,CIS,8.68,D18075,PLANNED MAINTENANCE (SOUTH),RESIDENT SERVICES (HRA),STRATEGIC PROGRAMMES (HRA),HOUSING CAPITAL & ASSET MANAGEMENT,TECHNICAL SERVICES,CYCLICAL/PLANNED MAINTENANCE - MECHANICAL AND ELECTRICAL,07/02/2020,
OFH2021Q2.A000629,07/03/2020,MPS Housing Limited,CIS,8.68,D18075,PLANNED MAINTENANCE (SOUTH),RESIDENT SERVICES (HRA),STRATEGIC PROGRAMMES (HRA),HOUSING CAPITAL & ASSET MANAGEMENT,TECHNICAL SERVICES,CYCLICAL/PLANNED MAINTENANCE - MECHANICAL AND ELECTRICAL,07/02/2020,
OFH2021Q2.A000630,07/03/2020,MPS Housing Limited,CIS,8.68,D18075,PLANNED MAINTENANCE (SOUTH),RESIDENT SERVICES (HRA),STRATEGIC PROGRAMMES (HRA),HOUSING CAPITAL & ASSET MANAGEMENT,TECHNICAL SERVICES,CYCLICAL/PLANNED MAINTENANCE - MECHANICAL AND ELECTRICAL,07/02/2020,
OFH2021Q2.A000631,07/03/2020,MPS Housing Limited,CIS,8.68,D18075,PLANNED MAINTENANCE (SOUTH),RESIDENT SERVICES (HRA),STRATEGIC PROGRAMMES (HRA),HOUSING CAPITAL & ASSET MANAGEMENT,TECHNICAL SERVICES,CYCLICAL/PLANNED MAINTENANCE - MECHANICAL AND ELECTRICAL,07/02/2020,
OFH2021Q2.A000632,07/03/2020,MPS Housing Limited,CIS,8.68,D18075,PLANNED MAINTENANCE (SOUTH),RESIDENT SERVICES (HRA),STRATEGIC PROGRAMMES (HRA),HOUSING CAPITAL & ASSET MANAGEMENT,TECHNICAL SERVICES,CYCLICAL/PLANNED MAINTENANCE - MECHANICAL AND ELECTRICAL,07/02/2020,
OFH2021Q2.A000633,07/03/2020,MPS Housing Limited,CIS,8.68,D18075,PLANNED MAINTENANCE (SOUTH),RESIDENT SERVICES (HRA),STRATEGIC PROGRAMMES (HRA),HOUSING CAPITAL & ASSET MANAGEMENT,TECHNICAL SERVICES,CYCLICAL/PLANNED MAINTENANCE - MECHANICAL AND ELECTRICAL,07/02/2020,
OFH2021Q2.A000634,07/03/2020,MPS Housing Limited,CIS,8.68,D18075,PLANNED MAINTENANCE (SOUTH),RESIDENT SERVICES (HRA),STRATEGIC PROGRAMMES (HRA),HOUSING CAPITAL & ASSET MANAGEMENT,TECHNICAL SERVICES,CYCLICAL/PLANNED MAINTENANCE - MECHANICAL AND ELECTRICAL,07/02/2020,
OFH2021Q2.A000635,07/03/2020,MPS Housing Limited,CIS,8.68,D18075,PLANNED MAINTENANCE (SOUTH),RESIDENT SERVICES (HRA),STRATEGIC PROGRAMMES (HRA),HOUSING CAPITAL & ASSET MANAGEMENT,TECHNICAL SERVICES,CYCLICAL/PLANNED MAINTENANCE - MECHANICAL AND ELECTRICAL,07/02/2020,
OFH2021Q2.A000636,07/03/2020,MPS Housing Limited,CIS,8.68,D18075,PLANNED MAINTENANCE (SOUTH),RESIDENT SERVICES (HRA),STRATEGIC PROGRAMMES (HRA),HOUSING CAPITAL & ASSET MANAGEMENT,TECHNICAL SERVICES,CYCLICAL/PLANNED MAINTENANCE - MECHANICAL AND ELECTRICAL,07/02/2020,
OFH2021Q2.A000637,07/03/2020,MPS Housing Limited,CIS,8.68,D18075,PLANNED MAINTENANCE (SOUTH),RESIDENT SERVICES (HRA),STRATEGIC PROGRAMMES (HRA),HOUSING CAPITAL & ASSET MANAGEMENT,TECHNICAL SERVICES,CYCLICAL/PLANNED MAINTENANCE - MECHANICAL AND ELECTRICAL,07/02/2020,
OFH2021Q2.A000638,07/03/2020,MPS Housing Limited,CIS,8.68,D18075,PLANNED MAINTENANCE (SOUTH),RESIDENT SERVICES (HRA),STRATEGIC PROGRAMMES (HRA),HOUSING CAPITAL & ASSET MANAGEMENT,TECHNICAL SERVICES,CYCLICAL/PLANNED MAINTENANCE - MECHANICAL AND ELECTRICAL,07/02/2020,
OFH2021Q2.A000639,07/03/2020,MPS Housing Limited,CIS,8.68,D18075,PLANNED MAINTENANCE (SOUTH),RESIDENT SERVICES (HRA),STRATEGIC PROGRAMMES (HRA),HOUSING CAPITAL & ASSET MANAGEMENT,TECHNICAL SERVICES,CYCLICAL/PLANNED MAINTENANCE - MECHANICAL AND ELECTRICAL,07/02/2020,
OFH2021Q2.A000640,07/03/2020,MPS Housing Limited,CIS,8.68,D18075,PLANNED MAINTENANCE (SOUTH),RESIDENT SERVICES (HRA),STRATEGIC PROGRAMMES (HRA),HOUSING CAPITAL & ASSET MANAGEMENT,TECHNICAL SERVICES,CYCLICAL/PLANNED MAINTENANCE - MECHANICAL AND ELECTRICAL,07/02/2020,
OFH2021Q2.A000641,07/03/2020,MPS Housing Limited,CIS,8.68,D18075,PLANNED MAINTENANCE (SOUTH),RESIDENT SERVICES (HRA),STRATEGIC PROGRAMMES (HRA),HOUSING CAPITAL & ASSET MANAGEMENT,TECHNICAL SERVICES,CYCLICAL/PLANNED MAINTENANCE - MECHANICAL AND ELECTRICAL,07/02/2020,
OFH2021Q2.A000642,07/03/2020,MPS Housing Limited,CIS,8.68,D18075,PLANNED MAINTENANCE (SOUTH),RESIDENT SERVICES (HRA),STRATEGIC PROGRAMMES (HRA),HOUSING CAPITAL & ASSET MANAGEMENT,TECHNICAL SERVICES,CYCLICAL/PLANNED MAINTENANCE - MECHANICAL AND ELECTRICAL,07/02/2020,
OFH2021Q2.A000643,07/03/2020,MPS Housing Limited,CIS,8.68,D18075,PLANNED MAINTENANCE (SOUTH),RESIDENT SERVICES (HRA),STRATEGIC PROGRAMMES (HRA),HOUSING CAPITAL & ASSET MANAGEMENT,TECHNICAL SERVICES,CYCLICAL/PLANNED MAINTENANCE - MECHANICAL AND ELECTRICAL,07/02/2020,
OFH2021Q2.A000644,07/03/2020,MPS Housing Limited,CIS,17,D18075,PLANNED MAINTENANCE (SOUTH),RESIDENT SERVICES (HRA),STRATEGIC PROGRAMMES (HRA),HOUSING CAPITAL & ASSET MANAGEMENT,TECHNICAL SERVICES,CYCLICAL/PLANNED MAINTENANCE - MECHANICAL AND ELECTRICAL,07/02/2020,
OFH2021Q2.A000645,07/03/2020,MPS Housing Limited,CIS,17,D18075,PLANNED MAINTENANCE (SOUTH),RESIDENT SERVICES (HRA),STRATEGIC PROGRAMMES (HRA),HOUSING CAPITAL & ASSET MANAGEMENT,TECHNICAL SERVICES,CYCLICAL/PLANNED MAINTENANCE - MECHANICAL AND ELECTRICAL,07/02/2020,
OFH2021Q2.A000646,07/03/2020,MPS Housing Limited,CIS,17,D18075,PLANNED MAINTENANCE (SOUTH),RESIDENT SERVICES (HRA),STRATEGIC PROGRAMMES (HRA),HOUSING CAPITAL & ASSET MANAGEMENT,TECHNICAL SERVICES,CYCLICAL/PLANNED MAINTENANCE - MECHANICAL AND ELECTRICAL,07/02/2020,
OFH2021Q2.A000647,07/03/2020,MPS Housing Limited,CIS,17,D18075,PLANNED MAINTENANCE (SOUTH),RESIDENT SERVICES (HRA),STRATEGIC PROGRAMMES (HRA),HOUSING CAPITAL & ASSET MANAGEMENT,TECHNICAL SERVICES,CYCLICAL/PLANNED MAINTENANCE - MECHANICAL AND ELECTRICAL,07/02/2020,
OFH2021Q2.A000648,07/03/2020,MPS Housing Limited,CIS,17,D18075,PLANNED MAINTENANCE (SOUTH),RESIDENT SERVICES (HRA),STRATEGIC PROGRAMMES (HRA),HOUSING CAPITAL & ASSET MANAGEMENT,TECHNICAL SERVICES,CYCLICAL/PLANNED MAINTENANCE - MECHANICAL AND ELECTRICAL,07/02/2020,
OFH2021Q2.A000649,07/03/2020,MPS Housing Limited,CIS,17,D18075,PLANNED MAINTENANCE (SOUTH),RESIDENT SERVICES (HRA),STRATEGIC PROGRAMMES (HRA),HOUSING CAPITAL & ASSET MANAGEMENT,TECHNICAL SERVICES,CYCLICAL/PLANNED MAINTENANCE - MECHANICAL AND ELECTRICAL,07/02/2020,
OFH2021Q2.A000650,07/03/2020,MPS Housing Limited,CIS,17,D18075,PLANNED MAINTENANCE (SOUTH),RESIDENT SERVICES (HRA),STRATEGIC PROGRAMMES (HRA),HOUSING CAPITAL & ASSET MANAGEMENT,TECHNICAL SERVICES,CYCLICAL/PLANNED MAINTENANCE - MECHANICAL AND ELECTRICAL,07/02/2020,
OFH2021Q2.A000651,07/03/2020,MPS Housing Limited,CIS,17,D18075,PLANNED MAINTENANCE (SOUTH),RESIDENT SERVICES (HRA),STRATEGIC PROGRAMMES (HRA),HOUSING CAPITAL & ASSET MANAGEMENT,TECHNICAL SERVICES,CYCLICAL/PLANNED MAINTENANCE - MECHANICAL AND ELECTRICAL,07/02/2020,
OFH2021Q2.A000652,07/03/2020,MPS Housing Limited,CIS,17,D18075,PLANNED MAINTENANCE (SOUTH),RESIDENT SERVICES (HRA),STRATEGIC PROGRAMMES (HRA),HOUSING CAPITAL & ASSET MANAGEMENT,TECHNICAL SERVICES,CYCLICAL/PLANNED MAINTENANCE - MECHANICAL AND ELECTRICAL,07/02/2020,
OFH2021Q2.A000653,07/03/2020,MPS Housing Limited,CIS,17,D18075,PLANNED MAINTENANCE (SOUTH),RESIDENT SERVICES (HRA),STRATEGIC PROGRAMMES (HRA),HOUSING CAPITAL & ASSET MANAGEMENT,TECHNICAL SERVICES,CYCLICAL/PLANNED MAINTENANCE - MECHANICAL AND ELECTRICAL,07/02/2020,
OFH2021Q2.A000654,07/03/2020,MPS Housing Limited,CIS,17,D18075,PLANNED MAINTENANCE (SOUTH),RESIDENT SERVICES (HRA),STRATEGIC PROGRAMMES (HRA),HOUSING CAPITAL & ASSET MANAGEMENT,TECHNICAL SERVICES,CYCLICAL/PLANNED MAINTENANCE - MECHANICAL AND ELECTRICAL,07/02/2020,
OFH2021Q2.A000655,07/03/2020,MPS Housing Limited,CIS,17,D18075,PLANNED MAINTENANCE (SOUTH),RESIDENT SERVICES (HRA),STRATEGIC PROGRAMMES (HRA),HOUSING CAPITAL & ASSET MANAGEMENT,TECHNICAL SERVICES,CYCLICAL/PLANNED MAINTENANCE - MECHANICAL AND ELECTRICAL,07/02/2020,
OFH2021Q2.A000656,07/03/2020,MPS Housing Limited,CIS,17,D18075,PLANNED MAINTENANCE (SOUTH),RESIDENT SERVICES (HRA),STRATEGIC PROGRAMMES (HRA),HOUSING CAPITAL & ASSET MANAGEMENT,TECHNICAL SERVICES,CYCLICAL/PLANNED MAINTENANCE - MECHANICAL AND ELECTRICAL,07/02/2020,
OFH2021Q2.A000657,07/03/2020,MPS Housing Limited,CIS,17,D18075,PLANNED MAINTENANCE (SOUTH),RESIDENT SERVICES (HRA),STRATEGIC PROGRAMMES (HRA),HOUSING CAPITAL & ASSET MANAGEMENT,TECHNICAL SERVICES,CYCLICAL/PLANNED MAINTENANCE - MECHANICAL AND ELECTRICAL,07/02/2020,
OFH2021Q2.A000658,07/03/2020,MPS Housing Limited,CIS,17,D18075,PLANNED MAINTENANCE (SOUTH),RESIDENT SERVICES (HRA),STRATEGIC PROGRAMMES (HRA),HOUSING CAPITAL & ASSET MANAGEMENT,TECHNICAL SERVICES,CYCLICAL/PLANNED MAINTENANCE - MECHANICAL AND ELECTRICAL,07/02/2020,
OFH2021Q2.A000659,07/03/2020,MPS Housing Limited,CIS,17,D18075,PLANNED MAINTENANCE (SOUTH),RESIDENT SERVICES (HRA),STRATEGIC PROGRAMMES (HRA),HOUSING CAPITAL & ASSET MANAGEMENT,TECHNICAL SERVICES,CYCLICAL/PLANNED MAINTENANCE - MECHANICAL AND ELECTRICAL,07/02/2020,
OFH2021Q2.A000660,07/03/2020,MPS Housing Limited,CIS,17,D18075,PLANNED MAINTENANCE (SOUTH),RESIDENT SERVICES (HRA),STRATEGIC PROGRAMMES (HRA),HOUSING CAPITAL & ASSET MANAGEMENT,TECHNICAL SERVICES,CYCLICAL/PLANNED MAINTENANCE - MECHANICAL AND ELECTRICAL,07/02/2020,
OFH2021Q2.A000661,07/03/2020,MPS Housing Limited,CIS,17,D18075,PLANNED MAINTENANCE (SOUTH),RESIDENT SERVICES (HRA),STRATEGIC PROGRAMMES (HRA),HOUSING CAPITAL & ASSET MANAGEMENT,TECHNICAL SERVICES,CYCLICAL/PLANNED MAINTENANCE - MECHANICAL AND ELECTRICAL,07/02/2020,
OFH2021Q2.A000662,07/03/2020,MPS Housing Limited,CIS,17,D18075,PLANNED MAINTENANCE (SOUTH),RESIDENT SERVICES (HRA),STRATEGIC PROGRAMMES (HRA),HOUSING CAPITAL & ASSET MANAGEMENT,TECHNICAL SERVICES,CYCLICAL/PLANNED MAINTENANCE - MECHANICAL AND ELECTRICAL,07/02/2020,
OFH2021Q2.A000663,07/03/2020,MPS Housing Limited,CIS,17,D18075,PLANNED MAINTENANCE (SOUTH),RESIDENT SERVICES (HRA),STRATEGIC PROGRAMMES (HRA),HOUSING CAPITAL & ASSET MANAGEMENT,TECHNICAL SERVICES,CYCLICAL/PLANNED MAINTENANCE - MECHANICAL AND ELECTRICAL,07/02/2020,
OFH2021Q2.A000664,07/03/2020,MPS Housing Limited,CIS,17,D18075,PLANNED MAINTENANCE (SOUTH),RESIDENT SERVICES (HRA),STRATEGIC PROGRAMMES (HRA),HOUSING CAPITAL & ASSET MANAGEMENT,TECHNICAL SERVICES,CYCLICAL/PLANNED MAINTENANCE - MECHANICAL AND ELECTRICAL,07/02/2020,
OFH2021Q2.A000665,07/03/2020,MPS Housing Limited,CIS,17,D18075,PLANNED MAINTENANCE (SOUTH),RESIDENT SERVICES (HRA),STRATEGIC PROGRAMMES (HRA),HOUSING CAPITAL & ASSET MANAGEMENT,TECHNICAL SERVICES,CYCLICAL/PLANNED MAINTENANCE - MECHANICAL AND ELECTRICAL,07/02/2020,
OFH2021Q2.A000666,07/03/2020,MPS Housing Limited,CIS,17,D18075,PLANNED MAINTENANCE (SOUTH),RESIDENT SERVICES (HRA),STRATEGIC PROGRAMMES (HRA),HOUSING CAPITAL & ASSET MANAGEMENT,TECHNICAL SERVICES,CYCLICAL/PLANNED MAINTENANCE - MECHANICAL AND ELECTRICAL,07/02/2020,
OFH2021Q2.A000667,07/03/2020,MPS Housing Limited,CIS,17,D18075,PLANNED MAINTENANCE (SOUTH),RESIDENT SERVICES (HRA),STRATEGIC PROGRAMMES (HRA),HOUSING CAPITAL & ASSET MANAGEMENT,TECHNICAL SERVICES,CYCLICAL/PLANNED MAINTENANCE - MECHANICAL AND ELECTRICAL,07/02/2020,
OFH2021Q2.A000668,07/03/2020,MPS Housing Limited,CIS,17,D18075,PLANNED MAINTENANCE (SOUTH),RESIDENT SERVICES (HRA),STRATEGIC PROGRAMMES (HRA),HOUSING CAPITAL & ASSET MANAGEMENT,TECHNICAL SERVICES,CYCLICAL/PLANNED MAINTENANCE - MECHANICAL AND ELECTRICAL,07/02/2020,
OFH2021Q2.A000669,07/03/2020,MPS Housing Limited,CIS,17,D18075,PLANNED MAINTENANCE (SOUTH),RESIDENT SERVICES (HRA),STRATEGIC PROGRAMMES (HRA),HOUSING CAPITAL & ASSET MANAGEMENT,TECHNICAL SERVICES,CYCLICAL/PLANNED MAINTENANCE - MECHANICAL AND ELECTRICAL,07/02/2020,
OFH2021Q2.A000670,07/03/2020,MPS Housing Limited,CIS,17,D18075,PLANNED MAINTENANCE (SOUTH),RESIDENT SERVICES (HRA),STRATEGIC PROGRAMMES (HRA),HOUSING CAPITAL & ASSET MANAGEMENT,TECHNICAL SERVICES,CYCLICAL/PLANNED MAINTENANCE - MECHANICAL AND ELECTRICAL,07/02/2020,
OFH2021Q2.A000671,07/03/2020,MPS Housing Limited,CIS,17,D18075,PLANNED MAINTENANCE (SOUTH),RESIDENT SERVICES (HRA),STRATEGIC PROGRAMMES (HRA),HOUSING CAPITAL & ASSET MANAGEMENT,TECHNICAL SERVICES,CYCLICAL/PLANNED MAINTENANCE - MECHANICAL AND ELECTRICAL,07/02/2020,
OFH2021Q2.A000672,07/03/2020,MPS Housing Limited,CIS,17,D18075,PLANNED MAINTENANCE (SOUTH),RESIDENT SERVICES (HRA),STRATEGIC PROGRAMMES (HRA),HOUSING CAPITAL & ASSET MANAGEMENT,TECHNICAL SERVICES,CYCLICAL/PLANNED MAINTENANCE - MECHANICAL AND ELECTRICAL,07/02/2020,
OFH2021Q2.A000673,07/03/2020,MPS Housing Limited,CIS,17,D18075,PLANNED MAINTENANCE (SOUTH),RESIDENT SERVICES (HRA),STRATEGIC PROGRAMMES (HRA),HOUSING CAPITAL & ASSET MANAGEMENT,TECHNICAL SERVICES,CYCLICAL/PLANNED MAINTENANCE - MECHANICAL AND ELECTRICAL,07/02/2020,
OFH2021Q2.A000674,07/03/2020,MPS Housing Limited,CIS,17,D18075,PLANNED MAINTENANCE (SOUTH),RESIDENT SERVICES (HRA),STRATEGIC PROGRAMMES (HRA),HOUSING CAPITAL & ASSET MANAGEMENT,TECHNICAL SERVICES,CYCLICAL/PLANNED MAINTENANCE - MECHANICAL AND ELECTRICAL,07/02/2020,
OFH2021Q2.A000675,07/03/2020,MPS Housing Limited,CIS,17,D18075,PLANNED MAINTENANCE (SOUTH),RESIDENT SERVICES (HRA),STRATEGIC PROGRAMMES (HRA),HOUSING CAPITAL & ASSET MANAGEMENT,TECHNICAL SERVICES,CYCLICAL/PLANNED MAINTENANCE - MECHANICAL AND ELECTRICAL,07/02/2020,
OFH2021Q2.A000676,07/03/2020,MPS Housing Limited,CIS,17,D18075,PLANNED MAINTENANCE (SOUTH),RESIDENT SERVICES (HRA),STRATEGIC PROGRAMMES (HRA),HOUSING CAPITAL & ASSET MANAGEMENT,TECHNICAL SERVICES,CYCLICAL/PLANNED MAINTENANCE - MECHANICAL AND ELECTRICAL,07/02/2020,
OFH2021Q2.A000677,07/03/2020,MPS Housing Limited,CIS,17,D18075,PLANNED MAINTENANCE (SOUTH),RESIDENT SERVICES (HRA),STRATEGIC PROGRAMMES (HRA),HOUSING CAPITAL & ASSET MANAGEMENT,TECHNICAL SERVICES,CYCLICAL/PLANNED MAINTENANCE - MECHANICAL AND ELECTRICAL,07/02/2020,
OFH2021Q2.A000678,07/03/2020,MPS Housing Limited,CIS,17,D18075,PLANNED MAINTENANCE (SOUTH),RESIDENT SERVICES (HRA),STRATEGIC PROGRAMMES (HRA),HOUSING CAPITAL & ASSET MANAGEMENT,TECHNICAL SERVICES,CYCLICAL/PLANNED MAINTENANCE - MECHANICAL AND ELECTRICAL,07/02/2020,
OFH2021Q2.A000679,07/03/2020,MPS Housing Limited,CIS,17,D18075,PLANNED MAINTENANCE (SOUTH),RESIDENT SERVICES (HRA),STRATEGIC PROGRAMMES (HRA),HOUSING CAPITAL & ASSET MANAGEMENT,TECHNICAL SERVICES,CYCLICAL/PLANNED MAINTENANCE - MECHANICAL AND ELECTRICAL,07/02/2020,
OFH2021Q2.A000680,07/03/2020,MPS Housing Limited,CIS,17,D18075,PLANNED MAINTENANCE (SOUTH),RESIDENT SERVICES (HRA),STRATEGIC PROGRAMMES (HRA),HOUSING CAPITAL & ASSET MANAGEMENT,TECHNICAL SERVICES,CYCLICAL/PLANNED MAINTENANCE - MECHANICAL AND ELECTRICAL,07/02/2020,
OFH2021Q2.A000681,07/03/2020,MPS Housing Limited,CIS,17,D18075,PLANNED MAINTENANCE (SOUTH),RESIDENT SERVICES (HRA),STRATEGIC PROGRAMMES (HRA),HOUSING CAPITAL & ASSET MANAGEMENT,TECHNICAL SERVICES,CYCLICAL/PLANNED MAINTENANCE - MECHANICAL AND ELECTRICAL,07/02/2020,
OFH2021Q2.A000682,07/03/2020,MPS Housing Limited,CIS,17,D18075,PLANNED MAINTENANCE (SOUTH),RESIDENT SERVICES (HRA),STRATEGIC PROGRAMMES (HRA),HOUSING CAPITAL & ASSET MANAGEMENT,TECHNICAL SERVICES,CYCLICAL/PLANNED MAINTENANCE - MECHANICAL AND ELECTRICAL,07/02/2020,
OFH2021Q2.A000683,07/03/2020,MPS Housing Limited,CIS,17,D18075,PLANNED MAINTENANCE (SOUTH),RESIDENT SERVICES (HRA),STRATEGIC PROGRAMMES (HRA),HOUSING CAPITAL & ASSET MANAGEMENT,TECHNICAL SERVICES,CYCLICAL/PLANNED MAINTENANCE - MECHANICAL AND ELECTRICAL,07/02/2020,
OFH2021Q2.A000684,07/03/2020,MPS Housing Limited,CIS,17,D18075,PLANNED MAINTENANCE (SOUTH),RESIDENT SERVICES (HRA),STRATEGIC PROGRAMMES (HRA),HOUSING CAPITAL & ASSET MANAGEMENT,TECHNICAL SERVICES,CYCLICAL/PLANNED MAINTENANCE - MECHANICAL AND ELECTRICAL,07/02/2020,
OFH2021Q2.A000685,07/03/2020,MPS Housing Limited,CIS,17,D18075,PLANNED MAINTENANCE (SOUTH),RESIDENT SERVICES (HRA),STRATEGIC PROGRAMMES (HRA),HOUSING CAPITAL & ASSET MANAGEMENT,TECHNICAL SERVICES,CYCLICAL/PLANNED MAINTENANCE - MECHANICAL AND ELECTRICAL,07/02/2020,
OFH2021Q2.A000686,07/03/2020,MPS Housing Limited,CIS,20.76,D18075,PLANNED MAINTENANCE (SOUTH),RESIDENT SERVICES (HRA),STRATEGIC PROGRAMMES (HRA),HOUSING CAPITAL & ASSET MANAGEMENT,TECHNICAL SERVICES,RESPONSIVE REPAIRS - MECHANICAL AND ELECTRICAL,07/02/2020,
OFH2021Q2.A000687,07/03/2020,MPS Housing Limited,CIS,21.11,D18075,PLANNED MAINTENANCE (SOUTH),RESIDENT SERVICES (HRA),STRATEGIC PROGRAMMES (HRA),HOUSING CAPITAL & ASSET MANAGEMENT,TECHNICAL SERVICES,RESPONSIVE REPAIRS - MECHANICAL AND ELECTRICAL,07/02/2020,
OFH2021Q2.A000688,07/03/2020,MPS Housing Limited,CIS,21.25,D18075,PLANNED MAINTENANCE (SOUTH),RESIDENT SERVICES (HRA),STRATEGIC PROGRAMMES (HRA),HOUSING CAPITAL & ASSET MANAGEMENT,TECHNICAL SERVICES,CYCLICAL/PLANNED MAINTENANCE - MECHANICAL AND ELECTRICAL,07/02/2020,
OFH2021Q2.A000689,07/03/2020,MPS Housing Limited,CIS,21.25,D18075,PLANNED MAINTENANCE (SOUTH),RESIDENT SERVICES (HRA),STRATEGIC PROGRAMMES (HRA),HOUSING CAPITAL & ASSET MANAGEMENT,TECHNICAL SERVICES,CYCLICAL/PLANNED MAINTENANCE - MECHANICAL AND ELECTRICAL,07/02/2020,
OFH2021Q2.A000690,07/03/2020,MPS Housing Limited,CIS,21.25,D18075,PLANNED MAINTENANCE (SOUTH),RESIDENT SERVICES (HRA),STRATEGIC PROGRAMMES (HRA),HOUSING CAPITAL & ASSET MANAGEMENT,TECHNICAL SERVICES,CYCLICAL/PLANNED MAINTENANCE - MECHANICAL AND ELECTRICAL,07/02/2020,
OFH2021Q2.A000691,07/03/2020,MPS Housing Limited,CIS,21.25,D18075,PLANNED MAINTENANCE (SOUTH),RESIDENT SERVICES (HRA),STRATEGIC PROGRAMMES (HRA),HOUSING CAPITAL & ASSET MANAGEMENT,TECHNICAL SERVICES,CYCLICAL/PLANNED MAINTENANCE - MECHANICAL AND ELECTRICAL,07/02/2020,
OFH2021Q2.A000692,07/03/2020,MPS Housing Limited,CIS,21.25,D18075,PLANNED MAINTENANCE (SOUTH),RESIDENT SERVICES (HRA),STRATEGIC PROGRAMMES (HRA),HOUSING CAPITAL & ASSET MANAGEMENT,TECHNICAL SERVICES,CYCLICAL/PLANNED MAINTENANCE - MECHANICAL AND ELECTRICAL,07/02/2020,
OFH2021Q2.A000693,07/03/2020,MPS Housing Limited,CIS,21.25,D18075,PLANNED MAINTENANCE (SOUTH),RESIDENT SERVICES (HRA),STRATEGIC PROGRAMMES (HRA),HOUSING CAPITAL & ASSET MANAGEMENT,TECHNICAL SERVICES,CYCLICAL/PLANNED MAINTENANCE - MECHANICAL AND ELECTRICAL,07/02/2020,
OFH2021Q2.A000694,07/03/2020,MPS Housing Limited,CIS,21.25,D18075,PLANNED MAINTENANCE (SOUTH),RESIDENT SERVICES (HRA),STRATEGIC PROGRAMMES (HRA),HOUSING CAPITAL & ASSET MANAGEMENT,TECHNICAL SERVICES,CYCLICAL/PLANNED MAINTENANCE - MECHANICAL AND ELECTRICAL,07/02/2020,
OFH2021Q2.A000695,07/03/2020,MPS Housing Limited,CIS,21.25,D18075,PLANNED MAINTENANCE (SOUTH),RESIDENT SERVICES (HRA),STRATEGIC PROGRAMMES (HRA),HOUSING CAPITAL & ASSET MANAGEMENT,TECHNICAL SERVICES,CYCLICAL/PLANNED MAINTENANCE - MECHANICAL AND ELECTRICAL,07/02/2020,
OFH2021Q2.A000696,07/03/2020,MPS Housing Limited,CIS,21.25,D18075,PLANNED MAINTENANCE (SOUTH),RESIDENT SERVICES (HRA),STRATEGIC PROGRAMMES (HRA),HOUSING CAPITAL & ASSET MANAGEMENT,TECHNICAL SERVICES,CYCLICAL/PLANNED MAINTENANCE - MECHANICAL AND ELECTRICAL,07/02/2020,
OFH2021Q2.A000697,07/03/2020,MPS Housing Limited,CIS,21.25,D18075,PLANNED MAINTENANCE (SOUTH),RESIDENT SERVICES (HRA),STRATEGIC PROGRAMMES (HRA),HOUSING CAPITAL & ASSET MANAGEMENT,TECHNICAL SERVICES,CYCLICAL/PLANNED MAINTENANCE - MECHANICAL AND ELECTRICAL,07/02/2020,
OFH2021Q2.A000698,07/03/2020,MPS Housing Limited,CIS,21.25,D18075,PLANNED MAINTENANCE (SOUTH),RESIDENT SERVICES (HRA),STRATEGIC PROGRAMMES (HRA),HOUSING CAPITAL & ASSET MANAGEMENT,TECHNICAL SERVICES,CYCLICAL/PLANNED MAINTENANCE - MECHANICAL AND ELECTRICAL,07/02/2020,
OFH2021Q2.A000699,07/03/2020,MPS Housing Limited,CIS,21.25,D18075,PLANNED MAINTENANCE (SOUTH),RESIDENT SERVICES (HRA),STRATEGIC PROGRAMMES (HRA),HOUSING CAPITAL & ASSET MANAGEMENT,TECHNICAL SERVICES,CYCLICAL/PLANNED MAINTENANCE - MECHANICAL AND ELECTRICAL,07/02/2020,
OFH2021Q2.A000700,07/03/2020,MPS Housing Limited,CIS,21.25,D18075,PLANNED MAINTENANCE (SOUTH),RESIDENT SERVICES (HRA),STRATEGIC PROGRAMMES (HRA),HOUSING CAPITAL & ASSET MANAGEMENT,TECHNICAL SERVICES,CYCLICAL/PLANNED MAINTENANCE - MECHANICAL AND ELECTRICAL,07/02/2020,
OFH2021Q2.A000701,07/03/2020,MPS Housing Limited,CIS,21.25,D18075,PLANNED MAINTENANCE (SOUTH),RESIDENT SERVICES (HRA),STRATEGIC PROGRAMMES (HRA),HOUSING CAPITAL & ASSET MANAGEMENT,TECHNICAL SERVICES,CYCLICAL/PLANNED MAINTENANCE - MECHANICAL AND ELECTRICAL,07/02/2020,
OFH2021Q2.A000702,07/03/2020,MPS Housing Limited,CIS,21.25,D18075,PLANNED MAINTENANCE (SOUTH),RESIDENT SERVICES (HRA),STRATEGIC PROGRAMMES (HRA),HOUSING CAPITAL & ASSET MANAGEMENT,TECHNICAL SERVICES,CYCLICAL/PLANNED MAINTENANCE - MECHANICAL AND ELECTRICAL,07/02/2020,
OFH2021Q2.A000703,07/03/2020,MPS Housing Limited,CIS,21.25,D18075,PLANNED MAINTENANCE (SOUTH),RESIDENT SERVICES (HRA),STRATEGIC PROGRAMMES (HRA),HOUSING CAPITAL & ASSET MANAGEMENT,TECHNICAL SERVICES,CYCLICAL/PLANNED MAINTENANCE - MECHANICAL AND ELECTRICAL,07/02/2020,
OFH2021Q2.A000704,07/03/2020,MPS Housing Limited,CIS,21.25,D18075,PLANNED MAINTENANCE (SOUTH),RESIDENT SERVICES (HRA),STRATEGIC PROGRAMMES (HRA),HOUSING CAPITAL & ASSET MANAGEMENT,TECHNICAL SERVICES,CYCLICAL/PLANNED MAINTENANCE - MECHANICAL AND ELECTRICAL,07/02/2020,
OFH2021Q2.A000705,07/03/2020,MPS Housing Limited,CIS,21.25,D18075,PLANNED MAINTENANCE (SOUTH),RESIDENT SERVICES (HRA),STRATEGIC PROGRAMMES (HRA),HOUSING CAPITAL & ASSET MANAGEMENT,TECHNICAL SERVICES,CYCLICAL/PLANNED MAINTENANCE - MECHANICAL AND ELECTRICAL,07/02/2020,
OFH2021Q2.A000706,07/03/2020,MPS Housing Limited,CIS,21.25,D18075,PLANNED MAINTENANCE (SOUTH),RESIDENT SERVICES (HRA),STRATEGIC PROGRAMMES (HRA),HOUSING CAPITAL & ASSET MANAGEMENT,TECHNICAL SERVICES,CYCLICAL/PLANNED MAINTENANCE - MECHANICAL AND ELECTRICAL,07/02/2020,
OFH2021Q2.A000707,07/03/2020,MPS Housing Limited,CIS,21.25,D18075,PLANNED MAINTENANCE (SOUTH),RESIDENT SERVICES (HRA),STRATEGIC PROGRAMMES (HRA),HOUSING CAPITAL & ASSET MANAGEMENT,TECHNICAL SERVICES,CYCLICAL/PLANNED MAINTENANCE - MECHANICAL AND ELECTRICAL,07/02/2020,
OFH2021Q2.A000708,07/03/2020,MPS Housing Limited,CIS,21.25,D18075,PLANNED MAINTENANCE (SOUTH),RESIDENT SERVICES (HRA),STRATEGIC PROGRAMMES (HRA),HOUSING CAPITAL & ASSET MANAGEMENT,TECHNICAL SERVICES,CYCLICAL/PLANNED MAINTENANCE - MECHANICAL AND ELECTRICAL,07/02/2020,
OFH2021Q2.A000709,07/03/2020,MPS Housing Limited,CIS,21.25,D18075,PLANNED MAINTENANCE (SOUTH),RESIDENT SERVICES (HRA),STRATEGIC PROGRAMMES (HRA),HOUSING CAPITAL & ASSET MANAGEMENT,TECHNICAL SERVICES,CYCLICAL/PLANNED MAINTENANCE - MECHANICAL AND ELECTRICAL,07/02/2020,
OFH2021Q2.A000710,07/03/2020,MPS Housing Limited,CIS,21.25,D18075,PLANNED MAINTENANCE (SOUTH),RESIDENT SERVICES (HRA),STRATEGIC PROGRAMMES (HRA),HOUSING CAPITAL & ASSET MANAGEMENT,TECHNICAL SERVICES,CYCLICAL/PLANNED MAINTENANCE - MECHANICAL AND ELECTRICAL,07/02/2020,
OFH2021Q2.A000711,07/03/2020,MPS Housing Limited,CIS,21.25,D18075,PLANNED MAINTENANCE (SOUTH),RESIDENT SERVICES (HRA),STRATEGIC PROGRAMMES (HRA),HOUSING CAPITAL & ASSET MANAGEMENT,TECHNICAL SERVICES,CYCLICAL/PLANNED MAINTENANCE - MECHANICAL AND ELECTRICAL,07/02/2020,
OFH2021Q2.A000712,07/03/2020,MPS Housing Limited,CIS,21.25,D18075,PLANNED MAINTENANCE (SOUTH),RESIDENT SERVICES (HRA),STRATEGIC PROGRAMMES (HRA),HOUSING CAPITAL & ASSET MANAGEMENT,TECHNICAL SERVICES,CYCLICAL/PLANNED MAINTENANCE - MECHANICAL AND ELECTRICAL,07/02/2020,
OFH2021Q2.A000713,07/03/2020,MPS Housing Limited,CIS,21.25,D18075,PLANNED MAINTENANCE (SOUTH),RESIDENT SERVICES (HRA),STRATEGIC PROGRAMMES (HRA),HOUSING CAPITAL & ASSET MANAGEMENT,TECHNICAL SERVICES,CYCLICAL/PLANNED MAINTENANCE - MECHANICAL AND ELECTRICAL,07/02/2020,
OFH2021Q2.A000714,07/03/2020,MPS Housing Limited,CIS,21.25,D18075,PLANNED MAINTENANCE (SOUTH),RESIDENT SERVICES (HRA),STRATEGIC PROGRAMMES (HRA),HOUSING CAPITAL & ASSET MANAGEMENT,TECHNICAL SERVICES,CYCLICAL/PLANNED MAINTENANCE - MECHANICAL AND ELECTRICAL,07/02/2020,
OFH2021Q2.A000715,07/03/2020,MPS Housing Limited,CIS,21.25,D18075,PLANNED MAINTENANCE (SOUTH),RESIDENT SERVICES (HRA),STRATEGIC PROGRAMMES (HRA),HOUSING CAPITAL & ASSET MANAGEMENT,TECHNICAL SERVICES,CYCLICAL/PLANNED MAINTENANCE - MECHANICAL AND ELECTRICAL,07/02/2020,
OFH2021Q2.A000716,07/03/2020,MPS Housing Limited,CIS,21.25,D18075,PLANNED MAINTENANCE (SOUTH),RESIDENT SERVICES (HRA),STRATEGIC PROGRAMMES (HRA),HOUSING CAPITAL & ASSET MANAGEMENT,TECHNICAL SERVICES,CYCLICAL/PLANNED MAINTENANCE - MECHANICAL AND ELECTRICAL,07/02/2020,
OFH2021Q2.A000717,07/03/2020,MPS Housing Limited,CIS,21.25,D18075,PLANNED MAINTENANCE (SOUTH),RESIDENT SERVICES (HRA),STRATEGIC PROGRAMMES (HRA),HOUSING CAPITAL & ASSET MANAGEMENT,TECHNICAL SERVICES,CYCLICAL/PLANNED MAINTENANCE - MECHANICAL AND ELECTRICAL,07/02/2020,
OFH2021Q2.A000718,07/03/2020,MPS Housing Limited,CIS,21.25,D18075,PLANNED MAINTENANCE (SOUTH),RESIDENT SERVICES (HRA),STRATEGIC PROGRAMMES (HRA),HOUSING CAPITAL & ASSET MANAGEMENT,TECHNICAL SERVICES,CYCLICAL/PLANNED MAINTENANCE - MECHANICAL AND ELECTRICAL,07/02/2020,
OFH2021Q2.A000719,07/03/2020,MPS Housing Limited,CIS,21.25,D18075,PLANNED MAINTENANCE (SOUTH),RESIDENT SERVICES (HRA),STRATEGIC PROGRAMMES (HRA),HOUSING CAPITAL & ASSET MANAGEMENT,TECHNICAL SERVICES,CYCLICAL/PLANNED MAINTENANCE - MECHANICAL AND ELECTRICAL,07/02/2020,
OFH2021Q2.A000720,07/03/2020,MPS Housing Limited,CIS,21.25,D18075,PLANNED MAINTENANCE (SOUTH),RESIDENT SERVICES (HRA),STRATEGIC PROGRAMMES (HRA),HOUSING CAPITAL & ASSET MANAGEMENT,TECHNICAL SERVICES,CYCLICAL/PLANNED MAINTENANCE - MECHANICAL AND ELECTRICAL,07/02/2020,
OFH2021Q2.A000721,07/03/2020,MPS Housing Limited,CIS,21.25,D18075,PLANNED MAINTENANCE (SOUTH),RESIDENT SERVICES (HRA),STRATEGIC PROGRAMMES (HRA),HOUSING CAPITAL & ASSET MANAGEMENT,TECHNICAL SERVICES,CYCLICAL/PLANNED MAINTENANCE - MECHANICAL AND ELECTRICAL,07/02/2020,
OFH2021Q2.A000722,07/03/2020,MPS Housing Limited,CIS,21.25,D18075,PLANNED MAINTENANCE (SOUTH),RESIDENT SERVICES (HRA),STRATEGIC PROGRAMMES (HRA),HOUSING CAPITAL & ASSET MANAGEMENT,TECHNICAL SERVICES,CYCLICAL/PLANNED MAINTENANCE - MECHANICAL AND ELECTRICAL,07/02/2020,
OFH2021Q2.A000723,07/03/2020,MPS Housing Limited,CIS,30,D18075,PLANNED MAINTENANCE (SOUTH),RESIDENT SERVICES (HRA),STRATEGIC PROGRAMMES (HRA),HOUSING CAPITAL & ASSET MANAGEMENT,TECHNICAL SERVICES,CYCLICAL/PLANNED MAINTENANCE - MECHANICAL AND ELECTRICAL,07/02/2020,
OFH2021Q2.A000724,07/03/2020,MPS Housing Limited,CIS,30,D18075,PLANNED MAINTENANCE (SOUTH),RESIDENT SERVICES (HRA),STRATEGIC PROGRAMMES (HRA),HOUSING CAPITAL & ASSET MANAGEMENT,TECHNICAL SERVICES,CYCLICAL/PLANNED MAINTENANCE - MECHANICAL AND ELECTRICAL,07/02/2020,
OFH2021Q2.A000725,07/03/2020,MPS Housing Limited,CIS,30,D18075,PLANNED MAINTENANCE (SOUTH),RESIDENT SERVICES (HRA),STRATEGIC PROGRAMMES (HRA),HOUSING CAPITAL & ASSET MANAGEMENT,TECHNICAL SERVICES,CYCLICAL/PLANNED MAINTENANCE - MECHANICAL AND ELECTRICAL,07/02/2020,
OFH2021Q2.A000726,07/03/2020,MPS Housing Limited,CIS,30,D18075,PLANNED MAINTENANCE (SOUTH),RESIDENT SERVICES (HRA),STRATEGIC PROGRAMMES (HRA),HOUSING CAPITAL & ASSET MANAGEMENT,TECHNICAL SERVICES,CYCLICAL/PLANNED MAINTENANCE - MECHANICAL AND ELECTRICAL,07/02/2020,
OFH2021Q2.A000727,07/03/2020,MPS Housing Limited,CIS,30,D18075,PLANNED MAINTENANCE (SOUTH),RESIDENT SERVICES (HRA),STRATEGIC PROGRAMMES (HRA),HOUSING CAPITAL & ASSET MANAGEMENT,TECHNICAL SERVICES,CYCLICAL/PLANNED MAINTENANCE - MECHANICAL AND ELECTRICAL,07/02/2020,
OFH2021Q2.A000728,07/03/2020,MPS Housing Limited,CIS,30,D18075,PLANNED MAINTENANCE (SOUTH),RESIDENT SERVICES (HRA),STRATEGIC PROGRAMMES (HRA),HOUSING CAPITAL & ASSET MANAGEMENT,TECHNICAL SERVICES,CYCLICAL/PLANNED MAINTENANCE - MECHANICAL AND ELECTRICAL,07/02/2020,
OFH2021Q2.A000729,07/03/2020,MPS Housing Limited,CIS,30,D18075,PLANNED MAINTENANCE (SOUTH),RESIDENT SERVICES (HRA),STRATEGIC PROGRAMMES (HRA),HOUSING CAPITAL & ASSET MANAGEMENT,TECHNICAL SERVICES,CYCLICAL/PLANNED MAINTENANCE - MECHANICAL AND ELECTRICAL,07/02/2020,
OFH2021Q2.A000730,07/03/2020,MPS Housing Limited,CIS,30,D18075,PLANNED MAINTENANCE (SOUTH),RESIDENT SERVICES (HRA),STRATEGIC PROGRAMMES (HRA),HOUSING CAPITAL & ASSET MANAGEMENT,TECHNICAL SERVICES,CYCLICAL/PLANNED MAINTENANCE - MECHANICAL AND ELECTRICAL,07/02/2020,
OFH2021Q2.A000731,07/03/2020,MPS Housing Limited,CIS,30,D18075,PLANNED MAINTENANCE (SOUTH),RESIDENT SERVICES (HRA),STRATEGIC PROGRAMMES (HRA),HOUSING CAPITAL & ASSET MANAGEMENT,TECHNICAL SERVICES,CYCLICAL/PLANNED MAINTENANCE - MECHANICAL AND ELECTRICAL,07/02/2020,
OFH2021Q2.A000732,07/03/2020,MPS Housing Limited,CIS,30,D18075,PLANNED MAINTENANCE (SOUTH),RESIDENT SERVICES (HRA),STRATEGIC PROGRAMMES (HRA),HOUSING CAPITAL & ASSET MANAGEMENT,TECHNICAL SERVICES,CYCLICAL/PLANNED MAINTENANCE - MECHANICAL AND ELECTRICAL,07/02/2020,
OFH2021Q2.A000733,07/03/2020,MPS Housing Limited,CIS,30,D18075,PLANNED MAINTENANCE (SOUTH),RESIDENT SERVICES (HRA),STRATEGIC PROGRAMMES (HRA),HOUSING CAPITAL & ASSET MANAGEMENT,TECHNICAL SERVICES,CYCLICAL/PLANNED MAINTENANCE - MECHANICAL AND ELECTRICAL,07/02/2020,
OFH2021Q2.A000734,07/03/2020,MPS Housing Limited,CIS,30,D18075,PLANNED MAINTENANCE (SOUTH),RESIDENT SERVICES (HRA),STRATEGIC PROGRAMMES (HRA),HOUSING CAPITAL & ASSET MANAGEMENT,TECHNICAL SERVICES,CYCLICAL/PLANNED MAINTENANCE - MECHANICAL AND ELECTRICAL,07/02/2020,
OFH2021Q2.A000735,07/03/2020,MPS Housing Limited,CIS,30,D18075,PLANNED MAINTENANCE (SOUTH),RESIDENT SERVICES (HRA),STRATEGIC PROGRAMMES (HRA),HOUSING CAPITAL & ASSET MANAGEMENT,TECHNICAL SERVICES,CYCLICAL/PLANNED MAINTENANCE - MECHANICAL AND ELECTRICAL,07/02/2020,
OFH2021Q2.A000736,07/03/2020,MPS Housing Limited,CIS,30,D18075,PLANNED MAINTENANCE (SOUTH),RESIDENT SERVICES (HRA),STRATEGIC PROGRAMMES (HRA),HOUSING CAPITAL & ASSET MANAGEMENT,TECHNICAL SERVICES,CYCLICAL/PLANNED MAINTENANCE - MECHANICAL AND ELECTRICAL,07/02/2020,
OFH2021Q2.A000737,07/03/2020,MPS Housing Limited,CIS,30,D18075,PLANNED MAINTENANCE (SOUTH),RESIDENT SERVICES (HRA),STRATEGIC PROGRAMMES (HRA),HOUSING CAPITAL & ASSET MANAGEMENT,TECHNICAL SERVICES,CYCLICAL/PLANNED MAINTENANCE - MECHANICAL AND ELECTRICAL,07/02/2020,
OFH2021Q2.A000738,07/03/2020,MPS Housing Limited,CIS,30,D18075,PLANNED MAINTENANCE (SOUTH),RESIDENT SERVICES (HRA),STRATEGIC PROGRAMMES (HRA),HOUSING CAPITAL & ASSET MANAGEMENT,TECHNICAL SERVICES,CYCLICAL/PLANNED MAINTENANCE - MECHANICAL AND ELECTRICAL,07/02/2020,
OFH2021Q2.A000739,07/03/2020,MPS Housing Limited,CIS,30,D18075,PLANNED MAINTENANCE (SOUTH),RESIDENT SERVICES (HRA),STRATEGIC PROGRAMMES (HRA),HOUSING CAPITAL & ASSET MANAGEMENT,TECHNICAL SERVICES,CYCLICAL/PLANNED MAINTENANCE - MECHANICAL AND ELECTRICAL,07/02/2020,
OFH2021Q2.A000740,07/03/2020,MPS Housing Limited,CIS,30,D18075,PLANNED MAINTENANCE (SOUTH),RESIDENT SERVICES (HRA),STRATEGIC PROGRAMMES (HRA),HOUSING CAPITAL & ASSET MANAGEMENT,TECHNICAL SERVICES,CYCLICAL/PLANNED MAINTENANCE - MECHANICAL AND ELECTRICAL,07/02/2020,
OFH2021Q2.A000741,07/03/2020,MPS Housing Limited,CIS,30,D18075,PLANNED MAINTENANCE (SOUTH),RESIDENT SERVICES (HRA),STRATEGIC PROGRAMMES (HRA),HOUSING CAPITAL & ASSET MANAGEMENT,TECHNICAL SERVICES,CYCLICAL/PLANNED MAINTENANCE - MECHANICAL AND ELECTRICAL,07/02/2020,
OFH2021Q2.A000742,07/03/2020,MPS Housing Limited,CIS,30,D18075,PLANNED MAINTENANCE (SOUTH),RESIDENT SERVICES (HRA),STRATEGIC PROGRAMMES (HRA),HOUSING CAPITAL & ASSET MANAGEMENT,TECHNICAL SERVICES,CYCLICAL/PLANNED MAINTENANCE - MECHANICAL AND ELECTRICAL,07/02/2020,
OFH2021Q2.A000743,07/03/2020,MPS Housing Limited,CIS,30,D18075,PLANNED MAINTENANCE (SOUTH),RESIDENT SERVICES (HRA),STRATEGIC PROGRAMMES (HRA),HOUSING CAPITAL & ASSET MANAGEMENT,TECHNICAL SERVICES,CYCLICAL/PLANNED MAINTENANCE - MECHANICAL AND ELECTRICAL,07/02/2020,
OFH2021Q2.A000744,07/03/2020,MPS Housing Limited,CIS,30,D18075,PLANNED MAINTENANCE (SOUTH),RESIDENT SERVICES (HRA),STRATEGIC PROGRAMMES (HRA),HOUSING CAPITAL & ASSET MANAGEMENT,TECHNICAL SERVICES,CYCLICAL/PLANNED MAINTENANCE - MECHANICAL AND ELECTRICAL,07/02/2020,
OFH2021Q2.A000745,07/03/2020,MPS Housing Limited,CIS,30,D18075,PLANNED MAINTENANCE (SOUTH),RESIDENT SERVICES (HRA),STRATEGIC PROGRAMMES (HRA),HOUSING CAPITAL & ASSET MANAGEMENT,TECHNICAL SERVICES,CYCLICAL/PLANNED MAINTENANCE - MECHANICAL AND ELECTRICAL,07/02/2020,
OFH2021Q2.A000746,07/03/2020,MPS Housing Limited,CIS,30,D18075,PLANNED MAINTENANCE (SOUTH),RESIDENT SERVICES (HRA),STRATEGIC PROGRAMMES (HRA),HOUSING CAPITAL & ASSET MANAGEMENT,TECHNICAL SERVICES,CYCLICAL/PLANNED MAINTENANCE - MECHANICAL AND ELECTRICAL,07/02/2020,
OFH2021Q2.A000747,07/03/2020,MPS Housing Limited,CIS,30,D18075,PLANNED MAINTENANCE (SOUTH),RESIDENT SERVICES (HRA),STRATEGIC PROGRAMMES (HRA),HOUSING CAPITAL & ASSET MANAGEMENT,TECHNICAL SERVICES,CYCLICAL/PLANNED MAINTENANCE - MECHANICAL AND ELECTRICAL,07/02/2020,
OFH2021Q2.A000748,07/03/2020,MPS Housing Limited,CIS,30,D18075,PLANNED MAINTENANCE (SOUTH),RESIDENT SERVICES (HRA),STRATEGIC PROGRAMMES (HRA),HOUSING CAPITAL & ASSET MANAGEMENT,TECHNICAL SERVICES,CYCLICAL/PLANNED MAINTENANCE - MECHANICAL AND ELECTRICAL,07/02/2020,
OFH2021Q2.A000749,07/03/2020,MPS Housing Limited,CIS,30,D18075,PLANNED MAINTENANCE (SOUTH),RESIDENT SERVICES (HRA),STRATEGIC PROGRAMMES (HRA),HOUSING CAPITAL & ASSET MANAGEMENT,TECHNICAL SERVICES,CYCLICAL/PLANNED MAINTENANCE - MECHANICAL AND ELECTRICAL,07/02/2020,
OFH2021Q2.A000750,07/03/2020,MPS Housing Limited,CIS,30,D18075,PLANNED MAINTENANCE (SOUTH),RESIDENT SERVICES (HRA),STRATEGIC PROGRAMMES (HRA),HOUSING CAPITAL & ASSET MANAGEMENT,TECHNICAL SERVICES,CYCLICAL/PLANNED MAINTENANCE - MECHANICAL AND ELECTRICAL,07/02/2020,
OFH2021Q2.A000751,07/03/2020,MPS Housing Limited,CIS,30,D18075,PLANNED MAINTENANCE (SOUTH),RESIDENT SERVICES (HRA),STRATEGIC PROGRAMMES (HRA),HOUSING CAPITAL & ASSET MANAGEMENT,TECHNICAL SERVICES,CYCLICAL/PLANNED MAINTENANCE - MECHANICAL AND ELECTRICAL,07/02/2020,
OFH2021Q2.A000752,07/03/2020,MPS Housing Limited,CIS,30,D18075,PLANNED MAINTENANCE (SOUTH),RESIDENT SERVICES (HRA),STRATEGIC PROGRAMMES (HRA),HOUSING CAPITAL & ASSET MANAGEMENT,TECHNICAL SERVICES,CYCLICAL/PLANNED MAINTENANCE - MECHANICAL AND ELECTRICAL,07/02/2020,
OFH2021Q2.A000753,07/03/2020,MPS Housing Limited,CIS,30,D18075,PLANNED MAINTENANCE (SOUTH),RESIDENT SERVICES (HRA),STRATEGIC PROGRAMMES (HRA),HOUSING CAPITAL & ASSET MANAGEMENT,TECHNICAL SERVICES,CYCLICAL/PLANNED MAINTENANCE - MECHANICAL AND ELECTRICAL,07/02/2020,
OFH2021Q2.A000754,07/03/2020,MPS Housing Limited,CIS,30,D18075,PLANNED MAINTENANCE (SOUTH),RESIDENT SERVICES (HRA),STRATEGIC PROGRAMMES (HRA),HOUSING CAPITAL & ASSET MANAGEMENT,TECHNICAL SERVICES,CYCLICAL/PLANNED MAINTENANCE - MECHANICAL AND ELECTRICAL,07/02/2020,
OFH2021Q2.A000755,07/03/2020,MPS Housing Limited,CIS,30,D18075,PLANNED MAINTENANCE (SOUTH),RESIDENT SERVICES (HRA),STRATEGIC PROGRAMMES (HRA),HOUSING CAPITAL & ASSET MANAGEMENT,TECHNICAL SERVICES,CYCLICAL/PLANNED MAINTENANCE - MECHANICAL AND ELECTRICAL,07/02/2020,
OFH2021Q2.A000756,07/03/2020,MPS Housing Limited,CIS,30,D18075,PLANNED MAINTENANCE (SOUTH),RESIDENT SERVICES (HRA),STRATEGIC PROGRAMMES (HRA),HOUSING CAPITAL & ASSET MANAGEMENT,TECHNICAL SERVICES,CYCLICAL/PLANNED MAINTENANCE - MECHANICAL AND ELECTRICAL,07/02/2020,
OFH2021Q2.A000757,07/03/2020,MPS Housing Limited,CIS,30,D18075,PLANNED MAINTENANCE (SOUTH),RESIDENT SERVICES (HRA),STRATEGIC PROGRAMMES (HRA),HOUSING CAPITAL & ASSET MANAGEMENT,TECHNICAL SERVICES,CYCLICAL/PLANNED MAINTENANCE - MECHANICAL AND ELECTRICAL,07/02/2020,
OFH2021Q2.A000758,07/03/2020,MPS Housing Limited,CIS,30,D18075,PLANNED MAINTENANCE (SOUTH),RESIDENT SERVICES (HRA),STRATEGIC PROGRAMMES (HRA),HOUSING CAPITAL & ASSET MANAGEMENT,TECHNICAL SERVICES,CYCLICAL/PLANNED MAINTENANCE - MECHANICAL AND ELECTRICAL,07/02/2020,
OFH2021Q2.A000759,07/03/2020,MPS Housing Limited,CIS,30,D18075,PLANNED MAINTENANCE (SOUTH),RESIDENT SERVICES (HRA),STRATEGIC PROGRAMMES (HRA),HOUSING CAPITAL & ASSET MANAGEMENT,TECHNICAL SERVICES,CYCLICAL/PLANNED MAINTENANCE - MECHANICAL AND ELECTRICAL,07/02/2020,
OFH2021Q2.A000760,07/03/2020,MPS Housing Limited,CIS,30,D18075,PLANNED MAINTENANCE (SOUTH),RESIDENT SERVICES (HRA),STRATEGIC PROGRAMMES (HRA),HOUSING CAPITAL & ASSET MANAGEMENT,TECHNICAL SERVICES,CYCLICAL/PLANNED MAINTENANCE - MECHANICAL AND ELECTRICAL,07/02/2020,
OFH2021Q2.A000761,07/03/2020,MPS Housing Limited,CIS,30,D18075,PLANNED MAINTENANCE (SOUTH),RESIDENT SERVICES (HRA),STRATEGIC PROGRAMMES (HRA),HOUSING CAPITAL & ASSET MANAGEMENT,TECHNICAL SERVICES,CYCLICAL/PLANNED MAINTENANCE - MECHANICAL AND ELECTRICAL,07/02/2020,
OFH2021Q2.A000762,07/03/2020,MPS Housing Limited,CIS,30,D18075,PLANNED MAINTENANCE (SOUTH),RESIDENT SERVICES (HRA),STRATEGIC PROGRAMMES (HRA),HOUSING CAPITAL & ASSET MANAGEMENT,TECHNICAL SERVICES,CYCLICAL/PLANNED MAINTENANCE - MECHANICAL AND ELECTRICAL,07/02/2020,
OFH2021Q2.A000763,07/03/2020,MPS Housing Limited,CIS,30,D18075,PLANNED MAINTENANCE (SOUTH),RESIDENT SERVICES (HRA),STRATEGIC PROGRAMMES (HRA),HOUSING CAPITAL & ASSET MANAGEMENT,TECHNICAL SERVICES,CYCLICAL/PLANNED MAINTENANCE - MECHANICAL AND ELECTRICAL,07/02/2020,
OFH2021Q2.A000764,07/03/2020,MPS Housing Limited,CIS,30,D18075,PLANNED MAINTENANCE (SOUTH),RESIDENT SERVICES (HRA),STRATEGIC PROGRAMMES (HRA),HOUSING CAPITAL & ASSET MANAGEMENT,TECHNICAL SERVICES,CYCLICAL/PLANNED MAINTENANCE - MECHANICAL AND ELECTRICAL,07/02/2020,
OFH2021Q2.A000765,07/03/2020,MPS Housing Limited,CIS,34.25,D18075,PLANNED MAINTENANCE (SOUTH),RESIDENT SERVICES (HRA),STRATEGIC PROGRAMMES (HRA),HOUSING CAPITAL & ASSET MANAGEMENT,TECHNICAL SERVICES,CYCLICAL/PLANNED MAINTENANCE - MECHANICAL AND ELECTRICAL,07/02/2020,
OFH2021Q2.A000766,07/03/2020,MPS Housing Limited,CIS,34.25,D18075,PLANNED MAINTENANCE (SOUTH),RESIDENT SERVICES (HRA),STRATEGIC PROGRAMMES (HRA),HOUSING CAPITAL & ASSET MANAGEMENT,TECHNICAL SERVICES,CYCLICAL/PLANNED MAINTENANCE - MECHANICAL AND ELECTRICAL,07/02/2020,
OFH2021Q2.A000767,07/03/2020,MPS Housing Limited,CIS,34.25,D18075,PLANNED MAINTENANCE (SOUTH),RESIDENT SERVICES (HRA),STRATEGIC PROGRAMMES (HRA),HOUSING CAPITAL & ASSET MANAGEMENT,TECHNICAL SERVICES,CYCLICAL/PLANNED MAINTENANCE - MECHANICAL AND ELECTRICAL,07/02/2020,
OFH2021Q2.A000768,07/03/2020,MPS Housing Limited,CIS,34.25,D18075,PLANNED MAINTENANCE (SOUTH),RESIDENT SERVICES (HRA),STRATEGIC PROGRAMMES (HRA),HOUSING CAPITAL & ASSET MANAGEMENT,TECHNICAL SERVICES,CYCLICAL/PLANNED MAINTENANCE - MECHANICAL AND ELECTRICAL,07/02/2020,
OFH2021Q2.A000769,07/03/2020,MPS Housing Limited,CIS,34.25,D18075,PLANNED MAINTENANCE (SOUTH),RESIDENT SERVICES (HRA),STRATEGIC PROGRAMMES (HRA),HOUSING CAPITAL & ASSET MANAGEMENT,TECHNICAL SERVICES,CYCLICAL/PLANNED MAINTENANCE - MECHANICAL AND ELECTRICAL,07/02/2020,
OFH2021Q2.A000770,07/03/2020,MPS Housing Limited,CIS,34.25,D18075,PLANNED MAINTENANCE (SOUTH),RESIDENT SERVICES (HRA),STRATEGIC PROGRAMMES (HRA),HOUSING CAPITAL & ASSET MANAGEMENT,TECHNICAL SERVICES,CYCLICAL/PLANNED MAINTENANCE - MECHANICAL AND ELECTRICAL,07/02/2020,
OFH2021Q2.A000771,07/03/2020,MPS Housing Limited,CIS,34.25,D18075,PLANNED MAINTENANCE (SOUTH),RESIDENT SERVICES (HRA),STRATEGIC PROGRAMMES (HRA),HOUSING CAPITAL & ASSET MANAGEMENT,TECHNICAL SERVICES,RESPONSIVE REPAIRS - MECHANICAL AND ELECTRICAL,07/02/2020,
OFH2021Q2.A000772,07/03/2020,MPS Housing Limited,CIS,34.25,D18075,PLANNED MAINTENANCE (SOUTH),RESIDENT SERVICES (HRA),STRATEGIC PROGRAMMES (HRA),HOUSING CAPITAL & ASSET MANAGEMENT,TECHNICAL SERVICES,RESPONSIVE REPAIRS - MECHANICAL AND ELECTRICAL,07/02/2020,
OFH2021Q2.A000773,07/03/2020,MPS Housing Limited,CIS,34.25,D18075,PLANNED MAINTENANCE (SOUTH),RESIDENT SERVICES (HRA),STRATEGIC PROGRAMMES (HRA),HOUSING CAPITAL & ASSET MANAGEMENT,TECHNICAL SERVICES,RESPONSIVE REPAIRS - MECHANICAL AND ELECTRICAL,07/02/2020,
OFH2021Q2.A000774,07/03/2020,MPS Housing Limited,CIS,34.25,D18075,PLANNED MAINTENANCE (SOUTH),RESIDENT SERVICES (HRA),STRATEGIC PROGRAMMES (HRA),HOUSING CAPITAL & ASSET MANAGEMENT,TECHNICAL SERVICES,RESPONSIVE REPAIRS - MECHANICAL AND ELECTRICAL,07/02/2020,
OFH2021Q2.A000775,07/03/2020,MPS Housing Limited,CIS,34.25,D18075,PLANNED MAINTENANCE (SOUTH),RESIDENT SERVICES (HRA),STRATEGIC PROGRAMMES (HRA),HOUSING CAPITAL & ASSET MANAGEMENT,TECHNICAL SERVICES,RESPONSIVE REPAIRS - MECHANICAL AND ELECTRICAL,07/02/2020,
OFH2021Q2.A000776,07/03/2020,MPS Housing Limited,CIS,34.25,D18075,PLANNED MAINTENANCE (SOUTH),RESIDENT SERVICES (HRA),STRATEGIC PROGRAMMES (HRA),HOUSING CAPITAL & ASSET MANAGEMENT,TECHNICAL SERVICES,RESPONSIVE REPAIRS - MECHANICAL AND ELECTRICAL,07/02/2020,
OFH2021Q2.A000777,07/03/2020,MPS Housing Limited,CIS,34.25,D18075,PLANNED MAINTENANCE (SOUTH),RESIDENT SERVICES (HRA),STRATEGIC PROGRAMMES (HRA),HOUSING CAPITAL & ASSET MANAGEMENT,TECHNICAL SERVICES,RESPONSIVE REPAIRS - MECHANICAL AND ELECTRICAL,07/02/2020,
OFH2021Q2.A000778,07/03/2020,MPS Housing Limited,CIS,34.25,D18075,PLANNED MAINTENANCE (SOUTH),RESIDENT SERVICES (HRA),STRATEGIC PROGRAMMES (HRA),HOUSING CAPITAL & ASSET MANAGEMENT,TECHNICAL SERVICES,RESPONSIVE REPAIRS - MECHANICAL AND ELECTRICAL,07/02/2020,
OFH2021Q2.A000779,07/03/2020,MPS Housing Limited,CIS,34.25,D18075,PLANNED MAINTENANCE (SOUTH),RESIDENT SERVICES (HRA),STRATEGIC PROGRAMMES (HRA),HOUSING CAPITAL & ASSET MANAGEMENT,TECHNICAL SERVICES,RESPONSIVE REPAIRS - MECHANICAL AND ELECTRICAL,07/02/2020,
OFH2021Q2.A000780,07/03/2020,MPS Housing Limited,CIS,34.25,D18075,PLANNED MAINTENANCE (SOUTH),RESIDENT SERVICES (HRA),STRATEGIC PROGRAMMES (HRA),HOUSING CAPITAL & ASSET MANAGEMENT,TECHNICAL SERVICES,RESPONSIVE REPAIRS - MECHANICAL AND ELECTRICAL,07/02/2020,
OFH2021Q2.A000781,07/03/2020,MPS Housing Limited,CIS,34.25,D18075,PLANNED MAINTENANCE (SOUTH),RESIDENT SERVICES (HRA),STRATEGIC PROGRAMMES (HRA),HOUSING CAPITAL & ASSET MANAGEMENT,TECHNICAL SERVICES,RESPONSIVE REPAIRS - MECHANICAL AND ELECTRICAL,07/02/2020,
OFH2021Q2.A000782,07/03/2020,MPS Housing Limited,CIS,34.25,D18075,PLANNED MAINTENANCE (SOUTH),RESIDENT SERVICES (HRA),STRATEGIC PROGRAMMES (HRA),HOUSING CAPITAL & ASSET MANAGEMENT,TECHNICAL SERVICES,RESPONSIVE REPAIRS - MECHANICAL AND ELECTRICAL,07/02/2020,
OFH2021Q2.A000783,07/03/2020,MPS Housing Limited,CIS,34.25,D18075,PLANNED MAINTENANCE (SOUTH),RESIDENT SERVICES (HRA),STRATEGIC PROGRAMMES (HRA),HOUSING CAPITAL & ASSET MANAGEMENT,TECHNICAL SERVICES,RESPONSIVE REPAIRS - MECHANICAL AND ELECTRICAL,07/02/2020,
OFH2021Q2.A000784,07/03/2020,MPS Housing Limited,CIS,34.25,D18075,PLANNED MAINTENANCE (SOUTH),RESIDENT SERVICES (HRA),STRATEGIC PROGRAMMES (HRA),HOUSING CAPITAL & ASSET MANAGEMENT,TECHNICAL SERVICES,RESPONSIVE REPAIRS - MECHANICAL AND ELECTRICAL,07/02/2020,
OFH2021Q2.A000785,07/03/2020,MPS Housing Limited,CIS,34.25,D18075,PLANNED MAINTENANCE (SOUTH),RESIDENT SERVICES (HRA),STRATEGIC PROGRAMMES (HRA),HOUSING CAPITAL & ASSET MANAGEMENT,TECHNICAL SERVICES,RESPONSIVE REPAIRS - MECHANICAL AND ELECTRICAL,07/02/2020,
OFH2021Q2.A000786,07/03/2020,MPS Housing Limited,CIS,34.25,D18075,PLANNED MAINTENANCE (SOUTH),RESIDENT SERVICES (HRA),STRATEGIC PROGRAMMES (HRA),HOUSING CAPITAL & ASSET MANAGEMENT,TECHNICAL SERVICES,CYCLICAL/PLANNED MAINTENANCE - MECHANICAL AND ELECTRICAL,07/02/2020,
OFH2021Q2.A000787,07/03/2020,MPS Housing Limited,CIS,34.25,D18075,PLANNED MAINTENANCE (SOUTH),RESIDENT SERVICES (HRA),STRATEGIC PROGRAMMES (HRA),HOUSING CAPITAL & ASSET MANAGEMENT,TECHNICAL SERVICES,CYCLICAL/PLANNED MAINTENANCE - MECHANICAL AND ELECTRICAL,07/02/2020,
OFH2021Q2.A000788,07/03/2020,MPS Housing Limited,CIS,34.25,D18075,PLANNED MAINTENANCE (SOUTH),RESIDENT SERVICES (HRA),STRATEGIC PROGRAMMES (HRA),HOUSING CAPITAL & ASSET MANAGEMENT,TECHNICAL SERVICES,CYCLICAL/PLANNED MAINTENANCE - MECHANICAL AND ELECTRICAL,07/02/2020,
OFH2021Q2.A000789,07/03/2020,MPS Housing Limited,CIS,34.25,D18075,PLANNED MAINTENANCE (SOUTH),RESIDENT SERVICES (HRA),STRATEGIC PROGRAMMES (HRA),HOUSING CAPITAL & ASSET MANAGEMENT,TECHNICAL SERVICES,CYCLICAL/PLANNED MAINTENANCE - MECHANICAL AND ELECTRICAL,07/02/2020,
OFH2021Q2.A000790,07/03/2020,MPS Housing Limited,CIS,34.25,D18075,PLANNED MAINTENANCE (SOUTH),RESIDENT SERVICES (HRA),STRATEGIC PROGRAMMES (HRA),HOUSING CAPITAL & ASSET MANAGEMENT,TECHNICAL SERVICES,CYCLICAL/PLANNED MAINTENANCE - MECHANICAL AND ELECTRICAL,07/02/2020,
OFH2021Q2.A000791,07/03/2020,MPS Housing Limited,CIS,34.25,D18075,PLANNED MAINTENANCE (SOUTH),RESIDENT SERVICES (HRA),STRATEGIC PROGRAMMES (HRA),HOUSING CAPITAL & ASSET MANAGEMENT,TECHNICAL SERVICES,CYCLICAL/PLANNED MAINTENANCE - MECHANICAL AND ELECTRICAL,07/02/2020,
OFH2021Q2.A000792,07/03/2020,MPS Housing Limited,CIS,34.25,D18075,PLANNED MAINTENANCE (SOUTH),RESIDENT SERVICES (HRA),STRATEGIC PROGRAMMES (HRA),HOUSING CAPITAL & ASSET MANAGEMENT,TECHNICAL SERVICES,CYCLICAL/PLANNED MAINTENANCE - MECHANICAL AND ELECTRICAL,07/02/2020,
OFH2021Q2.A000793,07/03/2020,MPS Housing Limited,CIS,34.25,D18075,PLANNED MAINTENANCE (SOUTH),RESIDENT SERVICES (HRA),STRATEGIC PROGRAMMES (HRA),HOUSING CAPITAL & ASSET MANAGEMENT,TECHNICAL SERVICES,CYCLICAL/PLANNED MAINTENANCE - MECHANICAL AND ELECTRICAL,07/02/2020,
OFH2021Q2.A000794,07/03/2020,MPS Housing Limited,CIS,34.25,D18075,PLANNED MAINTENANCE (SOUTH),RESIDENT SERVICES (HRA),STRATEGIC PROGRAMMES (HRA),HOUSING CAPITAL & ASSET MANAGEMENT,TECHNICAL SERVICES,CYCLICAL/PLANNED MAINTENANCE - MECHANICAL AND ELECTRICAL,07/02/2020,
OFH2021Q2.A000795,07/03/2020,MPS Housing Limited,CIS,34.25,D18075,PLANNED MAINTENANCE (SOUTH),RESIDENT SERVICES (HRA),STRATEGIC PROGRAMMES (HRA),HOUSING CAPITAL & ASSET MANAGEMENT,TECHNICAL SERVICES,CYCLICAL/PLANNED MAINTENANCE - MECHANICAL AND ELECTRICAL,07/02/2020,
OFH2021Q2.A000796,07/03/2020,MPS Housing Limited,CIS,34.25,D18075,PLANNED MAINTENANCE (SOUTH),RESIDENT SERVICES (HRA),STRATEGIC PROGRAMMES (HRA),HOUSING CAPITAL & ASSET MANAGEMENT,TECHNICAL SERVICES,CYCLICAL/PLANNED MAINTENANCE - MECHANICAL AND ELECTRICAL,07/02/2020,
OFH2021Q2.A000797,07/03/2020,MPS Housing Limited,CIS,34.25,D18075,PLANNED MAINTENANCE (SOUTH),RESIDENT SERVICES (HRA),STRATEGIC PROGRAMMES (HRA),HOUSING CAPITAL & ASSET MANAGEMENT,TECHNICAL SERVICES,CYCLICAL/PLANNED MAINTENANCE - MECHANICAL AND ELECTRICAL,07/02/2020,
OFH2021Q2.A000798,07/03/2020,MPS Housing Limited,CIS,34.25,D18075,PLANNED MAINTENANCE (SOUTH),RESIDENT SERVICES (HRA),STRATEGIC PROGRAMMES (HRA),HOUSING CAPITAL & ASSET MANAGEMENT,TECHNICAL SERVICES,CYCLICAL/PLANNED MAINTENANCE - MECHANICAL AND ELECTRICAL,07/02/2020,
OFH2021Q2.A000799,07/03/2020,MPS Housing Limited,CIS,34.25,D18075,PLANNED MAINTENANCE (SOUTH),RESIDENT SERVICES (HRA),STRATEGIC PROGRAMMES (HRA),HOUSING CAPITAL & ASSET MANAGEMENT,TECHNICAL SERVICES,CYCLICAL/PLANNED MAINTENANCE - MECHANICAL AND ELECTRICAL,07/02/2020,
OFH2021Q2.A000800,07/03/2020,MPS Housing Limited,CIS,34.25,D18075,PLANNED MAINTENANCE (SOUTH),RESIDENT SERVICES (HRA),STRATEGIC PROGRAMMES (HRA),HOUSING CAPITAL & ASSET MANAGEMENT,TECHNICAL SERVICES,CYCLICAL/PLANNED MAINTENANCE - MECHANICAL AND ELECTRICAL,07/02/2020,
OFH2021Q2.A000801,07/03/2020,MPS Housing Limited,CIS,34.25,D18075,PLANNED MAINTENANCE (SOUTH),RESIDENT SERVICES (HRA),STRATEGIC PROGRAMMES (HRA),HOUSING CAPITAL & ASSET MANAGEMENT,TECHNICAL SERVICES,RESPONSIVE REPAIRS - MECHANICAL AND ELECTRICAL,07/02/2020,
OFH2021Q2.A000802,07/03/2020,MPS Housing Limited,CIS,34.25,D18075,PLANNED MAINTENANCE (SOUTH),RESIDENT SERVICES (HRA),STRATEGIC PROGRAMMES (HRA),HOUSING CAPITAL & ASSET MANAGEMENT,TECHNICAL SERVICES,RESPONSIVE REPAIRS - MECHANICAL AND ELECTRICAL,07/02/2020,
OFH2021Q2.A000803,07/03/2020,MPS Housing Limited,CIS,34.25,D18075,PLANNED MAINTENANCE (SOUTH),RESIDENT SERVICES (HRA),STRATEGIC PROGRAMMES (HRA),HOUSING CAPITAL & ASSET MANAGEMENT,TECHNICAL SERVICES,RESPONSIVE REPAIRS - MECHANICAL AND ELECTRICAL,07/02/2020,
OFH2021Q2.A000804,07/03/2020,MPS Housing Limited,CIS,34.25,D18075,PLANNED MAINTENANCE (SOUTH),RESIDENT SERVICES (HRA),STRATEGIC PROGRAMMES (HRA),HOUSING CAPITAL & ASSET MANAGEMENT,TECHNICAL SERVICES,RESPONSIVE REPAIRS - MECHANICAL AND ELECTRICAL,07/02/2020,
OFH2021Q2.A000805,07/03/2020,MPS Housing Limited,CIS,34.25,D18075,PLANNED MAINTENANCE (SOUTH),RESIDENT SERVICES (HRA),STRATEGIC PROGRAMMES (HRA),HOUSING CAPITAL & ASSET MANAGEMENT,TECHNICAL SERVICES,RESPONSIVE REPAIRS - MECHANICAL AND ELECTRICAL,07/02/2020,
OFH2021Q2.A000806,07/03/2020,MPS Housing Limited,CIS,48.24,D18075,PLANNED MAINTENANCE (SOUTH),RESIDENT SERVICES (HRA),STRATEGIC PROGRAMMES (HRA),HOUSING CAPITAL & ASSET MANAGEMENT,TECHNICAL SERVICES,CYCLICAL/PLANNED MAINTENANCE - MECHANICAL AND ELECTRICAL,07/02/2020,
OFH2021Q2.A000807,07/03/2020,MPS Housing Limited,CIS,48.24,D18075,PLANNED MAINTENANCE (SOUTH),RESIDENT SERVICES (HRA),STRATEGIC PROGRAMMES (HRA),HOUSING CAPITAL & ASSET MANAGEMENT,TECHNICAL SERVICES,CYCLICAL/PLANNED MAINTENANCE - MECHANICAL AND ELECTRICAL,07/02/2020,
OFH2021Q2.A000808,07/03/2020,MPS Housing Limited,CIS,48.72,D18075,PLANNED MAINTENANCE (SOUTH),RESIDENT SERVICES (HRA),STRATEGIC PROGRAMMES (HRA),HOUSING CAPITAL & ASSET MANAGEMENT,TECHNICAL SERVICES,RESPONSIVE REPAIRS - MECHANICAL AND ELECTRICAL,07/02/2020,
OFH2021Q2.A000809,07/03/2020,MPS Housing Limited,CIS,49.66,D18075,PLANNED MAINTENANCE (SOUTH),RESIDENT SERVICES (HRA),STRATEGIC PROGRAMMES (HRA),HOUSING CAPITAL & ASSET MANAGEMENT,TECHNICAL SERVICES,RESPONSIVE REPAIRS - MECHANICAL AND ELECTRICAL,07/02/2020,
OFH2021Q2.A000810,07/03/2020,MPS Housing Limited,CIS,50,D18075,PLANNED MAINTENANCE (SOUTH),RESIDENT SERVICES (HRA),STRATEGIC PROGRAMMES (HRA),HOUSING CAPITAL & ASSET MANAGEMENT,TECHNICAL SERVICES,RESPONSIVE REPAIRS - MECHANICAL AND ELECTRICAL,07/02/2020,
OFH2021Q2.A000811,07/03/2020,MPS Housing Limited,CIS,67.35,D18075,PLANNED MAINTENANCE (SOUTH),RESIDENT SERVICES (HRA),STRATEGIC PROGRAMMES (HRA),HOUSING CAPITAL & ASSET MANAGEMENT,TECHNICAL SERVICES,CYCLICAL/PLANNED MAINTENANCE - MECHANICAL AND ELECTRICAL,07/02/2020,
OFH2021Q2.A000812,07/03/2020,MPS Housing Limited,CIS,67.35,D18075,PLANNED MAINTENANCE (SOUTH),RESIDENT SERVICES (HRA),STRATEGIC PROGRAMMES (HRA),HOUSING CAPITAL & ASSET MANAGEMENT,TECHNICAL SERVICES,CYCLICAL/PLANNED MAINTENANCE - MECHANICAL AND ELECTRICAL,07/02/2020,
OFH2021Q2.A000813,07/03/2020,MPS Housing Limited,CIS,67.35,D18075,PLANNED MAINTENANCE (SOUTH),RESIDENT SERVICES (HRA),STRATEGIC PROGRAMMES (HRA),HOUSING CAPITAL & ASSET MANAGEMENT,TECHNICAL SERVICES,CYCLICAL/PLANNED MAINTENANCE - MECHANICAL AND ELECTRICAL,07/02/2020,
OFH2021Q2.A000814,07/03/2020,MPS Housing Limited,CIS,88,D18075,PLANNED MAINTENANCE (SOUTH),RESIDENT SERVICES (HRA),STRATEGIC PROGRAMMES (HRA),HOUSING CAPITAL & ASSET MANAGEMENT,TECHNICAL SERVICES,CYCLICAL/PLANNED MAINTENANCE - MECHANICAL AND ELECTRICAL,07/02/2020,
OFH2021Q2.A000815,07/03/2020,MPS Housing Limited,CIS,88,D18075,PLANNED MAINTENANCE (SOUTH),RESIDENT SERVICES (HRA),STRATEGIC PROGRAMMES (HRA),HOUSING CAPITAL & ASSET MANAGEMENT,TECHNICAL SERVICES,CYCLICAL/PLANNED MAINTENANCE - MECHANICAL AND ELECTRICAL,07/02/2020,
OFH2021Q2.A000816,07/03/2020,MPS Housing Limited,CIS,88,D18075,PLANNED MAINTENANCE (SOUTH),RESIDENT SERVICES (HRA),STRATEGIC PROGRAMMES (HRA),HOUSING CAPITAL & ASSET MANAGEMENT,TECHNICAL SERVICES,CYCLICAL/PLANNED MAINTENANCE - MECHANICAL AND ELECTRICAL,07/02/2020,
OFH2021Q2.A000817,07/03/2020,MPS Housing Limited,CIS,88,D18075,PLANNED MAINTENANCE (SOUTH),RESIDENT SERVICES (HRA),STRATEGIC PROGRAMMES (HRA),HOUSING CAPITAL & ASSET MANAGEMENT,TECHNICAL SERVICES,CYCLICAL/PLANNED MAINTENANCE - MECHANICAL AND ELECTRICAL,07/02/2020,
OFH2021Q2.A000818,07/03/2020,MPS Housing Limited,CIS,88,D18075,PLANNED MAINTENANCE (SOUTH),RESIDENT SERVICES (HRA),STRATEGIC PROGRAMMES (HRA),HOUSING CAPITAL & ASSET MANAGEMENT,TECHNICAL SERVICES,CYCLICAL/PLANNED MAINTENANCE - MECHANICAL AND ELECTRICAL,07/02/2020,
OFH2021Q2.A000819,07/03/2020,MPS Housing Limited,CIS,88,D18075,PLANNED MAINTENANCE (SOUTH),RESIDENT SERVICES (HRA),STRATEGIC PROGRAMMES (HRA),HOUSING CAPITAL & ASSET MANAGEMENT,TECHNICAL SERVICES,CYCLICAL/PLANNED MAINTENANCE - MECHANICAL AND ELECTRICAL,07/02/2020,
OFH2021Q2.A000820,07/03/2020,MPS Housing Limited,CIS,88,D18075,PLANNED MAINTENANCE (SOUTH),RESIDENT SERVICES (HRA),STRATEGIC PROGRAMMES (HRA),HOUSING CAPITAL & ASSET MANAGEMENT,TECHNICAL SERVICES,CYCLICAL/PLANNED MAINTENANCE - MECHANICAL AND ELECTRICAL,07/02/2020,
OFH2021Q2.A000821,07/03/2020,MPS Housing Limited,CIS,88,D18075,PLANNED MAINTENANCE (SOUTH),RESIDENT SERVICES (HRA),STRATEGIC PROGRAMMES (HRA),HOUSING CAPITAL & ASSET MANAGEMENT,TECHNICAL SERVICES,CYCLICAL/PLANNED MAINTENANCE - MECHANICAL AND ELECTRICAL,07/02/2020,
OFH2021Q2.A000822,07/03/2020,MPS Housing Limited,CIS,88,D18075,PLANNED MAINTENANCE (SOUTH),RESIDENT SERVICES (HRA),STRATEGIC PROGRAMMES (HRA),HOUSING CAPITAL & ASSET MANAGEMENT,TECHNICAL SERVICES,CYCLICAL/PLANNED MAINTENANCE - MECHANICAL AND ELECTRICAL,07/02/2020,
OFH2021Q2.A000823,07/03/2020,MPS Housing Limited,CIS,88,D18075,PLANNED MAINTENANCE (SOUTH),RESIDENT SERVICES (HRA),STRATEGIC PROGRAMMES (HRA),HOUSING CAPITAL & ASSET MANAGEMENT,TECHNICAL SERVICES,CYCLICAL/PLANNED MAINTENANCE - MECHANICAL AND ELECTRICAL,07/02/2020,
OFH2021Q2.A000824,07/03/2020,MPS Housing Limited,CIS,88,D18075,PLANNED MAINTENANCE (SOUTH),RESIDENT SERVICES (HRA),STRATEGIC PROGRAMMES (HRA),HOUSING CAPITAL & ASSET MANAGEMENT,TECHNICAL SERVICES,CYCLICAL/PLANNED MAINTENANCE - MECHANICAL AND ELECTRICAL,07/02/2020,
OFH2021Q2.A000825,07/03/2020,MPS Housing Limited,CIS,88,D18075,PLANNED MAINTENANCE (SOUTH),RESIDENT SERVICES (HRA),STRATEGIC PROGRAMMES (HRA),HOUSING CAPITAL & ASSET MANAGEMENT,TECHNICAL SERVICES,CYCLICAL/PLANNED MAINTENANCE - MECHANICAL AND ELECTRICAL,07/02/2020,
OFH2021Q2.A000826,07/03/2020,MPS Housing Limited,CIS,88,D18075,PLANNED MAINTENANCE (SOUTH),RESIDENT SERVICES (HRA),STRATEGIC PROGRAMMES (HRA),HOUSING CAPITAL & ASSET MANAGEMENT,TECHNICAL SERVICES,CYCLICAL/PLANNED MAINTENANCE - MECHANICAL AND ELECTRICAL,07/02/2020,
OFH2021Q2.A000827,07/03/2020,MPS Housing Limited,CIS,88,D18075,PLANNED MAINTENANCE (SOUTH),RESIDENT SERVICES (HRA),STRATEGIC PROGRAMMES (HRA),HOUSING CAPITAL & ASSET MANAGEMENT,TECHNICAL SERVICES,CYCLICAL/PLANNED MAINTENANCE - MECHANICAL AND ELECTRICAL,07/02/2020,
OFH2021Q2.A000828,07/03/2020,MPS Housing Limited,CIS,88,D18075,PLANNED MAINTENANCE (SOUTH),RESIDENT SERVICES (HRA),STRATEGIC PROGRAMMES (HRA),HOUSING CAPITAL & ASSET MANAGEMENT,TECHNICAL SERVICES,CYCLICAL/PLANNED MAINTENANCE - MECHANICAL AND ELECTRICAL,07/02/2020,
OFH2021Q2.A000829,07/03/2020,MPS Housing Limited,CIS,88,D18075,PLANNED MAINTENANCE (SOUTH),RESIDENT SERVICES (HRA),STRATEGIC PROGRAMMES (HRA),HOUSING CAPITAL & ASSET MANAGEMENT,TECHNICAL SERVICES,CYCLICAL/PLANNED MAINTENANCE - MECHANICAL AND ELECTRICAL,07/02/2020,
OFH2021Q2.A000830,07/03/2020,MPS Housing Limited,CIS,88,D18075,PLANNED MAINTENANCE (SOUTH),RESIDENT SERVICES (HRA),STRATEGIC PROGRAMMES (HRA),HOUSING CAPITAL & ASSET MANAGEMENT,TECHNICAL SERVICES,CYCLICAL/PLANNED MAINTENANCE - MECHANICAL AND ELECTRICAL,07/02/2020,
OFH2021Q2.A000831,07/03/2020,MPS Housing Limited,CIS,88,D18075,PLANNED MAINTENANCE (SOUTH),RESIDENT SERVICES (HRA),STRATEGIC PROGRAMMES (HRA),HOUSING CAPITAL & ASSET MANAGEMENT,TECHNICAL SERVICES,CYCLICAL/PLANNED MAINTENANCE - MECHANICAL AND ELECTRICAL,07/02/2020,
OFH2021Q2.A000832,07/03/2020,MPS Housing Limited,CIS,88,D18075,PLANNED MAINTENANCE (SOUTH),RESIDENT SERVICES (HRA),STRATEGIC PROGRAMMES (HRA),HOUSING CAPITAL & ASSET MANAGEMENT,TECHNICAL SERVICES,CYCLICAL/PLANNED MAINTENANCE - MECHANICAL AND ELECTRICAL,07/02/2020,
OFH2021Q2.A000833,07/03/2020,MPS Housing Limited,CIS,88,D18075,PLANNED MAINTENANCE (SOUTH),RESIDENT SERVICES (HRA),STRATEGIC PROGRAMMES (HRA),HOUSING CAPITAL & ASSET MANAGEMENT,TECHNICAL SERVICES,CYCLICAL/PLANNED MAINTENANCE - MECHANICAL AND ELECTRICAL,07/02/2020,
OFH2021Q2.A000834,07/03/2020,MPS Housing Limited,CIS,88,D18075,PLANNED MAINTENANCE (SOUTH),RESIDENT SERVICES (HRA),STRATEGIC PROGRAMMES (HRA),HOUSING CAPITAL & ASSET MANAGEMENT,TECHNICAL SERVICES,CYCLICAL/PLANNED MAINTENANCE - MECHANICAL AND ELECTRICAL,07/02/2020,
OFH2021Q2.A000835,07/03/2020,MPS Housing Limited,CIS,88,D18075,PLANNED MAINTENANCE (SOUTH),RESIDENT SERVICES (HRA),STRATEGIC PROGRAMMES (HRA),HOUSING CAPITAL & ASSET MANAGEMENT,TECHNICAL SERVICES,CYCLICAL/PLANNED MAINTENANCE - MECHANICAL AND ELECTRICAL,07/02/2020,
OFH2021Q2.A000836,07/03/2020,MPS Housing Limited,CIS,88,D18075,PLANNED MAINTENANCE (SOUTH),RESIDENT SERVICES (HRA),STRATEGIC PROGRAMMES (HRA),HOUSING CAPITAL & ASSET MANAGEMENT,TECHNICAL SERVICES,CYCLICAL/PLANNED MAINTENANCE - MECHANICAL AND ELECTRICAL,07/02/2020,
OFH2021Q2.A000837,07/03/2020,MPS Housing Limited,CIS,88,D18075,PLANNED MAINTENANCE (SOUTH),RESIDENT SERVICES (HRA),STRATEGIC PROGRAMMES (HRA),HOUSING CAPITAL & ASSET MANAGEMENT,TECHNICAL SERVICES,CYCLICAL/PLANNED MAINTENANCE - MECHANICAL AND ELECTRICAL,07/02/2020,
OFH2021Q2.A000838,07/03/2020,MPS Housing Limited,CIS,88,D18075,PLANNED MAINTENANCE (SOUTH),RESIDENT SERVICES (HRA),STRATEGIC PROGRAMMES (HRA),HOUSING CAPITAL & ASSET MANAGEMENT,TECHNICAL SERVICES,CYCLICAL/PLANNED MAINTENANCE - MECHANICAL AND ELECTRICAL,07/02/2020,
OFH2021Q2.A000839,07/03/2020,MPS Housing Limited,CIS,88,D18075,PLANNED MAINTENANCE (SOUTH),RESIDENT SERVICES (HRA),STRATEGIC PROGRAMMES (HRA),HOUSING CAPITAL & ASSET MANAGEMENT,TECHNICAL SERVICES,CYCLICAL/PLANNED MAINTENANCE - MECHANICAL AND ELECTRICAL,07/02/2020,
OFH2021Q2.A000840,07/03/2020,MPS Housing Limited,CIS,88,D18075,PLANNED MAINTENANCE (SOUTH),RESIDENT SERVICES (HRA),STRATEGIC PROGRAMMES (HRA),HOUSING CAPITAL & ASSET MANAGEMENT,TECHNICAL SERVICES,CYCLICAL/PLANNED MAINTENANCE - MECHANICAL AND ELECTRICAL,07/02/2020,
OFH2021Q2.A000841,07/03/2020,MPS Housing Limited,CIS,88,D18075,PLANNED MAINTENANCE (SOUTH),RESIDENT SERVICES (HRA),STRATEGIC PROGRAMMES (HRA),HOUSING CAPITAL & ASSET MANAGEMENT,TECHNICAL SERVICES,CYCLICAL/PLANNED MAINTENANCE - MECHANICAL AND ELECTRICAL,07/02/2020,
OFH2021Q2.A000842,07/03/2020,MPS Housing Limited,CIS,88,D18075,PLANNED MAINTENANCE (SOUTH),RESIDENT SERVICES (HRA),STRATEGIC PROGRAMMES (HRA),HOUSING CAPITAL & ASSET MANAGEMENT,TECHNICAL SERVICES,CYCLICAL/PLANNED MAINTENANCE - MECHANICAL AND ELECTRICAL,07/02/2020,
OFH2021Q2.A000843,07/03/2020,MPS Housing Limited,CIS,88,D18075,PLANNED MAINTENANCE (SOUTH),RESIDENT SERVICES (HRA),STRATEGIC PROGRAMMES (HRA),HOUSING CAPITAL & ASSET MANAGEMENT,TECHNICAL SERVICES,CYCLICAL/PLANNED MAINTENANCE - MECHANICAL AND ELECTRICAL,07/02/2020,
OFH2021Q2.A000844,07/03/2020,MPS Housing Limited,CIS,88,D18075,PLANNED MAINTENANCE (SOUTH),RESIDENT SERVICES (HRA),STRATEGIC PROGRAMMES (HRA),HOUSING CAPITAL & ASSET MANAGEMENT,TECHNICAL SERVICES,CYCLICAL/PLANNED MAINTENANCE - MECHANICAL AND ELECTRICAL,07/02/2020,
OFH2021Q2.A000845,07/03/2020,MPS Housing Limited,CIS,88,D18075,PLANNED MAINTENANCE (SOUTH),RESIDENT SERVICES (HRA),STRATEGIC PROGRAMMES (HRA),HOUSING CAPITAL & ASSET MANAGEMENT,TECHNICAL SERVICES,CYCLICAL/PLANNED MAINTENANCE - MECHANICAL AND ELECTRICAL,07/02/2020,
OFH2021Q2.A000846,07/03/2020,MPS Housing Limited,CIS,88,D18075,PLANNED MAINTENANCE (SOUTH),RESIDENT SERVICES (HRA),STRATEGIC PROGRAMMES (HRA),HOUSING CAPITAL & ASSET MANAGEMENT,TECHNICAL SERVICES,CYCLICAL/PLANNED MAINTENANCE - MECHANICAL AND ELECTRICAL,07/02/2020,
OFH2021Q2.A000847,07/03/2020,MPS Housing Limited,CIS,88,D18075,PLANNED MAINTENANCE (SOUTH),RESIDENT SERVICES (HRA),STRATEGIC PROGRAMMES (HRA),HOUSING CAPITAL & ASSET MANAGEMENT,TECHNICAL SERVICES,CYCLICAL/PLANNED MAINTENANCE - MECHANICAL AND ELECTRICAL,07/02/2020,
OFH2021Q2.A000848,07/03/2020,MPS Housing Limited,CIS,88,D18075,PLANNED MAINTENANCE (SOUTH),RESIDENT SERVICES (HRA),STRATEGIC PROGRAMMES (HRA),HOUSING CAPITAL & ASSET MANAGEMENT,TECHNICAL SERVICES,CYCLICAL/PLANNED MAINTENANCE - MECHANICAL AND ELECTRICAL,07/02/2020,
OFH2021Q2.A000849,07/03/2020,MPS Housing Limited,CIS,88,D18075,PLANNED MAINTENANCE (SOUTH),RESIDENT SERVICES (HRA),STRATEGIC PROGRAMMES (HRA),HOUSING CAPITAL & ASSET MANAGEMENT,TECHNICAL SERVICES,CYCLICAL/PLANNED MAINTENANCE - MECHANICAL AND ELECTRICAL,07/02/2020,
